{"text_format":"1","workbook":"xlsx","n_sheets":15,"sheets":["Leerlinggegevens","ADS_gegevens","ReBTOSS_meting 1","Berekeningen1","Resultaten_meting 1","ReBTOSS_meting 2","Berekeningen 2","Resultaten_meting 2","ReBTOSS_meting 3","Berekeningen 3","Resultaten_meting 3","ReBTOSS_meting 4","Berekeningen 4","Resultaten_meting 4","Keuzes"],"not_rendered":{"charts":16,"images":4,"macros":1,"external_links":0,"defined_names":0,"comments":4,"pivot_tables":0},"unopened":[],"bounds":{"document_bytes":16777216,"sheet_cells":100000,"rows_first":2000,"rows_last":500,"rows_between":2000,"halvings":0,"cell_chars":16384,"cell_head_chars":4096},"cells_cut":0,"cells_raw":0,"read":"whole","date_system":"1900"}

{"sheet":"Leerlinggegevens","index":0,"n_rows":36,"n_cols":5,"rows_kept":36,"cut":false,"hidden":false,"merged":[[1,1,1,2],[11,1,11,2]]}
[]
[null,"Algemene gegevens leerling",null,null,"Ik maak me geen zorgen over deze leerling."]
[null,"Naam",null,null,"Ik maak me een beetje zorgen over deze leerling."]
[null,"Geslacht","Selecteer het juiste antwoord"]
[null,"Geboortedatum (dd-mm-jjjj)",null,null,"Ik maak me heel erg zorgen over deze leerling."]
[]
[null,"Invuldatum meting 1 (dd-mm-jjjj)"]
[null,"Invuldatum meting 2 (dd-mm-jjjj)"]
[null,"Invuldatum meting 3 (dd-mm-jjjj)"]
[null,"Invuldatum meting 4 (dd-mm-jjjj)"]
[]
[null,"Algemene gegevens leerkracht (per meting)",null,"Ik maak mij geen zorgen over deze leerling."]
[null,"Meting 1                                                       Naam "]
[null,"Groep"]
[null,"School"]
[]
[null,"Meting 2                                                       Naam "]
[null,"Groep"]
[null,"School"]
[]
[null,"Meting 3                                                       Naam "]
[null,"Groep"]
[null,"School"]
[]
[null,"Meting 4                                                       Naam ",null,"Ik maak mij een beetje zorgen over deze leerling."]
[null,"Groep",null,"Ik maak mij erg zorgen over deze leerling."]
[null,"School",null,"Ik maak mij heel erg zorgen over deze leerling."]
[]
[null,"Maakt u zich zorgen over deze leerling?"]
[null,"Meting 1","Selecteer het juiste antwoord"]
[null,"Meting 2","Selecteer het juiste antwoord"]
[null,"Meting 3","Selecteer het juiste antwoord"]
[null,"Meting 4","Selecteer het juiste antwoord"]
[]
[null,"Opmerkingen? Mocht u willen, dan kunt u uw antwoord hieronder toelichten.    "]
[null,"                                                              Bijvoorbeeld: leerling kan zich moeilijk concentreren, vermoeden ADHD; leerling is altijd erg stil in de klas; leerling is vaak verhuisd; ouders leerling zijn recentelijk gescheiden."]

{"sheet":"ADS_gegevens","index":1,"n_rows":38,"n_cols":13,"rows_kept":38,"cut":false,"hidden":true,"merged":[]}
["Achter de schermen: gegevens"]
[]
[null,"Naam",{"$f":"IF(Leerlinggegevens!C3=\"\", \"Vul naam leerling in\",Leerlinggegevens!C3)","v":"Vul naam leerling in"},null,"Jongen","Meisje","Niet ingevuld","Geslacht",null,"Meting 1",null,"Naam leerkracht: ",{"$f":"IF(Leerlinggegevens!C13=\"\",\"Vul naam leerkracht in\", Leerlinggegevens!C13)","v":"Vul naam leerkracht in"}]
[null,"Geslacht",{"$f":"IF(Leerlinggegevens!C4=\"Selecteer het juiste antwoord\", \"Juiste antwoord moet nog worden geselecteerd\",Leerlinggegevens!C4)","v":"Juiste antwoord moet nog worden geselecteerd"},null,{"$f":"IF(C4=\"Jongen\",1,\"\")","v":""},{"$f":"IF(C4=\"Meisje\",2,\"\")","v":""},{"$f":"SUM(E4:F4)","v":0},{"$f":"SUM(E4:G4)","v":0},null,null,null,"Groep:",{"$f":"IF(Leerlinggegevens!C14=\"\",\"Vul groep in\",Leerlinggegevens!C14)","v":"Vul groep in"}]
[null,"Geboortedatum (dd-mm-22)",{"$f":"IF(Leerlinggegevens!C5=\"\",\"Vul de geboortedatum in\",Leerlinggegevens!C5)","v":"Vul de geboortedatum in"},null,"Jongen",1,null,null,null,null,null,"School:",{"$f":"IF(Leerlinggegevens!C15=\"\",\"Vul school in\",Leerlinggegevens!C15)","v":"Vul school in"}]
[null,null,null,null,"Meisje",4]
[null,"Invuldatum meting 1 (dd-mm-jj)",{"$f":"IF(Leerlinggegevens!C7=\"\",\"\",Leerlinggegevens!C7)","v":""},{"$f":"IF(Leerlinggegevens!C7=\"\",\"Vul datum in\",Leerlinggegevens!C7)","v":"Vul datum in"},"Niet ingevuld",0]
[null,"Invuldatum meting 2 (dd-mm-jj)",{"$f":"IF(Leerlinggegevens!C8=\"\",\"\",Leerlinggegevens!C8)","v":""},{"$f":"IF(Leerlinggegevens!C8=\"\",\"Vul datum in\",Leerlinggegevens!C8)","v":"Vul datum in"},null,null,null,null,null,"Meting 2",null,"Naam leerkracht: ",{"$f":"IF(Leerlinggegevens!C17=\"\",\"Vul naam leerkracht in\", Leerlinggegevens!C17)","v":"Vul naam leerkracht in"}]
[null,"Invuldatum meting 3 (dd-mm-jj)",{"$f":"IF(Leerlinggegevens!C9=\"\",\"\",Leerlinggegevens!C9)","v":""},{"$f":"IF(Leerlinggegevens!C9=\"\",\"Vul datum in\",Leerlinggegevens!C9)","v":"Vul datum in"},null,null,null,null,null,null,null,"Groep:",{"$f":"IF(Leerlinggegevens!C18=\"\",\"Vul groep in\",Leerlinggegevens!C18)","v":"Vul groep in"}]
[null,"Invuldatum meting 4 (dd-mm-jj)",{"$f":"IF(Leerlinggegevens!C10=\"\",\"\",Leerlinggegevens!C10)","v":""},{"$f":"IF(Leerlinggegevens!C10=\"\",\"Vul datum in\",Leerlinggegevens!C10)","v":"Vul datum in"},null,null,null,null,null,null,null,"School:",{"$f":"IF(Leerlinggegevens!C19=\"\",\"Vul school in\",Leerlinggegevens!C19)","v":"Vul school in"}]
[]
["Meting 1","Leeftijd bij afname stap 1",{"$f":"IF(C5=\"Vul de geboortedatum in\",\"\",C5)","v":""}]
[null,"Leeftijd bij afname stap 2",{"$f":"IF(C7=\"\",\"\",(C7-C5)/365.25)","v":""},null,null,null,null,null,null,"Meting 3",null,"Naam leerkracht: ",{"$f":"IF(Leerlinggegevens!C21=\"\",\"Vul naam leerkracht in\",Leerlinggegevens!C21)","v":"Vul naam leerkracht in"}]
[null,"Leeftijd voor in resultaten",{"$f":"IF(C13=\"\",\"Leeftijd onbekend\",C13)","v":"Leeftijd onbekend"},null,null,null,null,null,null,null,null,"Groep:",{"$f":"IF(Leerlinggegevens!C22=\"\",\"Vul groep in\",Leerlinggegevens!C22)","v":"Vul groep in"}]
[null,null,null,null,null,null,null,null,null,null,null,"School:",{"$f":"IF(Leerlinggegevens!C23=\"\",\"Vul school in\",Leerlinggegevens!C23)","v":"Vul school in"}]
["Meting 2","Leeftijd bij afname stap 1",{"$f":"IF(C5=\"Vul de geboortedatum in\",\"\",C5)","v":""}]
[null,"Leeftijd bij afname stap 2",{"$f":"IF(C8=\"\",\"\",(C8-C5)/365.25)","v":""}]
[null,"Leeftijd voor in resultaten",{"$f":"IF(C17=\"\",\"Leeftijd onbekend\",C17)","v":"Leeftijd onbekend"},null,null,null,null,null,null,"Meting 3",null,"Naam leerkracht: ",{"$f":"IF(Leerlinggegevens!C25=\"\",\"Vul naam leerkracht in\",Leerlinggegevens!C25)","v":"Vul naam leerkracht in"}]
[null,null,null,null,null,null,null,null,null,null,null,"Groep:",{"$f":"IF(Leerlinggegevens!C26=\"\",\"Vul groep in\",Leerlinggegevens!C26)","v":"Vul groep in"}]
[null,null,null,null,null,null,null,null,null,null,null,"School:",{"$f":"IF(Leerlinggegevens!C27=\"\",\"Vul school in\",Leerlinggegevens!C27)","v":"Vul school in"}]
["Meting 3","Leeftijd bij afname stap 1",{"$f":"IF(C5=\"Vul de geboortedatum in\",\"\",C5)","v":""}]
[null,"Leeftijd bij afname stap 2",{"$f":"IF(C9=\"\",\"\",(C9-C5)/365.25)","v":""}]
[null,"Leeftijd voor in resultaten",{"$f":"IF(C22=\"\",\"Leeftijd onbekend\",C22)","v":"Leeftijd onbekend"}]
[]
[]
["Meting 3","Leeftijd bij afname stap 1",{"$f":"IF(C5=\"Vul de geboortedatum in\",\"\",C5)","v":""}]
[null,"Leeftijd bij afname stap 2",{"$f":"IF(C10=\"\",\"\",(C10-C5)/365.25)","v":""}]
[null,"Leeftijd voor in resultaten",{"$f":"IF(C27=\"\",\"Leeftijd onbekend\",C27)","v":"Leeftijd onbekend"}]
[]
[]
[]
[]
[]
[null,"Maakt u zich zorgen over deze leerling?"]
[null,"Meting 1",{"$f":"IF(Leerlinggegevens!C30=\"Selecteer het juist antwoord\",\"Selecteer het juiste antwoord\",Leerlinggegevens!C30)","v":"Selecteer het juiste antwoord"}]
[null,"Meting 2",{"$f":"IF(Leerlinggegevens!C31=\"Selecteer het juist antwoord\",\"Selecteer het juiste antwoord\",Leerlinggegevens!C31)","v":"Selecteer het juiste antwoord"}]
[null,"Meting 3",{"$f":"IF(Leerlinggegevens!C32=\"Selecteer het juist antwoord\",\"Selecteer het juiste antwoord\",Leerlinggegevens!C32)","v":"Selecteer het juiste antwoord"}]
[null,"Meting 4",{"$f":"IF(Leerlinggegevens!C33=\"Selecteer het juist antwoord\",\"Selecteer het juiste antwoord\",Leerlinggegevens!C33)","v":"Selecteer het juiste antwoord"}]

{"sheet":"ReBTOSS_meting 1","index":2,"n_rows":65,"n_cols":20,"rows_kept":65,"cut":false,"hidden":false,"merged":[[0,4,0,5],[3,4,5,6],[52,0,53,0],[31,0,32,0],[13,0,15,0],[4,1,4,2],[3,1,3,2],[5,1,5,2],[39,0,40,0],[58,0,59,0],[24,0,26,0],[46,0,47,0],[2,3,2,6],[18,0,20,0],[8,0,10,0],[3,3,5,3]]}
[null,null,null,"Voortgang",{"$f":"IF(N65=54,\"KLAAR!\",\"…nog niet klaar\")","v":"…nog niet klaar"},null,null,null,null,null,null,null,null,null,null,null,null,"Totaalscore Risico",null,{"$f":"SUM(Q13+Q18+Q24+Q31+Q37)","v":0}]
[]
[null,null,null,"Ingevulde items:",null,null,null,null,null,null,null,null,null,null,null,null,null,"Totaal score Beschermende",null,{"$f":"SUM(Q46+Q52+Q58+Q64)","v":0}]
[null,null,null,{"$f":"(N65)&\" item(s)\"","v":"0 item(s)"}]
[]
[]
[]
["RISICOFACTOREN",null,"In de afgelopen twee weken…","NIET           van toepassing","BEETJE         van toepassing","VAAK            van toepassing","ZEER VAAK     van toepassing",null,null,null,null,null,null,"vraag ingevuld?",null,null,"Som Cluster","Aantal items per cluster",null,"Gemiddelde Clusterscore"]
["1. Herbeleving van de traumatische gebeurtenis(sen)","1.1","… betrok de leerling  thema's of aspecten van een nare gebeurtenis/ervaring in het spel.",null,null,null,null,{"$f":"IF(M9=3,\"Check\", IF(M9=4,\"Vul in\",IF(M9<3,\"U mag 1 antwoord aankruisen\")))","v":"Vul in"},{"$f":"IF(D9=\"\",\"\",0)","v":""},{"$f":"IF(E9=\"\",\"\",1)","v":""},{"$f":"IF(F9=\"\",\"\",2)","v":""},{"$f":"IF(G9=\"\",\"\",3)","v":""},{"$f":"COUNTBLANK(I9:L9)","v":4},{"$f":"IF(M9=3,1,\"\")","v":""},{"$f":"COUNTIF($I$9:$L$13,0)","v":0},0]
[null,"1.2","… maakte de leerling een vermoeide indruk.",null,null,null,null,{"$f":"IF(M10=3,\"Check\", IF(M10=4,\"Vul in\",IF(M10<3,\"U mag 1 antwoord aankruisen\")))","v":"Vul in"},"","","",{"$f":"IF(G10=\"\",\"\",3)","v":""},{"$f":"COUNTBLANK(I10:L10)","v":4},{"$f":"IF(M10=3,1,\"\")","v":""},{"$f":"COUNTIF($I$9:$K$13,1)","v":0},1]
[null,"1.3","… maakte de leerling  een angstige, bange indruk.",null,null,null,null,{"$f":"IF(M11=3,\"Check\", IF(M11=4,\"Vul in\",IF(M11<3,\"U mag 1 antwoord aankruisen\")))","v":"Vul in"},"","","","",4,"",{"$f":"COUNTIF($I$9:$K$13,2)","v":0},2]
[null,"1.4","… leek de leerling last te hebben van lichamelijke klachten (hierbij kunt u denken aan hoofdpijn of buikpijn).",null,null,null,null,"Vul in","","","","",4,"",{"$f":"COUNTIF($I$9:$L$13,3)","v":0},3]
[null,"1.5","… reageerde de leerling, in een neutrale situatie, op een niet neutrale manier.",null,null,null,null,"Vul in","","","",{"$f":"IF(G13=\"\",\"\",3)","v":""},4,"",null,null,{"$f":"SUM(I9:L13)","v":0},5,null,{"$f":"Q13/R13","v":0}]
["2. Vermijden van prikkels die worden geassocieerd met de traumatische gebeurtenis(sen) en afstomping van algemene reactiviteit.","2.1","… vermeed de leerling  om te praten over (trauma)gevoelige onderwerpen.",null,null,null,null,"Vul in","","","","",4,"",{"$f":"COUNTIF($I$14:$L$18,0)","v":0},0]
[null,"2.2","… vermeed de leerling bepaalde plaatsen of voorwerpen.",null,null,null,null,"Vul in","","","","",4,"",{"$f":"COUNTIF($I$14:$L$18,1)","v":0},1]
[null,"2.3","… vermeed de leerling bepaalde mensen, gesprekken of (sociale) situaties.",null,null,null,null,"Vul in","","","","",4,"",{"$f":"COUNTIF($I$14:$L$18,2)","v":0},2]
[null,"2.4","… vermeed de leerling bepaalde activiteiten.",null,null,null,null,"Vul in","","","","",4,"",{"$f":"COUNTIF($I$14:$L$18,3)","v":0},3]
[null,"2.5","… vertoonde de leerling beperkt affect.",null,null,null,null,"Vul in","","","","",4,"",null,null,{"$f":"SUM(I14:L18)","v":0},5,null,{"$f":"Q18/R18","v":0}]
["3. Negatieve veranderingen in cognities (overtuigingen of verwachtingen) en stemming (gemoedstoestand)","3.1","… leek de leerling zich schuldig te voelen over bepaalde zaken.",null,null,null,null,"Vul in","","","",{"$f":"IF(G19=\"\",\"\",3)","v":""},{"$f":"COUNTBLANK(I19:L19)","v":4},"",{"$f":"COUNTIF($I$19:$L$24,0)","v":0},0]
[null,"3.2","… deed de leerling negatieve uitspraken over zichzelf, anderen of de wereld.",null,null,null,null,"Vul in","","","",{"$f":"IF(G20=\"\",\"\",3)","v":""},4,"",{"$f":"COUNTIF($I$19:$L$24,1)","v":0},1]
[null,"3.3","… toonde de leerling beperkte interesse (in vergelijking met andere leerlingen) voor belangrijke activiteiten.",null,null,null,null,"Vul in","","","","",4,"",{"$f":"COUNTIF($I$19:$L$24,2)","v":0},2]
[null,"3.4","… maakte de leerling een verdrietige indruk.",null,null,null,null,"Vul in","","","","",4,"",{"$f":"COUNTIF($I$19:$L$24,3)","v":0},3]
[null,"3.5","… maakte de leerling een beschaamde indruk.",null,null,null,null,"Vul in","","","","",4,""]
[null,"3.6","… zocht de leerling geen contact met anderen, zonderde zich af.",null,null,null,null,"Vul in","","","","",4,"",null,null,{"$f":"SUM(I19:L24)","v":0},6,null,{"$f":"Q24/R24","v":0}]
["4. Verhoogde of verlaagde arousal (verhoogde prikkelbaarheid)","4.1","… maakte de leerling een boze indruk.",null,null,null,null,"Vul in","","","",{"$f":"IF(G25=\"\",\"\",3)","v":""},4,"",{"$f":"COUNTIF($I$25:$L$31,0)","v":0},0]
[null,"4.2","… was de leerling onvoorzichtig.",null,null,null,null,"Vul in","","","",{"$f":"IF(G26=\"\",\"\",3)","v":""},4,"",{"$f":"COUNTIF($I$25:$L$31,1)","v":0},1]
[null,"4.3","… was de leerling over-voorzichtig of op de hoede zonder duidelijke reden.",null,null,null,null,"Vul in","","","","",4,"",{"$f":"COUNTIF($I$25:$L$31,2)","v":0},2]
[null,"4.4","… vergat de leerling gewone dagelijkse dingen.",null,null,null,null,"Vul in","","","","",4,"",{"$f":"COUNTIF($I$25:$L$31,3)","v":0},3]
[null,"4.5","… vond de leerling het moeilijk om zijn/haar aandacht ergens bij te houden of om zich te concentreren.",null,null,null,null,"Vul in","","","","",4,""]
[null,"4.6","… schrok de leerling (overdreven) snel of was zenuwachtig.",null,null,null,null,"Vul in","","","","",4,""]
[null,"4.7","… pestte de leerling andere leerlingen.",null,null,null,null,"Vul in","","","","",4,"",null,null,{"$f":"SUM(I25:L31)","v":0},7,null,{"$f":"Q31/R31","v":0}]
["5. Dissociëren","5.1","… gedroeg de leerling zich jonger dan je a.d.h.v. zijn/haar leeftijd zou verwachten.",null,null,null,null,"Vul in","","","",{"$f":"IF(G32=\"\",\"\",3)","v":""},4,"",{"$f":"COUNTIF($I$32:$L$37,0)","v":0},0]
[null,"5.2","… wisselde de leerling plotseling van gedrag.",null,null,null,null,"Vul in","","","",{"$f":"IF(G33=\"\",\"\",3)","v":""},4,"",{"$f":"COUNTIF($I$32:$L$37,1)","v":0},1]
[null,"5.3","… wisselde de leerling snel van emotie.",null,null,null,null,"Vul in","","","","",4,"",{"$f":"COUNTIF($I$32:$L$37,2)","v":0},2]
[null,"5.4","… kon de leerling de ene dag iets wel en de andere dag absoluut niet.",null,null,null,null,"Vul in","","","","",4,"",{"$f":"COUNTIF($I$32:$L$37,3)","v":0},3]
[null,"5.5","… leek de leerling geen herinnering te hebben aan dingen die (net) waren gebeurd of gezegd.",null,null,null,null,"Vul in","","","","",4,""]
[null,"5.6","… gaf de leerling soms geen reactie.",null,null,null,null,"Vul in","","","","",4,"",null,null,{"$f":"SUM(I32:L37)","v":0},6,null,{"$f":"Q37/R37","v":0}]
[null,null,null,null,null,null,null,null,""," ",{"$f":"IF(G38=\"\",\"\",2)","v":""},null,null,{"$f":"IF(M38=3,1,\"\")","v":""}]
["BESCHERMENDE FACTOREN",null,"In de afgelopen twee weken…","NIET             van toepassing","BEETJE       van toepassing","VAAK           van toepassing","ZEER VAAK      van toepassing",null,null,null,null,null,null,""]
["6. Veiligheid en relaties","6.1","… kon de leerling goed overweg met de leerkracht(en): De leerling reageerde positief in contact naar de leerkracht(en).",null,null,null,null,{"$f":"IF(M40=3,\"Check\", IF(M40=4,\"Vul in\",IF(M40<3,\"U mag 1 antwoord aankruisen\")))","v":"Vul in"},{"$f":"IF(D40=\"\",\"\",0)","v":""},{"$f":"IF(E40=\"\",\"\",1)","v":""},{"$f":"IF(F40=\"\",\"\",2)","v":""},{"$f":"IF(G40=\"\",\"\",3)","v":""},4,"",{"$f":"COUNTIF($I$40:$L$46,0)","v":0},0]
[null,"6.2","… kon de leerling goed overweg met de leerkracht(en): De leerling nam initiatief in contact met leerkracht(en).",null,null,null,null,"Vul in","","","",{"$f":"IF(G41=\"\",\"\",3)","v":""},4,"",{"$f":"COUNTIF($I$40:$L$46,1)","v":0},1]
[null,"6.3","… maakte de leerling positief contact met andere leerlingen.",null,null,null,null,"Vul in","","","","",4,"",{"$f":"COUNTIF($I$40:$L$46,2)","v":0},2]
[null,"6.4","… zochten andere leerlingen positief contact met de leerling.",null,null,null,null,"Vul in","","","","",4,"",{"$f":"COUNTIF($I$40:$L$46,3)","v":0},3]
[null,"6.5","… had de leerling het naar zijn/haar zin op school.",null,null,null,null,"Vul in","","","","",4,""]
[null,"6.6","… maakte de leerling een blije indruk.",null,null,null,null,"Vul in","","","","",4,""]
[null,"6.7","… werd de leerling gewaardeerd in de groep (goede sociale status).",null,null,null,null,"Vul in","","","","",4,"",null,null,{"$f":"SUM(I40:L46)","v":0},7,null,{"$f":"Q46/R46","v":0}]
["7. Zelfregulatie","7.1","… maakte de leerling op een adequate manier zijn/haar gevoelens duidelijk.",null,null,null,null,"Vul in","","","",{"$f":"IF(G47=\"\",\"\",3)","v":""},4,"",{"$f":"COUNTIF($I$47:$L$52,0)","v":0},0]
[null,"7.2","… was de leerling in staat correct te reflecteren en te reageren op andermans gedrag en gevoelens.",null,null,null,null,"Vul in","","","","",4,"",{"$f":"COUNTIF($I$47:$L$52,1)","v":0},1]
[null,"7.3","… was de leerling in staat zichzelf (weer) rustig te krijgen wanneer hij/zij boos, verdrietig of angstig was.",null,null,null,null,"Vul in","","","","",4,"",{"$f":"COUNTIF($I$47:$L$52,2)","v":0},2]
[null,"7.4","… was de leerling, met behulp van een ander, in staat (weer) rustig te worden wanneer hij/zij boos verdrietig of angstig was.",null,null,null,null,"Vul in","","","","",4,"",{"$f":"COUNTIF($I$47:$L$52,3)","v":0},3]
[null,"7.5","… was de leerling flexibel in zijn/haar gedrag.",null,null,null,null,"Vul in","","","","",4,""]
[null,"7.6","… dacht de leerling na voor hijzij iets deed.",null,null,null,null,"Vul in","","","","",4,"",null,null,{"$f":"SUM(I47:L52)","v":0},6,null,{"$f":"Q52/R52","v":0}]
["8. Positief (neutraal) zelfbeeld","8.1","… maakte de leerling een trotse indruk.",null,null,null,null,"Vul in","","","","",4,"",{"$f":"COUNTIF($I$53:$L$58,0)","v":0},0]
[null,"8.2","… praatte de leerling op een positieve manier over zichzelf.",null,null,null,null,"Vul in","","","",{"$f":"IF(G54=\"\",\"\",3)","v":""},4,"",{"$f":"COUNTIF($I$53:$L$58,1)","v":0},1]
[null,"8.3","… kwam de leerling met (veel) nieuwe ideeën.",null,null,null,null,"Vul in","","","","",4,"",{"$f":"COUNTIF($I$53:$L$58,2)","v":0},2]
[null,"8.4","… kon de leerling goed omgaan met kritiek.",null,null,null,null,"Vul in","","","","",4,"",{"$f":"COUNTIF($I$53:$L$58,3)","v":0},3]
[null,"8.5","… had de leerling vertrouwen in zichzelf.",null,null,null,null,"Vul in","","","","",4,""]
[null,"8.6","… durfde de leerling nieuwe uitdagingen aan te gaan.",null,null,null,null,"Vul in","","","","",4,"",null,null,{"$f":"SUM(I53:L58)","v":0},6,null,{"$f":"Q58/R58","v":0}]
["9. Het dagelijks leven","9.1","… at de leerling goed.",null,null,null,null,"Vul in","","","","",4,"",{"$f":"COUNTIF($I$59:$L$64,0)","v":0},0]
[null,"9.2","… zag de leerling er verzorgd uit.",null,null,null,null,"Vul in","","","","",4,"",{"$f":"COUNTIF($I$59:$L$64,1)","v":0},1]
[null,"9.3","… was de leerling lichamelijk actief geweest.",null,null,null,null,"Vul in","","","","",4,"",{"$f":"COUNTIF($I$59:$L$64,2)","v":0},2]
[null,"9.4","… kwam de leerling op tijd op school.",null,null,null,null,"Vul in","","","","",4,"",{"$f":"COUNTIF($I$59:$L$64,3)","v":0},3]
[null,"9.5","… had de leerling weinig schoolverzuim.",null,null,null,null,"Vul in","","","","",4,""]
[null,"9.6","… waren de ouders van de leerling betrokken.",null,null,null,null,"Vul in","","","","",4,"",null,null,{"$f":"SUM(I59:L64)","v":0},6,null,{"$f":"Q64/R64","v":0}]
[null,null,null,null,null,null,null,null,null,null,null,null,{"$f":"(SUM(M9:M64))/2","v":108},{"$f":"SUM(N9:N64)","v":0}]

{"sheet":"Berekeningen1","index":3,"n_rows":62,"n_cols":24,"rows_kept":62,"cut":false,"hidden":true,"merged":[[18,5,18,8],[15,12,15,15],[15,18,15,21],[0,5,0,8],[0,12,0,15],[0,18,0,21],[7,12,7,15],[7,18,7,21],[2,5,2,8],[3,5,3,8],[11,5,11,8]]}
[null,null,null,null,null,null,null,null,null,null,null,null,"totaal risicofactoren - somscore",null,null,null,null,null,"totaal beschermende factoren - somscore"]
[null,null,null,null,null,null,null,null,null,null,null,null,"normaal","licht verhoogd","verhoogd","sterk verhoogd",null,null,"sterk verlaagd","verlaagd","licht verlaagd","normaal"]
["Meting 1","Totaal score",null,null,null,null,null,null,null,null,null,"jongens (n = 198)","0 - 9","10 - 19","20 - 25","26 - 87",null,"jongens (n = 198)","0 - 33","34 - 39","40 - 45","46 - 75"]
["Risicofactoren ",{"$f":"'ReBTOSS_meting 1'!T1","v":0},null,null,null,"risicofactoren subschalen - gemiddelde score",null,null,null,null,null,"meisjes (n = 207)","0 - 5","6 - 13","14 - 22","23 - 87",null,"meisjes (n = 207)","0 - 37","38 - 43","44 - 49","50 - 75"]
["Beschermende factoren ",{"$f":"'ReBTOSS_meting 1'!T3","v":0},null,null,"jongens (n = 198)","normaal","licht verhoogd","verhoogd","sterk verhoogd"]
[null,null,null,null,"herbeleving","0,000 - 0,399","0,400 - 0,599","0,600 - 0,999","1,000 - 3,000"]
["Risicofactoren","Somscore","Gemiddelde score subschalen",null,"vermijding","0,000 - 0,199","0,200 - 0,799","0,800 - 0,999","1,000 - 3,000"]
["Herbeleving",{"$f":"'ReBTOSS_meting 1'!Q13","v":0},{"$f":"'ReBTOSS_meting 1'!T13","v":0},null,"negatieve veranderingen cognities en stemming","0,000 - 0,332","0,333 - 0,499","0,500 - 0,832","0,833 - 3,000",null,null,null,"risicofactoren subschalen - gemiddelde score",null,null,null,null,null,"beschermende factoren subschalen - gemiddelde score"]
["Vermijding",{"$f":"'ReBTOSS_meting 1'!Q18","v":0},{"$f":"'ReBTOSS_meting 1'!T18","v":0},null,"arousal","0,000 - 0,285","0,286 - 0,428","0,429 - 0,713","0,714 - 3,000",null,null,"jongens (n = 198)","normaal","licht verhoogd","verhoogd","sterk verhoogd",null,"jongens (n = 198)","sterk verlaagd","verlaagd","licht verlaagd","normaal"]
["Negatieve veranderingen cognities en stemming",{"$f":"'ReBTOSS_meting 1'!Q24","v":0},{"$f":"'ReBTOSS_meting 1'!T24","v":0},null,"dissociatie","0,000 - 0,332","0,333 - 0,499","0,500 - 0,832","0,833 - 3,000",null,null,"herbeleving","0,000 - 0,399","0,400 - 0,599","0,600 - 0,999","1,000 - 3,000",5,"veiligheid en relaties","0,000 - 1,285","1,286 - 1,713","1,714 - 1,856","1,857 - 3,000"]
["Arousal",{"$f":"'ReBTOSS_meting 1'!Q31","v":0},{"$f":"'ReBTOSS_meting 1'!T31","v":0},null,null,null,null,null,null,null,null,"vermijding","0,000 - 0,199","0,200 - 0,799","0,800 - 0,999","1,000 - 3,000",5,"zelfregulatie","0,000 - 0,500","0,501 - 0,999","1,000 - 1,332","1,333 - 3,000"]
["Dissociatie",{"$f":"'ReBTOSS_meting 1'!Q37","v":0},{"$f":"'ReBTOSS_meting 1'!T37","v":0},null,null,"risicofactoren subschalen - gemiddelde score",null,null,null,null,null,"negatieve veranderingen cognities en stemming","0,000 - 0,332","0,333 - 0,499","0,500 - 0,832","0,833 - 3,000",6,"zelfbeeld","0,000 - 0,666","0,667 - 1,332","1,333 - 1,666","1,667 - 3,000"]
[null,null,null,null,"meisjes (n = 207)","normaal","licht verhoogd","verhoogd","sterk verhoogd",null,null,"arousal","0,000 - 0,285","0,286 - 0,428","0,429 - 0,713","0,714 - 3,000",7,"dagelijks leven","0,000 - 1,832","1,833 - 1,999","2,000 - 2,166","2,167 - 3,000"]
["Beschermende factoren","Somscore","Gemiddelde score subschalen",null,"herbeleving","0,000 - 0,399","0,400 - 0,599","0,600 - 0,999","1,000 - 3,000",null,null,"dissociatie","0,000 - 0,332","0,333 - 0,499","0,500 - 0,832","0,833 - 3,000",6]
["veiligheid en relaties",{"$f":"'ReBTOSS_meting 1'!Q46","v":0},{"$f":"'ReBTOSS_meting 1'!T46","v":0},null,"vermijding","0,000 - 0,199","0,200 - 0,399","0,400 - 0,799","0,800 - 3,000"]
["zelfregulatie",{"$f":"'ReBTOSS_meting 1'!Q52","v":0},{"$f":"'ReBTOSS_meting 1'!T52","v":0},null,"negatieve veranderingen cognities en stemming","0,000 - 0,332","0,333 - 0,499","0,500 - 0,832","0,833 - 3,000",null,null,null,"risicofactoren subschalen - gemiddelde score",null,null,null,null,null,"beschermende factoren subschalen - gemiddelde score"]
["zelfbeeld",{"$f":"'ReBTOSS_meting 1'!Q58","v":0},{"$f":"'ReBTOSS_meting 1'!T58","v":0},null,"arousal","0,000 - 0,285","0,286 - 0,428","0,429 - 0,713","0,714 - 3,000",null,null,"meisjes (n = 207)","normaal","licht verhoogd","verhoogd","sterk verhoogd",null,"meisjes (n = 207)","sterk verlaagd","verlaagd","licht verlaagd","normaal"]
["dagelijks leven",{"$f":"'ReBTOSS_meting 1'!Q64","v":0},{"$f":"'ReBTOSS_meting 1'!T64","v":0},null,"dissociatie","0,000 - 0,332","0,333 - 0,499","0,500 - 0,832","0,833 - 3,000",null,null,"herbeleving","0,000 - 0,399","0,400 - 0,599","0,600 - 0,999","1,000 - 3,000",5,"veiligheid en relaties","0,000 - 1,713","1,714 - 1,856","1,857 - 1,999","2,000 - 3,000"]
[null,null,null,null,null,null,null,null,null,null,null,"vermijding","0,000 - 0,199","0,200 - 0,399","0,400 - 0,799","0,800 - 3,000",5,"zelfregulatie","0,000 - 0,832","0,833 - 1,166","1,167 - 1,499","1,500 - 3,000"]
[null,null,null,null,null,null,null,null,null,null,null,"negatieve veranderingen cognities en stemming","0,000 - 0,332","0,333 - 0,499","0,500 - 0,832","0,833 - 3,000",6,"zelfbeeld","0,000 - 0,999","1,000 - 1,332","1,333 - 1,499","1,500 - 3,000"]
[null,null,null,null,null,null,null,null,null,null,null,"arousal","0,000 - 0,285","0,286 - 0,428","0,429 - 0,713","0,714 - 3,000",7,"dagelijks leven","0,000 - 1,832","1,833 - 1,999","2,000 - 2,332","2,333 - 3,000"]
[{"$f":"IF('ReBTOSS_meting 1'!N65=54,\"Meting 1 is goed ingevuld\",\"Meting 1 is NIET goed ingevuld. De resultaten zijn ONBETROUWBAAR.\")","v":"Meting 1 is NIET goed ingevuld. De resultaten zijn ONBETROUWBAAR."},null,null,null,null,null,null,null,null,null,null,"dissociatie","0,000 - 0,332","0,333 - 0,499","0,500 - 0,832","0,833 - 3,000",6]
[]
[null,"Jongen","Totaal score","Betekenis",null,"Normaal","Licht verhoogd","Verhoogd","Sterk verhoogd","Betekenis"]
[null,"Risicofactoren ",{"$f":"B4","v":0},{"$f":"_xlfn.IFS(J25=0,\"Normaal\",J25=1,\"Licht verhoogd\",J25=2,\"Verhoogd\",J25=3,\"Sterk verhoogd\")","v":"Normaal"},null,{"$f":"IF(C25<10,0,\"\")","v":0},{"$f":"IF(AND(C25>9,C25<20),1,\"\")","v":""},{"$f":"IF(AND(C25>19,C25<26),2,\"\")","v":""},{"$f":"IF(C25>25,3,\"\")","v":""},{"$f":"SUM(F25:I25)","v":0}]
[null,null,"Totaal score","Betekenis",null,"Sterk verlaagd","Verlaagd","Licht verlaagd","Normaal",null,null,null,"De bovengrenzen: risico",null,null,null,null,null,null,"De bovengrenzen: beschermend"]
[null,"Beschermende factoren ",{"$f":"B5","v":0},{"$f":"_xlfn.IFS(J27=3,\"Sterk verlaagd\",J27=2,\"Verlaagd\",J27=1,\"Licht verlaagd\",J27=0,\"Normaal\")","v":"Sterk verlaagd"},null,{"$f":"IF(C27<34,3,\"\")","v":3},{"$f":"IF(AND(C27>33,C27<40),2,\"\")","v":""},{"$f":"IF(AND(C27>39,C27<46),1,\"\")","v":""},{"$f":"IF(C27>45,0,\"\")","v":""},{"$f":"SUM(F27:I27)","v":3},null,null,"Jongen",null,null,null,null,null,null,"Jongen"]
[null,null,null,null,null,null,null,null,null,null,null,null,null,"Herbeleving","Vermijding","Negatieve veranderingen cognities en stemming","Arousal","Dissociatie",null,null,"Veiligheid en relaties","Zelfregulatie","Zelfbeeld","Dagelijks leven"]
[null,"Risicofactoren","Somscore","Gemiddelde score subschalen","Betekenis","Normaal","Licht verhoogd","Verhoogd","Sterk verhoogd","Betekenis",null,null,"Meting 1",{"$f":"D30","v":0},{"$f":"D31","v":0},{"$f":"D32","v":0},{"$f":"D33","v":0},{"$f":"D34","v":0},null,"Meting 1",{"$f":"D37","v":0},{"$f":"D38","v":0},{"$f":"D39","v":0},{"$f":"D40","v":0}]
[null,"Herbeleving",{"$f":"B8","v":0},{"$f":"C8","v":0},{"$f":"_xlfn.IFS(J30=0,\"Normaal\",J30=1,\"Licht verhoogd\",J30=2,\"Verhoogd\",J30=3,\"Sterk verhoogd\")","v":"Normaal"},{"$f":"IF(D30<0.4,0,\"\")","v":0},{"$f":"IF(AND(D30>0.399,D30<0.6),1,\"\")","v":""},{"$f":"IF(AND(D30>0.599,D30<1),2,\"\")","v":""},{"$f":"IF(D30>0.999,3,\"\")","v":""},{"$f":"SUM(F30:I30)","v":0},null,"5 Items","Normaal",0.39950000000000002,0.19950000000000001,0.33250000000000002,0.28549999999999998,0.33250000000000002,null,"Sterk verlaagd",1.2855000000000001,0.50049999999999994,0.66649999999999998,1.8325]
[null,"Vermijding",{"$f":"B9","v":0},0,{"$f":"_xlfn.IFS(J31=0,\"Normaal\",J31=1,\"Licht verhoogd\",J31=2,\"Verhoogd\",J31=3,\"Sterk verhoogd\")","v":"Normaal"},{"$f":"IF(D31<0.2,0,\"\")","v":0},{"$f":"IF(AND(D31>0.199,D31<0.8),1,\"\")","v":""},{"$f":"IF(AND(D31>0.799,D31<1),2,\"\")","v":""},{"$f":"IF(D31>0.999,3,\"\")","v":""},{"$f":"SUM(F31:I31)","v":0},null,"5 Items","Licht verhoogd",0.59950000000000003,0.79949999999999999,0.4995,0.42849999999999999,0.4995,null,"Verlaagd",1.7135,0.99950000000000006,1.3325,1.9995000000000001]
[null,"Negatieve veranderingen cognities en stemming",0,0,"Normaal",{"$f":"IF(D32<0.333,0,\"\")","v":0},{"$f":"IF(AND(D32>0.332,D32<0.5),1,\"\")","v":""},{"$f":"IF(AND(D32>0.499,D32<0.833),2,\"\")","v":""},{"$f":"IF(D32>0.832,3,\"\")","v":""},0,null,"6 Items","Verhoogd",0.99950000000000006,0.99950000000000006,0.83250000000000002,0.71350000000000002,0.83250000000000002,null,"Licht verlaagd",1.8565,1.3325,1.6665000000000001,2.1665000000000001]
[null,"Arousal",0,0,"Normaal",{"$f":"IF(D33<0.285,0,\"\")","v":0},{"$f":"IF(AND(D33>0.285,D33<0.428),1,\"\")","v":""},{"$f":"IF(AND(D33>0.428,D33<0.714),2,\"\")","v":""},{"$f":"IF(D33>0.713,3,\"\")","v":""},0,null,"7 Items","Sterk verhoogd",3,3,3,3,3,null,"Normaal",3,3,3,3]
[null,"Dissociatie",0,0,"Normaal",{"$f":"IF(D34<0.333,0,\"\")","v":0},{"$f":"IF(AND(D34>0.332,D34<0.5),1,\"\")","v":""},{"$f":"IF(AND(D34>0.499,D34<0.833),2,\"\")","v":""},{"$f":"IF(D34>0.832,3,\"\")","v":""},0,null,"6 Items"]
[]
[null,"Beschermende factoren","Somscore","Gemiddelde score subschalen","Betekenis","Sterk verlaagd","Verlaagd","Licht verlaagd","Normaal","Betekenis"]
[null,"veiligheid en relaties",{"$f":"B15","v":0},{"$f":"C15","v":0},{"$f":"_xlfn.IFS(J37=3,\"Sterk verlaagd\",J37=2,\"Verlaagd\",J37=1,\"Licht verlaagd\",J37=0,\"Normaal\")","v":"Sterk verlaagd"},{"$f":"IF(D37<1.285,3,\"\")","v":3},{"$f":"IF(AND(D37>1.285,D37<1.714),2,\"\")","v":""},{"$f":"IF(AND(D37>1.713,D37<1.857),1,\"\")","v":""},{"$f":"IF(D37>1.856,0,\"\")","v":""},{"$f":"SUM(F37:I37)","v":3},null,"7 Items","Meisje",null,null,null,null,null,null,"Meisje"]
[null,"zelfregulatie",{"$f":"B16","v":0},0,{"$f":"_xlfn.IFS(J38=3,\"Sterk verlaagd\",J38=2,\"Verlaagd\",J38=1,\"Licht verlaagd\",J38=0,\"Normaal\")","v":"Sterk verlaagd"},{"$f":"IF(D38<0.501,3,\"\")","v":3},{"$f":"IF(AND(D38>0.5,D38<1),2,\"\")","v":""},{"$f":"IF(AND(D38>0.999,D38<1.333),1,\"\")","v":""},{"$f":"IF(D38>1.332,0,\"\")","v":""},{"$f":"SUM(F38:I38)","v":3},null,"6 Items",null,"Herbeleving","Vermijding","Negatieve veranderingen cognities en stemming","Arousal","Dissociatie",null,null,"Veiligheid en relaties","Zelfregulatie","Zelfbeeld","Dagelijks leven"]
[null,"zelfbeeld",0,0,{"$f":"_xlfn.IFS(J39=3,\"Sterk verlaagd\",J39=2,\"Verlaagd\",J39=1,\"Licht verlaagd\",J39=0,\"Normaal\")","v":"Sterk verlaagd"},{"$f":"IF(D39<0.65,3,\"\")","v":3},{"$f":"IF(AND(D39>0.666,D39<1.333),2,\"\")","v":""},{"$f":"IF(AND(D39>1.332,D39<1.65),1,\"\")","v":""},{"$f":"IF(D39>1.666,0,\"\")","v":""},3,null,"6 Items","Meting 1",{"$f":"D49","v":0},{"$f":"D50","v":0},{"$f":"D51","v":0},{"$f":"D52","v":0},{"$f":"D53","v":0},null,"Meting 1",{"$f":"D56","v":0},{"$f":"D57","v":0},{"$f":"D58","v":0},{"$f":"D59","v":0}]
[null,"dagelijks leven",0,0,{"$f":"_xlfn.IFS(J40=3,\"Sterk verlaagd\",J40=2,\"Verlaagd\",J40=1,\"Licht verlaagd\",J40=0,\"Normaal\")","v":"Sterk verlaagd"},{"$f":"IF(D40<1.833,3,\"\")","v":3},{"$f":"IF(AND(D40>1.832,D40<2),2,\"\")","v":""},{"$f":"IF(AND(D40>1.999,D40<2.165),1,\"\")","v":""},{"$f":"IF(D40>2.166,0,\"\")","v":""},3,null,"6 Items","Normaal",0.39950000000000002,0.19950000000000001,0.33250000000000002,0.28549999999999998,0.33250000000000002,null,"Sterk verlaagd",1.7135,0.83250000000000002,0.99950000000000006,1.8325]
[null,null,null,null,null,null,null,null,null,null,null,null,"Licht verhoogd",0.59950000000000003,0.39950000000000002,0.4995,0.42849999999999999,0.4995,null,"Verlaagd",1.8565,1.1665000000000001,1.3325,1.9995000000000001]
[null,null,null,null,null,null,null,null,null,null,null,null,"Verhoogd",0.99950000000000006,0.79949999999999999,0.83250000000000002,0.71350000000000002,0.83250000000000002,null,"Licht verlaagd",1.9995000000000001,1.4995000000000001,1.4995000000000001,2.3325]
[null,"Meisje","Totaal score","Betekenis",null,"Normaal","Licht verhoogd","Verhoogd","Sterk Verhoogd","Betekenis",null,null,"Sterk verhoogd",3,3,3,3,3,null,"Normaal",3,3,3,3]
[null,"Risicofactoren ",{"$f":"B4","v":0},{"$f":"_xlfn.IFS(J44=0,\"Normaal\",J44=1,\"Licht verhoogd\",J44=2,\"Verhoogd\",J44=3,\"Sterk verhoogd\")","v":"Normaal"},null,{"$f":"IF(C44<6,0,\"\")","v":0},{"$f":"IF(AND(C44>5,C44<14),1,\"\")","v":""},{"$f":"IF(AND(C44>13,C44<23),2,\"\")","v":""},{"$f":"IF(C44>22,3,\"\")","v":""},{"$f":"SUM(F44:I44)","v":0}]
[null,null,null,null,null,"Sterk verlaagd","Verlaagd","licht verlaagd ","Normaal"]
[null,"Beschermende factoren ",{"$f":"B5","v":0},{"$f":"_xlfn.IFS(J46=3,\"Sterk verlaagd\",J46=2,\"Verlaagd\",J46=1,\"Licht verlaagd\",J46=0,\"Normaal\")","v":"Sterk verlaagd"},null,{"$f":"IF(C46<38,3,\"\")","v":3},{"$f":"IF(AND(C46>37,C46<44),2,\"\")","v":""},{"$f":"IF(AND(C46>43,C46<50),1,\"\")","v":""},{"$f":"IF(C46>49,0,\"\")","v":""},{"$f":"SUM(F46:I46)","v":3}]
[null,null,null,null,null,null,null,null,null,null,null,null,"TABEL  Berekenen RISICO GRENZEN Jongen versus Meisje",null,null,null,null,null,null,"TABEL  Berekenen BESCHERMEND GRENZEN Jongen versus Meisje"]
[null,"Risicofactoren","Somscore","Gemiddelde score subschalen","Betekenis","Normaal","Licht verhoogd","Verhoogd","Sterk verhoogd","Betekenis",null,null,null,"Herbeleving","Vermijding","Negatieve veranderingen cognities en stemming","Arousal","Dissociatie",null,null,"Veiligheid en relaties","Zelfregulatie","Zelfbeeld","Dagelijks leven"]
[null,"Herbeleving",{"$f":"B8","v":0},{"$f":"C8","v":0},{"$f":"_xlfn.IFS(J49=0,\"Normaal\",J49=1,\"Licht verhoogd\",J49=2,\"Verhoogd\",J49=3,\"Sterk verhoogd\")","v":"Normaal"},{"$f":"IF(D49<0.4,0,\"\")","v":0},{"$f":"IF(AND(D49>0.399,D49<0.6),1,\"\")","v":""},{"$f":"IF(AND(D49>0.599,D49<1),2,\"\")","v":""},{"$f":"IF(D49>0.999,3,\"\")","v":""},{"$f":"SUM(F49:I49)","v":0},null,"5 Items","Meting 1",{"$f":"N29","v":0},{"$f":"O29","v":0},{"$f":"P29","v":0},{"$f":"Q29","v":0},{"$f":"R29","v":0},null,"Meting 1",{"$f":"U29","v":0},{"$f":"V29","v":0},{"$f":"W29","v":0},{"$f":"X29","v":0}]
[null,"Vermijding",{"$f":"B9","v":0},0,{"$f":"_xlfn.IFS(J50=0,\"Normaal\",J50=1,\"Licht verhoogd\",J50=2,\"Verhoogd\",J50=3,\"Sterk verhoogd\")","v":"Normaal"},{"$f":"IF(D50<0.2,0,\"\")","v":0},{"$f":"IF(AND(D50>0.199,D50<0.4),1,\"\")","v":""},{"$f":"IF(AND(D50>0.399,D50<0.8),2,\"\")","v":""},{"$f":"IF(D50>0.799,3,\"\")","v":""},{"$f":"SUM(F50:I50)","v":0},null,"5 Items","Normaal",{"$f":"_xlfn.IFS('Resultaten_meting 1'!$A$12=\"Jongen\",Berekeningen1!N30,'Resultaten_meting 1'!$A$12=\"Meisje\",Berekeningen1!N40,'Resultaten_meting 1'!$A$12=\"Vul geslacht in, anders kan de BETEKENIS NIET worden weergegeven\",\"0\")","v":{"$error":"#N/A"}},{"$f":"_xlfn.IFS('Resultaten_meting 1'!$A$12=\"Jongen\",Berekeningen1!O30,'Resultaten_meting 1'!$A$12=\"Meisje\",Berekeningen1!O40,'Resultaten_meting 1'!$A$12=\"Vul geslacht in, anders kan de BETEKENIS NIET worden weergegeven\",\"0\")","v":{"$error":"#N/A"}},{"$f":"_xlfn.IFS('Resultaten_meting 1'!$A$12=\"Jongen\",Berekeningen1!P30,'Resultaten_meting 1'!$A$12=\"Meisje\",Berekeningen1!P40,'Resultaten_meting 1'!$A$12=\"Vul geslacht in, anders kan de BETEKENIS NIET worden weergegeven\",\"0\")","v":{"$error":"#N/A"}},{"$f":"_xlfn.IFS('Resultaten_meting 1'!$A$12=\"Jongen\",Berekeningen1!Q30,'Resultaten_meting 1'!$A$12=\"Meisje\",Berekeningen1!Q40,'Resultaten_meting 1'!$A$12=\"Vul geslacht in, anders kan de BETEKENIS NIET worden weergegeven\",\"0\")","v":{"$error":"#N/A"}},{"$f":"_xlfn.IFS('Resultaten_meting 1'!$A$12=\"Jongen\",Berekeningen1!R30,'Resultaten_meting 1'!$A$12=\"Meisje\",Berekeningen1!R40,'Resultaten_meting 1'!$A$12=\"Vul geslacht in, anders kan de BETEKENIS NIET worden weergegeven\",\"0\")","v":{"$error":"#N/A"}},null,"Sterk verlaagd",{"$f":"_xlfn.IFS('Resultaten_meting 1'!$A$12=\"Jongen\",Berekeningen1!U30,'Resultaten_meting 1'!$A$12=\"Meisje\",Berekeningen1!U40,'Resultaten_meting 1'!$A$12=\"Vul geslacht in, anders kan de BETEKENIS NIET worden weergegeven\",\"0\")","v":{"$error":"#N/A"}},{"$f":"_xlfn.IFS('Resultaten_meting 1'!$A$12=\"Jongen\",Berekeningen1!V30,'Resultaten_meting 1'!$A$12=\"Meisje\",Berekeningen1!V40,'Resultaten_meting 1'!$A$12=\"Vul geslacht in, anders kan de BETEKENIS NIET worden weergegeven\",\"0\")","v":{"$error":"#N/A"}},{"$f":"_xlfn.IFS('Resultaten_meting 1'!$A$12=\"Jongen\",Berekeningen1!W30,'Resultaten_meting 1'!$A$12=\"Meisje\",Berekeningen1!W40,'Resultaten_meting 1'!$A$12=\"Vul geslacht in, anders kan de BETEKENIS NIET worden weergegeven\",\"0\")","v":{"$error":"#N/A"}},{"$f":"_xlfn.IFS('Resultaten_meting 1'!$A$12=\"Jongen\",Berekeningen1!X30,'Resultaten_meting 1'!$A$12=\"Meisje\",Berekeningen1!X40,'Resultaten_meting 1'!$A$12=\"Vul geslacht in, anders kan de BETEKENIS NIET worden weergegeven\",\"0\")","v":{"$error":"#N/A"}}]
[null,"Negatieve veranderingen cognities en stemming",0,0,"Normaal",{"$f":"IF(D51<0.333,0,\"\")","v":0},{"$f":"IF(AND(D51>0.332,D51<0.5),1,\"\")","v":""},{"$f":"IF(AND(D51>0.499,D51<0.833),2,\"\")","v":""},{"$f":"IF(D51>0.832,3,\"\")","v":""},0,null,"6 Items","Licht verhoogd",{"$f":"_xlfn.IFS('Resultaten_meting 1'!$A$12=\"Jongen\",Berekeningen1!N31,'Resultaten_meting 1'!$A$12=\"Meisje\",Berekeningen1!N41,'Resultaten_meting 1'!$A$12=\"Vul geslacht in, anders kan de BETEKENIS NIET worden weergegeven\",\"0\")","v":{"$error":"#N/A"}},{"$f":"_xlfn.IFS('Resultaten_meting 1'!$A$12=\"Jongen\",Berekeningen1!O31,'Resultaten_meting 1'!$A$12=\"Meisje\",Berekeningen1!O41,'Resultaten_meting 1'!$A$12=\"Vul geslacht in, anders kan de BETEKENIS NIET worden weergegeven\",\"0\")","v":{"$error":"#N/A"}},{"$f":"_xlfn.IFS('Resultaten_meting 1'!$A$12=\"Jongen\",Berekeningen1!P31,'Resultaten_meting 1'!$A$12=\"Meisje\",Berekeningen1!P41,'Resultaten_meting 1'!$A$12=\"Vul geslacht in, anders kan de BETEKENIS NIET worden weergegeven\",\"0\")","v":{"$error":"#N/A"}},{"$f":"_xlfn.IFS('Resultaten_meting 1'!$A$12=\"Jongen\",Berekeningen1!Q31,'Resultaten_meting 1'!$A$12=\"Meisje\",Berekeningen1!Q41,'Resultaten_meting 1'!$A$12=\"Vul geslacht in, anders kan de BETEKENIS NIET worden weergegeven\",\"0\")","v":{"$error":"#N/A"}},{"$f":"_xlfn.IFS('Resultaten_meting 1'!$A$12=\"Jongen\",Berekeningen1!R31,'Resultaten_meting 1'!$A$12=\"Meisje\",Berekeningen1!R41,'Resultaten_meting 1'!$A$12=\"Vul geslacht in, anders kan de BETEKENIS NIET worden weergegeven\",\"0\")","v":{"$error":"#N/A"}},null,"Verlaagd",{"$f":"_xlfn.IFS('Resultaten_meting 1'!$A$12=\"Jongen\",Berekeningen1!U31,'Resultaten_meting 1'!$A$12=\"Meisje\",Berekeningen1!U41,'Resultaten_meting 1'!$A$12=\"Vul geslacht in, anders kan de BETEKENIS NIET worden weergegeven\",\"0\")","v":{"$error":"#N/A"}},{"$f":"_xlfn.IFS('Resultaten_meting 1'!$A$12=\"Jongen\",Berekeningen1!V31,'Resultaten_meting 1'!$A$12=\"Meisje\",Berekeningen1!V41,'Resultaten_meting 1'!$A$12=\"Vul geslacht in, anders kan de BETEKENIS NIET worden weergegeven\",\"0\")","v":{"$error":"#N/A"}},{"$f":"_xlfn.IFS('Resultaten_meting 1'!$A$12=\"Jongen\",Berekeningen1!W31,'Resultaten_meting 1'!$A$12=\"Meisje\",Berekeningen1!W41,'Resultaten_meting 1'!$A$12=\"Vul geslacht in, anders kan de BETEKENIS NIET worden weergegeven\",\"0\")","v":{"$error":"#N/A"}},{"$f":"_xlfn.IFS('Resultaten_meting 1'!$A$12=\"Jongen\",Berekeningen1!X31,'Resultaten_meting 1'!$A$12=\"Meisje\",Berekeningen1!X41,'Resultaten_meting 1'!$A$12=\"Vul geslacht in, anders kan de BETEKENIS NIET worden weergegeven\",\"0\")","v":{"$error":"#N/A"}}]
[null,"Arousal",0,0,"Normaal",{"$f":"IF(D52<0.285,0,\"\")","v":0},{"$f":"IF(AND(D52>0.285,D52<0.428),1,\"\")","v":""},{"$f":"IF(AND(D52>0.428,D52<0.714),2,\"\")","v":""},{"$f":"IF(D52>0.713,3,\"\")","v":""},0,null,"7 Items","Verhoogd",{"$f":"_xlfn.IFS('Resultaten_meting 1'!$A$12=\"Jongen\",Berekeningen1!N32,'Resultaten_meting 1'!$A$12=\"Meisje\",Berekeningen1!N42,'Resultaten_meting 1'!$A$12=\"Vul geslacht in, anders kan de BETEKENIS NIET worden weergegeven\",\"0\")","v":{"$error":"#N/A"}},{"$f":"_xlfn.IFS('Resultaten_meting 1'!$A$12=\"Jongen\",Berekeningen1!O32,'Resultaten_meting 1'!$A$12=\"Meisje\",Berekeningen1!O42,'Resultaten_meting 1'!$A$12=\"Vul geslacht in, anders kan de BETEKENIS NIET worden weergegeven\",\"0\")","v":{"$error":"#N/A"}},{"$f":"_xlfn.IFS('Resultaten_meting 1'!$A$12=\"Jongen\",Berekeningen1!P32,'Resultaten_meting 1'!$A$12=\"Meisje\",Berekeningen1!P42,'Resultaten_meting 1'!$A$12=\"Vul geslacht in, anders kan de BETEKENIS NIET worden weergegeven\",\"0\")","v":{"$error":"#N/A"}},{"$f":"_xlfn.IFS('Resultaten_meting 1'!$A$12=\"Jongen\",Berekeningen1!Q32,'Resultaten_meting 1'!$A$12=\"Meisje\",Berekeningen1!Q42,'Resultaten_meting 1'!$A$12=\"Vul geslacht in, anders kan de BETEKENIS NIET worden weergegeven\",\"0\")","v":{"$error":"#N/A"}},{"$f":"_xlfn.IFS('Resultaten_meting 1'!$A$12=\"Jongen\",Berekeningen1!R32,'Resultaten_meting 1'!$A$12=\"Meisje\",Berekeningen1!R42,'Resultaten_meting 1'!$A$12=\"Vul geslacht in, anders kan de BETEKENIS NIET worden weergegeven\",\"0\")","v":{"$error":"#N/A"}},null,"Licht Verlaagd",{"$f":"_xlfn.IFS('Resultaten_meting 1'!$A$12=\"Jongen\",Berekeningen1!U32,'Resultaten_meting 1'!$A$12=\"Meisje\",Berekeningen1!U42,'Resultaten_meting 1'!$A$12=\"Vul geslacht in, anders kan de BETEKENIS NIET worden weergegeven\",\"0\")","v":{"$error":"#N/A"}},{"$f":"_xlfn.IFS('Resultaten_meting 1'!$A$12=\"Jongen\",Berekeningen1!V32,'Resultaten_meting 1'!$A$12=\"Meisje\",Berekeningen1!V42,'Resultaten_meting 1'!$A$12=\"Vul geslacht in, anders kan de BETEKENIS NIET worden weergegeven\",\"0\")","v":{"$error":"#N/A"}},{"$f":"_xlfn.IFS('Resultaten_meting 1'!$A$12=\"Jongen\",Berekeningen1!W32,'Resultaten_meting 1'!$A$12=\"Meisje\",Berekeningen1!W42,'Resultaten_meting 1'!$A$12=\"Vul geslacht in, anders kan de BETEKENIS NIET worden weergegeven\",\"0\")","v":{"$error":"#N/A"}},{"$f":"_xlfn.IFS('Resultaten_meting 1'!$A$12=\"Jongen\",Berekeningen1!X32,'Resultaten_meting 1'!$A$12=\"Meisje\",Berekeningen1!X42,'Resultaten_meting 1'!$A$12=\"Vul geslacht in, anders kan de BETEKENIS NIET worden weergegeven\",\"0\")","v":{"$error":"#N/A"}}]
[null,"Dissociatie",0,0,"Normaal",{"$f":"IF(D53<0.333,0,\"\")","v":0},{"$f":"IF(AND(D53>0.332,D53<0.5),1,\"\")","v":""},{"$f":"IF(AND(D53>0.499,D53<0.833),2,\"\")","v":""},{"$f":"IF(D53>0.832,3,\"\")","v":""},0,null,"6 Items","Sterk verhoogd",{"$f":"_xlfn.IFS('Resultaten_meting 1'!$A$12=\"Jongen\",Berekeningen1!N33,'Resultaten_meting 1'!$A$12=\"Meisje\",Berekeningen1!N43,'Resultaten_meting 1'!$A$12=\"Vul geslacht in, anders kan de BETEKENIS NIET worden weergegeven\",\"0\")","v":{"$error":"#N/A"}},{"$f":"_xlfn.IFS('Resultaten_meting 1'!$A$12=\"Jongen\",Berekeningen1!O33,'Resultaten_meting 1'!$A$12=\"Meisje\",Berekeningen1!O43,'Resultaten_meting 1'!$A$12=\"Vul geslacht in, anders kan de BETEKENIS NIET worden weergegeven\",\"0\")","v":{"$error":"#N/A"}},{"$f":"_xlfn.IFS('Resultaten_meting 1'!$A$12=\"Jongen\",Berekeningen1!P33,'Resultaten_meting 1'!$A$12=\"Meisje\",Berekeningen1!P43,'Resultaten_meting 1'!$A$12=\"Vul geslacht in, anders kan de BETEKENIS NIET worden weergegeven\",\"0\")","v":{"$error":"#N/A"}},{"$f":"_xlfn.IFS('Resultaten_meting 1'!$A$12=\"Jongen\",Berekeningen1!Q33,'Resultaten_meting 1'!$A$12=\"Meisje\",Berekeningen1!Q43,'Resultaten_meting 1'!$A$12=\"Vul geslacht in, anders kan de BETEKENIS NIET worden weergegeven\",\"0\")","v":{"$error":"#N/A"}},{"$f":"_xlfn.IFS('Resultaten_meting 1'!$A$12=\"Jongen\",Berekeningen1!R33,'Resultaten_meting 1'!$A$12=\"Meisje\",Berekeningen1!R43,'Resultaten_meting 1'!$A$12=\"Vul geslacht in, anders kan de BETEKENIS NIET worden weergegeven\",\"0\")","v":{"$error":"#N/A"}},null,"Normaal",{"$f":"_xlfn.IFS('Resultaten_meting 1'!$A$12=\"Jongen\",Berekeningen1!U33,'Resultaten_meting 1'!$A$12=\"Meisje\",Berekeningen1!U43,'Resultaten_meting 1'!$A$12=\"Vul geslacht in, anders kan de BETEKENIS NIET worden weergegeven\",\"0\")","v":{"$error":"#N/A"}},{"$f":"_xlfn.IFS('Resultaten_meting 1'!$A$12=\"Jongen\",Berekeningen1!V33,'Resultaten_meting 1'!$A$12=\"Meisje\",Berekeningen1!V43,'Resultaten_meting 1'!$A$12=\"Vul geslacht in, anders kan de BETEKENIS NIET worden weergegeven\",\"0\")","v":{"$error":"#N/A"}},{"$f":"_xlfn.IFS('Resultaten_meting 1'!$A$12=\"Jongen\",Berekeningen1!W33,'Resultaten_meting 1'!$A$12=\"Meisje\",Berekeningen1!W43,'Resultaten_meting 1'!$A$12=\"Vul geslacht in, anders kan de BETEKENIS NIET worden weergegeven\",\"0\")","v":{"$error":"#N/A"}},{"$f":"_xlfn.IFS('Resultaten_meting 1'!$A$12=\"Jongen\",Berekeningen1!X33,'Resultaten_meting 1'!$A$12=\"Meisje\",Berekeningen1!X43,'Resultaten_meting 1'!$A$12=\"Vul geslacht in, anders kan de BETEKENIS NIET worden weergegeven\",\"0\")","v":{"$error":"#N/A"}}]
[]
[null,"Beschermende factoren","Somscore","Gemiddelde score subschalen","Betekenis","Sterk verlaagd","Verlaagd","Licht verlaagd","Normaal","Betekenis",null,null,"Kleuren voor in grafiek",null,null,null,null,null,null,"Kleuren voor in grafiek"]
[null,"veiligheid en relaties",{"$f":"B15","v":0},{"$f":"C15","v":0},{"$f":"_xlfn.IFS(J56=3,\"Sterk verlaagd\",J56=2,\"Verlaagd\",J56=1,\"Licht verlaagd\",J56=0,\"Normaal\")","v":"Sterk verlaagd"},{"$f":"IF(D56<1.714,3,\"\")","v":3},{"$f":"IF(AND(D56>1.713,D56<1.857),2,\"\")","v":""},{"$f":"IF(AND(D56>1.856,D56<2),1,\"\")","v":""},{"$f":"IF(D56>1.999,0,\"\")","v":""},{"$f":"SUM(F56:I56)","v":3},null,"7 Items",null,"Herbeleving","Vermijding","Negatieve veranderingen cognities en stemming","Arousal","Dissociatie",null,null,"Veiligheid en relaties","Zelfregulatie","Zelfbeeld","Dagelijks leven"]
[null,"zelfregulatie",{"$f":"B16","v":0},0,{"$f":"_xlfn.IFS(J57=3,\"Sterk verlaagd\",J57=2,\"Verlaagd\",J57=1,\"Licht verlaagd\",J57=0,\"Normaal\")","v":"Sterk verlaagd"},{"$f":"IF(D57<0.833,3,\"\")","v":3},{"$f":"IF(AND(D57>0.832,D57<1.165),2,\"\")","v":""},{"$f":"IF(AND(D57>1.166,D57<1.5),1,\"\")","v":""},{"$f":"IF(D57>1.499,0,\"\")","v":""},3,null,"6 Items","Meting 1",{"$f":"N29","v":0},{"$f":"O29","v":0},0,0,0,null,"Meting 1",{"$f":"U29","v":0},{"$f":"V29","v":0},{"$f":"W29","v":0},{"$f":"X29","v":0}]
[null,"zelfbeeld",0,0,{"$f":"_xlfn.IFS(J58=3,\"Sterk verlaagd\",J58=2,\"Verlaagd\",J58=1,\"Licht verlaagd\",J58=0,\"Normaal\")","v":"Sterk verlaagd"},{"$f":"IF(D58<1,3,\"\")","v":3},{"$f":"IF(AND(D58>0.999,D58<1.333),2,\"\")","v":""},{"$f":"IF(AND(D58>1.332,D58<1.5),1,\"\")","v":""},{"$f":"IF(D58>1.499,0,\"\")","v":""},3,null,"6 Items","Normaal",{"$f":"N50","v":{"$error":"#N/A"}},{"$f":"O50","v":{"$error":"#N/A"}},{"$error":"#N/A"},{"$error":"#N/A"},{"$error":"#N/A"},null,"Sterk verlaagd",{"$f":"U50","v":{"$error":"#N/A"}},{"$f":"V50","v":{"$error":"#N/A"}},{"$f":"W50","v":{"$error":"#N/A"}},{"$f":"X50","v":{"$error":"#N/A"}}]
[null,"dagelijks leven",0,0,"Sterk verlaagd",{"$f":"IF(D59<1.833,3,\"\")","v":3},{"$f":"IF(AND(D59>1.832,D59<2),2,\"\")","v":""},{"$f":"IF(AND(D59>1.999,D59<2.333),1,\"\")","v":""},{"$f":"IF(D59>2.332,0,\"\")","v":""},3,null,"6 Items","Licht verhoogd",{"$f":"N51-N50","v":{"$error":"#N/A"}},{"$f":"O51-O50","v":{"$error":"#N/A"}},{"$error":"#N/A"},{"$error":"#N/A"},{"$error":"#N/A"},null,"Verlaagd",{"$f":"U51-U50","v":{"$error":"#N/A"}},{"$error":"#N/A"},{"$error":"#N/A"},{"$error":"#N/A"}]
[null,null,null,null,null,null,null,null,null,null,null,null,"Verhoogd",{"$f":"N52-N51","v":{"$error":"#N/A"}},{"$f":"O52-O51","v":{"$error":"#N/A"}},{"$error":"#N/A"},{"$error":"#N/A"},{"$error":"#N/A"},null,"Licht Verlaagd",{"$error":"#N/A"},{"$error":"#N/A"},{"$error":"#N/A"},{"$error":"#N/A"}]
[null,null,null,null,null,null,null,null,null,null,null,null,"Sterk verhoogd",{"$f":"N53-N52","v":{"$error":"#N/A"}},{"$f":"O53-O52","v":{"$error":"#N/A"}},{"$error":"#N/A"},{"$error":"#N/A"},{"$error":"#N/A"},null,"Normaal",{"$f":"U53-U52","v":{"$error":"#N/A"}},{"$f":"V53-V52","v":{"$error":"#N/A"}},{"$error":"#N/A"},{"$error":"#N/A"}]
[null,null,null,null,null,null,null,null,null,null,null,null,null,null,null,null,null,null,null,null,{"$f":"SUM(U58:U61)","v":{"$error":"#N/A"}},{"$f":"SUM(V58:V61)","v":{"$error":"#N/A"}},{"$error":"#N/A"},{"$error":"#N/A"}]

{"sheet":"Resultaten_meting 1","index":4,"n_rows":28,"n_cols":5,"rows_kept":28,"cut":false,"hidden":false,"merged":[]}
[null,null,null,{"$f":"Berekeningen1!A22","v":"Meting 1 is NIET goed ingevuld. De resultaten zijn ONBETROUWBAAR."}]
[]
["Leerling",null,null,"Leerkracht"]
["Naam leerling: ",{"$f":"ADS_gegevens!C3","v":"Vul naam leerling in"},null,"Naam leerkracht: ",{"$f":"ADS_gegevens!M3","v":"Vul naam leerkracht in"}]
["Geslacht:",{"$f":"ADS_gegevens!C4","v":"Juiste antwoord moet nog worden geselecteerd"},null,"Groep:",{"$f":"ADS_gegevens!M4","v":"Vul groep in"}]
["Geboortedatum:",{"$f":"ADS_gegevens!C5","v":"Vul de geboortedatum in"},null,"School:",{"$f":"ADS_gegevens!M5","v":"Vul school in"}]
["Leeftijd bij afname:",{"$f":"ADS_gegevens!C14","v":"Leeftijd onbekend"}]
[]
["Zorgen:",{"$f":"ADS_gegevens!C35","v":"Selecteer het juiste antwoord"}]
[]
[]
[{"$f":"_xlfn.IFS(ADS_gegevens!H4=2,\"Jongen\",ADS_gegevens!H4=4,\"Meisje\",ADS_gegevens!H4=0,\"BETEKENIS wordt NIET WEERGEGEVEN: Vul geslacht in. Bij 'Anders/Onbekend' Kies 'Meisje'.\")","v":"BETEKENIS wordt NIET WEERGEGEVEN: Vul geslacht in. Bij 'Anders/Onbekend' Kies 'Meisje'."}]
[null,null,"Totaal score","Interpretatie"]
[null,"Risicofactoren ",{"$f":"Berekeningen1!C25","v":0},{"$f":"_xlfn.IFS(ADS_gegevens!H4=2,Berekeningen1!D25,ADS_gegevens!H4=4,Berekeningen1!D44,ADS_gegevens!H4=0,\"Vul eerst het geslacht in\")","v":"Vul eerst het geslacht in"}]
[null,"Beschermende factoren ",{"$f":"Berekeningen1!C27","v":0},{"$f":"_xlfn.IFS(ADS_gegevens!H4=2,Berekeningen1!D27,ADS_gegevens!H4=4,Berekeningen1!D46,ADS_gegevens!H4=0,\"Vul eerst het geslacht in\")","v":"Vul eerst het geslacht in"}]
[]
[null,"Risicofactoren","Somscore","Gemiddelde score subschalen","Interpretatie"]
[null,"Herbeleving",{"$f":"Berekeningen1!C30","v":0},{"$f":"Berekeningen1!D30","v":0},{"$f":"_xlfn.IFS(ADS_gegevens!$H$4=2,Berekeningen1!E30,ADS_gegevens!$H$4=4,Berekeningen1!E49,ADS_gegevens!$H$4=0,\"Vul eerst het geslacht in\")","v":"Vul eerst het geslacht in"}]
[null,"Vermijding",{"$f":"Berekeningen1!C31","v":0},{"$f":"Berekeningen1!D31","v":0},{"$f":"_xlfn.IFS(ADS_gegevens!$H$4=2,Berekeningen1!E31,ADS_gegevens!$H$4=4,Berekeningen1!E50,ADS_gegevens!$H$4=0,\"Vul eerst het geslacht in\")","v":"Vul eerst het geslacht in"}]
[null,"Negatieve veranderingen cognities en stemming",{"$f":"Berekeningen1!C32","v":0},{"$f":"Berekeningen1!D32","v":0},{"$f":"_xlfn.IFS(ADS_gegevens!$H$4=2,Berekeningen1!E32,ADS_gegevens!$H$4=4,Berekeningen1!E51,ADS_gegevens!$H$4=0,\"Vul eerst het geslacht in\")","v":"Vul eerst het geslacht in"}]
[null,"Arousal",{"$f":"Berekeningen1!C33","v":0},{"$f":"Berekeningen1!D33","v":0},{"$f":"_xlfn.IFS(ADS_gegevens!$H$4=2,Berekeningen1!E33,ADS_gegevens!$H$4=4,Berekeningen1!E52,ADS_gegevens!$H$4=0,\"Vul eerst het geslacht in\")","v":"Vul eerst het geslacht in"}]
[null,"Dissociatie",{"$f":"Berekeningen1!C34","v":0},{"$f":"Berekeningen1!D34","v":0},{"$f":"_xlfn.IFS(ADS_gegevens!$H$4=2,Berekeningen1!E34,ADS_gegevens!$H$4=4,Berekeningen1!E53,ADS_gegevens!$H$4=0,\"Vul eerst het geslacht in\")","v":"Vul eerst het geslacht in"}]
[]
[null,"Beschermende factoren","Somscore","Gemiddelde score subschalen","Interpretatie"]
[null,"Veiligheid en relaties",{"$f":"Berekeningen1!C37","v":0},{"$f":"Berekeningen1!D37","v":0},{"$f":"_xlfn.IFS(ADS_gegevens!$H$4=2,Berekeningen1!E37,ADS_gegevens!$H$4=4,Berekeningen1!E56,ADS_gegevens!$H$4=0,\"Vul eerst het geslacht in\")","v":"Vul eerst het geslacht in"}]
[null,"Zelfregulatie",{"$f":"Berekeningen1!C38","v":0},{"$f":"Berekeningen1!D38","v":0},{"$f":"_xlfn.IFS(ADS_gegevens!$H$4=2,Berekeningen1!E38,ADS_gegevens!$H$4=4,Berekeningen1!E57,ADS_gegevens!$H$4=0,\"Vul eerst het geslacht in\")","v":"Vul eerst het geslacht in"}]
[null,"Zelfbeeld",{"$f":"Berekeningen1!C39","v":0},{"$f":"Berekeningen1!D39","v":0},{"$f":"_xlfn.IFS(ADS_gegevens!$H$4=2,Berekeningen1!E39,ADS_gegevens!$H$4=4,Berekeningen1!E58,ADS_gegevens!$H$4=0,\"Vul eerst het geslacht in\")","v":"Vul eerst het geslacht in"}]
[null,"Dagelijks leven",{"$f":"Berekeningen1!C40","v":0},{"$f":"Berekeningen1!D40","v":0},{"$f":"_xlfn.IFS(ADS_gegevens!$H$4=2,Berekeningen1!E40,ADS_gegevens!$H$4=4,Berekeningen1!E59,ADS_gegevens!$H$4=0,\"Vul eerst het geslacht in\")","v":"Vul eerst het geslacht in"}]

{"sheet":"ReBTOSS_meting 2","index":5,"n_rows":65,"n_cols":20,"rows_kept":65,"cut":false,"hidden":false,"merged":[[0,4,0,5],[2,3,2,6],[3,1,3,2],[3,3,5,3],[3,4,5,6],[4,1,4,2],[5,1,5,2],[46,0,47,0],[52,0,53,0],[58,0,59,0],[8,0,10,0],[13,0,15,0],[18,0,20,0],[24,0,26,0],[31,0,32,0],[39,0,40,0]]}
[null,null,null,"Voortgang",{"$f":"IF(N65=54,\"KLAAR!\",\"…nog niet klaar\")","v":"…nog niet klaar"},null,null,null,null,null,null,null,null,null,null,null,null,"Totaalscore Risico",null,{"$f":"SUM(Q13+Q18+Q24+Q31+Q37)","v":0}]
[]
[null,null,null,"Ingevulde items:",null,null,null,null,null,null,null,null,null,null,null,null,null,"Totaal score Beschermende",null,{"$f":"SUM(Q46+Q52+Q58+Q64)","v":0}]
[null,null,null,{"$f":"(N65)&\" item(s)\"","v":"0 item(s)"}]
[]
[]
[]
["RISICOFACTOREN",null,"In de afgelopen twee weken…","NIET           van toepassing","BEETJE         van toepassing","VAAK            van toepassing","ZEER VAAK     van toepassing",null,null,null,null,null,null,"vraag ingevuld?",null,null,"Som Cluster","Aantal items per cluster",null,"Gemiddelde Clusterscore"]
["1. Herbeleving van de traumatische gebeurtenis(sen)","1.1","… betrok de leerling  thema's of aspecten van een nare gebeurtenis/ervaring in het spel.",null,null,null,null,{"$f":"IF(M9=3,\"Check\", IF(M9=4,\"Vul in\",IF(M9<3,\"U mag 1 antwoord aankruisen\")))","v":"Vul in"},{"$f":"IF(D9=\"\",\"\",0)","v":""},{"$f":"IF(E9=\"\",\"\",1)","v":""},{"$f":"IF(F9=\"\",\"\",2)","v":""},{"$f":"IF(G9=\"\",\"\",3)","v":""},{"$f":"COUNTBLANK(I9:L9)","v":4},{"$f":"IF(M9=3,1,\"\")","v":""},{"$f":"COUNTIF($I$9:$L$13,0)","v":0},0]
[null,"1.2","… maakte de leerling een vermoeide indruk.",null,null,null,null,{"$f":"IF(M10=3,\"Check\", IF(M10=4,\"Vul in\",IF(M10<3,\"U mag 1 antwoord aankruisen\")))","v":"Vul in"},"","","",{"$f":"IF(G10=\"\",\"\",3)","v":""},{"$f":"COUNTBLANK(I10:L10)","v":4},{"$f":"IF(M10=3,1,\"\")","v":""},{"$f":"COUNTIF($I$9:$K$13,1)","v":0},1]
[null,"1.3","… maakte de leerling  een angstige, bange indruk.",null,null,null,null,{"$f":"IF(M11=3,\"Check\", IF(M11=4,\"Vul in\",IF(M11<3,\"U mag 1 antwoord aankruisen\")))","v":"Vul in"},"","","","",4,"",{"$f":"COUNTIF($I$9:$K$13,2)","v":0},2]
[null,"1.4","… leek de leerling last te hebben van lichamelijke klachten (hierbij kunt u denken aan hoofdpijn of buikpijn).",null,null,null,null,"Vul in","","","","",4,"",{"$f":"COUNTIF($I$9:$L$13,3)","v":0},3]
[null,"1.5","… reageerde de leerling, in een neutrale situatie, op een niet neutrale manier.",null,null,null,null,"Vul in","","","","",4,"",null,null,{"$f":"SUM(I9:L13)","v":0},5,null,{"$f":"Q13/R13","v":0}]
["2. Vermijden van prikkels die worden geassocieerd met de traumatische gebeurtenis(sen) en afstomping van algemene reactiviteit.","2.1","… vermeed de leerling  om te praten over (trauma)gevoelige onderwerpen.",null,null,null,null,"Vul in","","","","",4,"",{"$f":"COUNTIF($I$14:$L$18,0)","v":0},0]
[null,"2.2","… vermeed de leerling bepaalde plaatsen of voorwerpen.",null,null,null,null,"Vul in","","","","",4,"",{"$f":"COUNTIF($I$14:$L$18,1)","v":0},1]
[null,"2.3","… vermeed de leerling bepaalde mensen, gesprekken of (sociale) situaties.",null,null,null,null,"Vul in","","","","",4,"",{"$f":"COUNTIF($I$14:$L$18,2)","v":0},2]
[null,"2.4","… vermeed de leerling bepaalde activiteiten.",null,null,null,null,"Vul in","","","","",4,"",{"$f":"COUNTIF($I$14:$L$18,3)","v":0},3]
[null,"2.5","… vertoonde de leerling beperkt affect.",null,null,null,null,"Vul in","","","","",4,"",null,null,{"$f":"SUM(I14:L18)","v":0},5,null,{"$f":"Q18/R18","v":0}]
["3. Negatieve veranderingen in cognities (overtuigingen of verwachtingen) en stemming (gemoedstoestand)","3.1","… leek de leerling zich schuldig te voelen over bepaalde zaken.",null,null,null,null,"Vul in","","","",{"$f":"IF(G19=\"\",\"\",3)","v":""},4,"",{"$f":"COUNTIF($I$19:$L$24,0)","v":0},0]
[null,"3.2","… deed de leerling negatieve uitspraken over zichzelf, anderen of de wereld.",null,null,null,null,"Vul in","","","",{"$f":"IF(G20=\"\",\"\",3)","v":""},4,"",{"$f":"COUNTIF($I$19:$L$24,1)","v":0},1]
[null,"3.3","… toonde de leerling beperkte interesse (in vergelijking met andere leerlingen) voor belangrijke activiteiten.",null,null,null,null,"Vul in","","","","",4,"",{"$f":"COUNTIF($I$19:$L$24,2)","v":0},2]
[null,"3.4","… maakte de leerling een verdrietige indruk.",null,null,null,null,"Vul in","","","","",4,"",{"$f":"COUNTIF($I$19:$L$24,3)","v":0},3]
[null,"3.5","… maakte de leerling een beschaamde indruk.",null,null,null,null,"Vul in","","","","",4,""]
[null,"3.6","… zocht de leerling geen contact met anderen, zonderde zich af.",null,null,null,null,"Vul in","","","","",4,"",null,null,{"$f":"SUM(I19:L24)","v":0},6,null,{"$f":"Q24/R24","v":0}]
["4. Verhoogde of verlaagde arousal (verhoogde prikkelbaarheid)","4.1","… maakte de leerling een boze indruk.",null,null,null,null,"Vul in","","","",{"$f":"IF(G25=\"\",\"\",3)","v":""},4,"",{"$f":"COUNTIF($I$25:$L$31,0)","v":0},0]
[null,"4.2","… was de leerling onvoorzichtig.",null,null,null,null,"Vul in","","","",{"$f":"IF(G26=\"\",\"\",3)","v":""},4,"",{"$f":"COUNTIF($I$25:$L$31,1)","v":0},1]
[null,"4.3","… was de leerling over-voorzichtig of op de hoede zonder duidelijke reden.",null,null,null,null,"Vul in","","","","",4,"",{"$f":"COUNTIF($I$25:$L$31,2)","v":0},2]
[null,"4.4","… vergat de leerling gewone dagelijkse dingen.",null,null,null,null,"Vul in","","","","",4,"",{"$f":"COUNTIF($I$25:$L$31,3)","v":0},3]
[null,"4.5","… vond de leerling het moeilijk om zijn/haar aandacht ergens bij te houden of om zich te concentreren.",null,null,null,null,"Vul in","","","","",4,""]
[null,"4.6","… schrok de leerling (overdreven) snel of was zenuwachtig.",null,null,null,null,"Vul in","","","","",4,""]
[null,"4.7","… pestte de leerling andere leerlingen.",null,null,null,null,"Vul in","","","","",4,"",null,null,{"$f":"SUM(I25:L31)","v":0},7,null,{"$f":"Q31/R31","v":0}]
["5. Dissociëren","5.1","… gedroeg de leerling zich jonger dan je a.d.h.v. zijn/haar leeftijd zou verwachten.",null,null,null,null,"Vul in","","","",{"$f":"IF(G32=\"\",\"\",3)","v":""},4,"",{"$f":"COUNTIF($I$32:$L$37,0)","v":0},0]
[null,"5.2","… wisselde de leerling plotseling van gedrag.",null,null,null,null,"Vul in","","","",{"$f":"IF(G33=\"\",\"\",3)","v":""},4,"",{"$f":"COUNTIF($I$32:$L$37,1)","v":0},1]
[null,"5.3","… wisselde de leerling snel van emotie.",null,null,null,null,"Vul in","","","","",4,"",{"$f":"COUNTIF($I$32:$L$37,2)","v":0},2]
[null,"5.4","… kon de leerling de ene dag iets wel en de andere dag absoluut niet.",null,null,null,null,"Vul in","","","","",4,"",{"$f":"COUNTIF($I$32:$L$37,3)","v":0},3]
[null,"5.5","… leek de leerling geen herinnering te hebben aan dingen die (net) waren gebeurd of gezegd.",null,null,null,null,"Vul in","","","","",4,""]
[null,"5.6","… gaf de leerling soms geen reactie.",null,null,null,null,"Vul in","","","","",4,"",null,null,{"$f":"SUM(I32:L37)","v":0},6,null,{"$f":"Q37/R37","v":0}]
[null,null,null,null,null,null,null,null,""," ",{"$f":"IF(G38=\"\",\"\",2)","v":""},null,null,{"$f":"IF(M38=3,1,\"\")","v":""}]
["BESCHERMENDE FACTOREN",null,"In de afgelopen twee weken…","NIET             van toepassing","BEETJE       van toepassing","VAAK           van toepassing","ZEER VAAK      van toepassing",null,null,null,null,null,null,""]
["6. Veiligheid en relaties","6.1","… kon de leerling goed overweg met de leerkracht(en): De leerling reageerde positief in contact naar de leerkracht(en).",null,null,null,null,{"$f":"IF(M40=3,\"Check\", IF(M40=4,\"Vul in\",IF(M40<3,\"U mag 1 antwoord aankruisen\")))","v":"Vul in"},{"$f":"IF(D40=\"\",\"\",0)","v":""},{"$f":"IF(E40=\"\",\"\",1)","v":""},{"$f":"IF(F40=\"\",\"\",2)","v":""},{"$f":"IF(G40=\"\",\"\",3)","v":""},4,"",{"$f":"COUNTIF($I$40:$L$46,0)","v":0},0]
[null,"6.2","… kon de leerling goed overweg met de leerkracht(en): De leerling nam initiatief in contact met leerkracht(en).",null,null,null,null,"Vul in","","","",{"$f":"IF(G41=\"\",\"\",3)","v":""},4,"",{"$f":"COUNTIF($I$40:$L$46,1)","v":0},1]
[null,"6.3","… maakte de leerling positief contact met andere leerlingen.",null,null,null,null,"Vul in","","","","",4,"",{"$f":"COUNTIF($I$40:$L$46,2)","v":0},2]
[null,"6.4","… zochten andere leerlingen positief contact met de leerling.",null,null,null,null,"Vul in","","","","",4,"",{"$f":"COUNTIF($I$40:$L$46,3)","v":0},3]
[null,"6.5","… had de leerling het naar zijn/haar zin op school.",null,null,null,null,"Vul in","","","","",4,""]
[null,"6.6","… maakte de leerling een blije indruk.",null,null,null,null,"Vul in","","","","",4,""]
[null,"6.7","… werd de leerling gewaardeerd in de groep (goede sociale status).",null,null,null,null,"Vul in","","","","",4,"",null,null,{"$f":"SUM(I40:L46)","v":0},7,null,{"$f":"Q46/R46","v":0}]
["7. Zelfregulatie","7.1","… maakte de leerling op een adequate manier zijn/haar gevoelens duidelijk.",null,null,null,null,"Vul in","","","","",4,"",{"$f":"COUNTIF($I$47:$L$52,0)","v":0},0]
[null,"7.2","… was de leerling in staat correct te reflecteren en te reageren op andermans gedrag en gevoelens.",null,null,null,null,"Vul in","","","","",4,"",{"$f":"COUNTIF($I$47:$L$52,1)","v":0},1]
[null,"7.3","… was de leerling in staat zichzelf (weer) rustig te krijgen wanneer hij/zij boos, verdrietig of angstig was.",null,null,null,null,"Vul in","","","","",4,"",{"$f":"COUNTIF($I$47:$L$52,2)","v":0},2]
[null,"7.4","… was de leerling, met behulp van een ander, in staat (weer) rustig te worden wanneer hij/zij boos verdrietig of angstig was.",null,null,null,null,"Vul in","","","","",4,"",{"$f":"COUNTIF($I$47:$L$52,3)","v":0},3]
[null,"7.5","… was de leerling flexibel in zijn/haar gedrag.",null,null,null,null,"Vul in","","","","",4,""]
[null,"7.6","… dacht de leerling na voor hijzij iets deed.",null,null,null,null,"Vul in","","","","",4,"",null,null,{"$f":"SUM(I47:L52)","v":0},6,null,{"$f":"Q52/R52","v":0}]
["8. Positief (neutraal) zelfbeeld","8.1","… maakte de leerling een trotse indruk.",null,null,null,null,"Vul in","","","","",4,"",{"$f":"COUNTIF($I$53:$L$58,0)","v":0},0]
[null,"8.2","… praatte de leerling op een positieve manier over zichzelf.",null,null,null,null,"Vul in","","","","",4,"",{"$f":"COUNTIF($I$53:$L$58,1)","v":0},1]
[null,"8.3","… kwam de leerling met (veel) nieuwe ideeën.",null,null,null,null,"Vul in","","","","",4,"",{"$f":"COUNTIF($I$53:$L$58,2)","v":0},2]
[null,"8.4","… kon de leerling goed omgaan met kritiek.",null,null,null,null,"Vul in","","","","",4,"",{"$f":"COUNTIF($I$53:$L$58,3)","v":0},3]
[null,"8.5","… had de leerling vertrouwen in zichzelf.",null,null,null,null,"Vul in","","","","",4,""]
[null,"8.6","… durfde de leerling nieuwe uitdagingen aan te gaan.",null,null,null,null,"Vul in","","","","",4,"",null,null,{"$f":"SUM(I53:L58)","v":0},6,null,{"$f":"Q58/R58","v":0}]
["9. Het dagelijks leven","9.1","… at de leerling goed.",null,null,null,null,"Vul in","","","","",4,"",{"$f":"COUNTIF($I$59:$L$64,0)","v":0},0]
[null,"9.2","… zag de leerling er verzorgd uit.",null,null,null,null,"Vul in","","","","",4,"",{"$f":"COUNTIF($I$59:$L$64,1)","v":0},1]
[null,"9.3","… was de leerling lichamelijk actief geweest.",null,null,null,null,"Vul in","","","","",4,"",{"$f":"COUNTIF($I$59:$L$64,2)","v":0},2]
[null,"9.4","… kwam de leerling op tijd op school.",null,null,null,null,"Vul in","","","","",4,"",{"$f":"COUNTIF($I$59:$L$64,3)","v":0},3]
[null,"9.5","… had de leerling weinig schoolverzuim.",null,null,null,null,"Vul in","","","","",4,""]
[null,"9.6","… waren de ouders van de leerling betrokken.",null,null,null,null,"Vul in","","","","",4,"",null,null,{"$f":"SUM(I59:L64)","v":0},6,null,{"$f":"Q64/R64","v":0}]
[null,null,null,null,null,null,null,null,null,null,null,null,{"$f":"(SUM(M9:M64))/2","v":108},{"$f":"SUM(N9:N64)","v":0}]

{"sheet":"Berekeningen 2","index":6,"n_rows":62,"n_cols":24,"rows_kept":62,"cut":false,"hidden":true,"merged":[[13,5,13,8],[14,5,14,8],[15,12,15,15],[15,18,15,21],[0,5,0,8],[0,12,0,15],[0,18,0,21],[2,5,2,8],[7,12,7,15],[7,18,7,21]]}
[null,null,null,null,null,null,null,null,null,null,null,null,"totaal risicofactoren - somscore",null,null,null,null,null,"totaal beschermende factoren - somscore"]
[null,null,null,null,null,null,null,null,null,null,null,null,"normaal","licht verhoogd","verhoogd","sterk verhoogd",null,null,"sterk verlaagd","verlaagd","licht verlaagd","normaal"]
["Meting 1","Totaal score",null,null,null,null,null,null,null,null,null,"jongens (n = 198)","0 - 9","10 - 19","20 - 25","26 - 87",null,"jongens (n = 198)","0 - 33","34 - 39","40 - 45","46 - 75"]
["Risicofactoren ",{"$f":"'ReBTOSS_meting 2'!T1","v":0},null,null,null,null,null,null,null,null,null,"meisjes (n = 207)","0 - 5","6 - 13","14 - 22","23 - 87",null,"meisjes (n = 207)","0 - 37","38 - 43","44 - 49","50 - 75"]
["Beschermende factoren ",{"$f":"'ReBTOSS_meting 2'!T3","v":0}]
[]
["Risicofactoren","Somscore","Gemiddelde score subschalen"]
["Herbeleving",{"$f":"'ReBTOSS_meting 2'!Q13","v":0},{"$f":"'ReBTOSS_meting 2'!T13","v":0},null,null,null,null,null,null,null,null,null,"risicofactoren subschalen - gemiddelde score",null,null,null,null,null,"beschermende factoren subschalen - gemiddelde score"]
["Vermijding",{"$f":"'ReBTOSS_meting 2'!Q18","v":0},{"$f":"'ReBTOSS_meting 2'!T18","v":0},null,null,null,null,null,null,null,null,"jongens (n = 198)","normaal","licht verhoogd","verhoogd","sterk verhoogd",null,"jongens (n = 198)","sterk verlaagd","verlaagd","licht verlaagd","normaal"]
["Negatieve veranderingen cognities en stemming",{"$f":"'ReBTOSS_meting 2'!Q24","v":0},{"$f":"'ReBTOSS_meting 2'!T24","v":0},null,null,null,null,null,null,null,null,"herbeleving","0,000 - 0,399","0,400 - 0,599","0,600 - 0,999","1,000 - 3,000",5,"veiligheid en relaties","0,000 - 1,285","1,286 - 1,713","1,714 - 1,856","1,857 - 3,000"]
["Arousal",{"$f":"'ReBTOSS_meting 2'!Q31","v":0},{"$f":"'ReBTOSS_meting 2'!T31","v":0},null,null,null,null,null,null,null,null,"vermijding","0,000 - 0,199","0,200 - 0,799","0,800 - 0,999","1,000 - 3,000",5,"zelfregulatie","0,000 - 0,500","0,501 - 0,999","1,000 - 1,332","1,333 - 3,000"]
["Dissociatie",{"$f":"'ReBTOSS_meting 2'!Q37","v":0},{"$f":"'ReBTOSS_meting 2'!T37","v":0},null,null,null,null,null,null,null,null,"negatieve veranderingen cognities en stemming","0,000 - 0,332","0,333 - 0,499","0,500 - 0,832","0,833 - 3,000",6,"zelfbeeld","0,000 - 0,666","0,667 - 1,332","1,333 - 1,666","1,667 - 3,000"]
[null,null,null,null,null,null,null,null,null,null,null,"arousal","0,000 - 0,285","0,286 - 0,428","0,429 - 0,713","0,714 - 3,000",7,"dagelijks leven","0,000 - 1,832","1,833 - 1,999","2,000 - 2,166","2,167 - 3,000"]
["Beschermende factoren","Somscore","Gemiddelde score subschalen",null,null,null,null,null,null,null,null,"dissociatie","0,000 - 0,332","0,333 - 0,499","0,500 - 0,832","0,833 - 3,000",6]
["veiligheid en relaties",{"$f":"'ReBTOSS_meting 2'!Q46","v":0},{"$f":"'ReBTOSS_meting 2'!T46","v":0}]
["zelfregulatie",{"$f":"'ReBTOSS_meting 2'!Q52","v":0},{"$f":"'ReBTOSS_meting 2'!T52","v":0},null,null,null,null,null,null,null,null,null,"risicofactoren subschalen - gemiddelde score",null,null,null,null,null,"beschermende factoren subschalen - gemiddelde score"]
["zelfbeeld",{"$f":"'ReBTOSS_meting 2'!Q58","v":0},{"$f":"'ReBTOSS_meting 2'!T58","v":0},null,null,null,null,null,null,null,null,"meisjes (n = 207)","normaal","licht verhoogd","verhoogd","sterk verhoogd",null,"meisjes (n = 207)","sterk verlaagd","verlaagd","licht verlaagd","normaal"]
["dagelijks leven",{"$f":"'ReBTOSS_meting 2'!Q64","v":0},{"$f":"'ReBTOSS_meting 2'!T64","v":0},null,null,null,null,null,null,null,null,"herbeleving","0,000 - 0,399","0,400 - 0,599","0,600 - 0,999","1,000 - 3,000",5,"veiligheid en relaties","0,000 - 1,713","1,714 - 1,856","1,857 - 1,999","2,000 - 3,000"]
[null,null,null,null,null,null,null,null,null,null,null,"vermijding","0,000 - 0,199","0,200 - 0,399","0,400 - 0,799","0,800 - 3,000",5,"zelfregulatie","0,000 - 0,832","0,833 - 1,166","1,167 - 1,499","1,500 - 3,000"]
[null,null,null,null,null,null,null,null,null,null,null,"negatieve veranderingen cognities en stemming","0,000 - 0,332","0,333 - 0,499","0,500 - 0,832","0,833 - 3,000",6,"zelfbeeld","0,000 - 0,999","1,000 - 1,332","1,333 - 1,499","1,500 - 3,000"]
[null,null,null,null,null,null,null,null,null,null,null,"arousal","0,000 - 0,285","0,286 - 0,428","0,429 - 0,713","0,714 - 3,000",7,"dagelijks leven","0,000 - 1,832","1,833 - 1,999","2,000 - 2,332","2,333 - 3,000"]
[{"$f":"IF('ReBTOSS_meting 2'!N65=54,\"Meting 2 is goed ingevuld\",\"Meting 2 is NIET goed ingevuld. De resultaten zijn ONBETROUWBAAR.\")","v":"Meting 2 is NIET goed ingevuld. De resultaten zijn ONBETROUWBAAR."},null,null,null,null,null,null,null,null,null,null,"dissociatie","0,000 - 0,332","0,333 - 0,499","0,500 - 0,832","0,833 - 3,000",6]
[]
[null,"Jongen","Totaal score","Betekenis",null,"Normaal","Licht verhoogd","Verhoogd","Sterk verhoogd","Betekenis"]
[null,"Risicofactoren ",{"$f":"B4","v":0},{"$f":"_xlfn.IFS(J25=0,\"Normaal\",J25=1,\"Licht verhoogd\",J25=2,\"Verhoogd\",J25=3,\"Sterk verhoogd\")","v":"Normaal"},null,{"$f":"IF(C25<10,0,\"\")","v":0},{"$f":"IF(AND(C25>9,C25<20),1,\"\")","v":""},{"$f":"IF(AND(C25>19,C25<26),2,\"\")","v":""},{"$f":"IF(C25>25,3,\"\")","v":""},{"$f":"SUM(F25:I25)","v":0}]
[null,null,"Totaal score","Betekenis",null,"Sterk verlaagd","Verlaagd","Licht verlaagd","Normaal",null,null,null,"De bovengrenzen: risico",null,null,null,null,null,null,"De bovengrenzen: beschermend"]
[null,"Beschermende factoren ",{"$f":"B5","v":0},{"$f":"_xlfn.IFS(J27=3,\"Sterk verlaagd\",J27=2,\"Verlaagd\",J27=1,\"Licht verlaagd\",J27=0,\"Normaal\")","v":"Sterk verlaagd"},null,{"$f":"IF(C27<34,3,\"\")","v":3},{"$f":"IF(AND(C27>33,C27<40),2,\"\")","v":""},{"$f":"IF(AND(C27>39,C27<46),1,\"\")","v":""},{"$f":"IF(C27>45,0,\"\")","v":""},{"$f":"SUM(F27:I27)","v":3},null,null,"Jongen",null,null,null,null,null,null,"Jongen"]
[null,null,null,null,null,null,null,null,null,null,null,null,null,"Herbeleving","Vermijding","Negatieve veranderingen cognities en stemming","Arousal","Dissociatie",null,null,"Veiligheid en relaties","Zelfregulatie","Zelfbeeld","Dagelijks leven"]
[null,"Risicofactoren","Somscore","Gemiddelde score subschalen","Betekenis","Normaal","Licht verhoogd","Verhoogd","Sterk verhoogd","Betekenis",null,null,"Meting 2",{"$f":"D30","v":0},{"$f":"D31","v":0},{"$f":"D32","v":0},{"$f":"D33","v":0},{"$f":"D34","v":0},null,"Meting 2",{"$f":"D37","v":0},{"$f":"D38","v":0},{"$f":"D39","v":0},{"$f":"D40","v":0}]
[null,"Herbeleving",{"$f":"B8","v":0},{"$f":"C8","v":0},{"$f":"_xlfn.IFS(J30=0,\"Normaal\",J30=1,\"Licht verhoogd\",J30=2,\"Verhoogd\",J30=3,\"Sterk verhoogd\")","v":"Normaal"},{"$f":"IF(D30<0.4,0,\"\")","v":0},{"$f":"IF(AND(D30>0.399,D30<0.6),1,\"\")","v":""},{"$f":"IF(AND(D30>0.599,D30<1),2,\"\")","v":""},{"$f":"IF(D30>0.999,3,\"\")","v":""},{"$f":"SUM(F30:I30)","v":0},null,"5 Items","Normaal",0.39950000000000002,0.19950000000000001,0.33250000000000002,0.28549999999999998,0.33250000000000002,null,"Sterk verlaagd",1.2855000000000001,0.50049999999999994,0.66649999999999998,1.8325]
[null,"Vermijding",{"$f":"B9","v":0},0,{"$f":"_xlfn.IFS(J31=0,\"Normaal\",J31=1,\"Licht verhoogd\",J31=2,\"Verhoogd\",J31=3,\"Sterk verhoogd\")","v":"Normaal"},{"$f":"IF(D31<0.2,0,\"\")","v":0},{"$f":"IF(AND(D31>0.199,D31<0.8),1,\"\")","v":""},{"$f":"IF(AND(D31>0.799,D31<1),2,\"\")","v":""},{"$f":"IF(D31>0.999,3,\"\")","v":""},{"$f":"SUM(F31:I31)","v":0},null,"5 Items","Licht verhoogd",0.59950000000000003,0.79949999999999999,0.4995,0.42849999999999999,0.4995,null,"Verlaagd",1.7135,0.99950000000000006,1.3325,1.9995000000000001]
[null,"Negatieve veranderingen cognities en stemming",0,0,"Normaal",{"$f":"IF(D32<0.333,0,\"\")","v":0},{"$f":"IF(AND(D32>0.332,D32<0.5),1,\"\")","v":""},{"$f":"IF(AND(D32>0.499,D32<0.833),2,\"\")","v":""},{"$f":"IF(D32>0.832,3,\"\")","v":""},0,null,"6 Items","Verhoogd",0.99950000000000006,0.99950000000000006,0.83250000000000002,0.71350000000000002,0.83250000000000002,null,"Licht verlaagd",1.8565,1.3325,1.6665000000000001,2.1665000000000001]
[null,"Arousal",0,0,"Normaal",{"$f":"IF(D33<0.285,0,\"\")","v":0},{"$f":"IF(AND(D33>0.285,D33<0.428),1,\"\")","v":""},{"$f":"IF(AND(D33>0.428,D33<0.714),2,\"\")","v":""},{"$f":"IF(D33>0.713,3,\"\")","v":""},0,null,"7 Items","Sterk verhoogd",3,3,3,3,3,null,"Normaal",3,3,3,3]
[null,"Dissociatie",0,0,"Normaal",{"$f":"IF(D34<0.333,0,\"\")","v":0},{"$f":"IF(AND(D34>0.332,D34<0.5),1,\"\")","v":""},{"$f":"IF(AND(D34>0.499,D34<0.833),2,\"\")","v":""},{"$f":"IF(D34>0.832,3,\"\")","v":""},0,null,"6 Items"]
[]
[null,"Beschermende factoren","Somscore","Gemiddelde score subschalen","Betekenis","Sterk verlaagd","Verlaagd","Licht verlaagd","Normaal","Betekenis"]
[null,"veiligheid en relaties",{"$f":"B15","v":0},{"$f":"C15","v":0},{"$f":"_xlfn.IFS(J37=3,\"Sterk verlaagd\",J37=2,\"Verlaagd\",J37=1,\"Licht verlaagd\",J37=0,\"Normaal\")","v":"Sterk verlaagd"},{"$f":"IF(D37<1.285,3,\"\")","v":3},{"$f":"IF(AND(D37>1.285,D37<1.714),2,\"\")","v":""},{"$f":"IF(AND(D37>1.713,D37<1.857),1,\"\")","v":""},{"$f":"IF(D37>1.856,0,\"\")","v":""},{"$f":"SUM(F37:I37)","v":3},null,"7 Items","Meisje",null,null,null,null,null,null,"Meisje"]
[null,"zelfregulatie",{"$f":"B16","v":0},0,{"$f":"_xlfn.IFS(J38=3,\"Sterk verlaagd\",J38=2,\"Verlaagd\",J38=1,\"Licht verlaagd\",J38=0,\"Normaal\")","v":"Sterk verlaagd"},{"$f":"IF(D38<0.501,3,\"\")","v":3},{"$f":"IF(AND(D38>0.5,D38<1),2,\"\")","v":""},{"$f":"IF(AND(D38>0.999,D38<1.333),1,\"\")","v":""},{"$f":"IF(D38>1.332,0,\"\")","v":""},{"$f":"SUM(F38:I38)","v":3},null,"6 Items",null,"Herbeleving","Vermijding","Negatieve veranderingen cognities en stemming","Arousal","Dissociatie",null,null,"Veiligheid en relaties","Zelfregulatie","Zelfbeeld","Dagelijks leven"]
[null,"zelfbeeld",0,0,{"$f":"_xlfn.IFS(J39=3,\"Sterk verlaagd\",J39=2,\"Verlaagd\",J39=1,\"Licht verlaagd\",J39=0,\"Normaal\")","v":"Sterk verlaagd"},{"$f":"IF(D39<0.65,3,\"\")","v":3},{"$f":"IF(AND(D39>0.666,D39<1.333),2,\"\")","v":""},{"$f":"IF(AND(D39>1.332,D39<1.65),1,\"\")","v":""},{"$f":"IF(D39>1.666,0,\"\")","v":""},3,null,"6 Items","Meting 2",{"$f":"D49","v":0},{"$f":"D50","v":0},{"$f":"D51","v":0},{"$f":"D52","v":0},{"$f":"D53","v":0},null,"Meting 2",{"$f":"D56","v":0},{"$f":"D57","v":0},{"$f":"D58","v":0},{"$f":"D59","v":0}]
[null,"dagelijks leven",0,0,{"$f":"_xlfn.IFS(J40=3,\"Sterk verlaagd\",J40=2,\"Verlaagd\",J40=1,\"Licht verlaagd\",J40=0,\"Normaal\")","v":"Sterk verlaagd"},{"$f":"IF(D40<1.833,3,\"\")","v":3},{"$f":"IF(AND(D40>1.832,D40<2),2,\"\")","v":""},{"$f":"IF(AND(D40>1.999,D40<2.165),1,\"\")","v":""},{"$f":"IF(D40>2.166,0,\"\")","v":""},3,null,"6 Items","Normaal",0.39950000000000002,0.19950000000000001,0.33250000000000002,0.28549999999999998,0.33250000000000002,null,"Sterk verlaagd",1.7135,0.83250000000000002,0.99950000000000006,1.8325]
[null,null,null,null,null,null,null,null,null,null,null,null,"Licht verhoogd",0.59950000000000003,0.39950000000000002,0.4995,0.42849999999999999,0.4995,null,"Verlaagd",1.8565,1.1665000000000001,1.3325,1.9995000000000001]
[null,null,null,null,null,null,null,null,null,null,null,null,"Verhoogd",0.99950000000000006,0.79949999999999999,0.83250000000000002,0.71350000000000002,0.83250000000000002,null,"Licht verlaagd",1.9995000000000001,1.4995000000000001,1.4995000000000001,2.3325]
[null,"Meisje","Totaal score","Betekenis",null,"Normaal","Licht verhoogd","Verhoogd","Sterk Verhoogd","Betekenis",null,null,"Sterk verhoogd",3,3,3,3,3,null,"Normaal",3,3,3,3]
[null,"Risicofactoren ",{"$f":"B4","v":0},{"$f":"_xlfn.IFS(J44=0,\"Normaal\",J44=1,\"Licht verhoogd\",J44=2,\"Verhoogd\",J44=3,\"Sterk verhoogd\")","v":"Normaal"},null,{"$f":"IF(C44<6,0,\"\")","v":0},{"$f":"IF(AND(C44>5,C44<14),1,\"\")","v":""},{"$f":"IF(AND(C44>13,C44<23),2,\"\")","v":""},{"$f":"IF(C44>22,3,\"\")","v":""},{"$f":"SUM(F44:I44)","v":0}]
[null,null,null,null,null,"Sterk verlaagd","Verlaagd","licht verlaagd ","Normaal"]
[null,"Beschermende factoren ",{"$f":"B5","v":0},{"$f":"_xlfn.IFS(J46=3,\"Sterk verlaagd\",J46=2,\"Verlaagd\",J46=1,\"Licht verlaagd\",J46=0,\"Normaal\")","v":"Sterk verlaagd"},null,{"$f":"IF(C46<38,3,\"\")","v":3},{"$f":"IF(AND(C46>37,C46<44),2,\"\")","v":""},{"$f":"IF(AND(C46>43,C46<50),1,\"\")","v":""},{"$f":"IF(C46>49,0,\"\")","v":""},{"$f":"SUM(F46:I46)","v":3}]
[null,null,null,null,null,null,null,null,null,null,null,null,"TABEL  Berekenen RISICO GRENZEN Jongen versus Meisje",null,null,null,null,null,null,"TABEL  Berekenen BESCHERMEND GRENZEN Jongen versus Meisje"]
[null,"Risicofactoren","Somscore","Gemiddelde score subschalen","Betekenis","Normaal","Licht verhoogd","Verhoogd","Sterk verhoogd","Betekenis",null,null,null,"Herbeleving","Vermijding","Negatieve veranderingen cognities en stemming","Arousal","Dissociatie",null,null,"Veiligheid en relaties","Zelfregulatie","Zelfbeeld","Dagelijks leven"]
[null,"Herbeleving",{"$f":"B8","v":0},{"$f":"C8","v":0},{"$f":"_xlfn.IFS(J49=0,\"Normaal\",J49=1,\"Licht verhoogd\",J49=2,\"Verhoogd\",J49=3,\"Sterk verhoogd\")","v":"Normaal"},{"$f":"IF(D49<0.4,0,\"\")","v":0},{"$f":"IF(AND(D49>0.399,D49<0.6),1,\"\")","v":""},{"$f":"IF(AND(D49>0.599,D49<1),2,\"\")","v":""},{"$f":"IF(D49>0.999,3,\"\")","v":""},{"$f":"SUM(F49:I49)","v":0},null,"5 Items","Meting 2",{"$f":"N29","v":0},{"$f":"O29","v":0},{"$f":"P29","v":0},{"$f":"Q29","v":0},{"$f":"R29","v":0},null,"Meting 2",{"$f":"U29","v":0},{"$f":"V29","v":0},{"$f":"W29","v":0},{"$f":"X29","v":0}]
[null,"Vermijding",{"$f":"B9","v":0},0,{"$f":"_xlfn.IFS(J50=0,\"Normaal\",J50=1,\"Licht verhoogd\",J50=2,\"Verhoogd\",J50=3,\"Sterk verhoogd\")","v":"Normaal"},{"$f":"IF(D50<0.2,0,\"\")","v":0},{"$f":"IF(AND(D50>0.199,D50<0.4),1,\"\")","v":""},{"$f":"IF(AND(D50>0.399,D50<0.8),2,\"\")","v":""},{"$f":"IF(D50>0.799,3,\"\")","v":""},{"$f":"SUM(F50:I50)","v":0},null,"5 Items","Normaal",{"$f":"_xlfn.IFS('Resultaten_meting 1'!$A$12=\"Jongen\",Berekeningen1!N30,'Resultaten_meting 1'!$A$12=\"Meisje\",Berekeningen1!N40,'Resultaten_meting 1'!$A$12=\"Vul geslacht in, anders kan de BETEKENIS NIET worden weergegeven\",\"0\")","v":{"$error":"#N/A"}},{"$f":"_xlfn.IFS('Resultaten_meting 1'!$A$12=\"Jongen\",Berekeningen1!O30,'Resultaten_meting 1'!$A$12=\"Meisje\",Berekeningen1!O40,'Resultaten_meting 1'!$A$12=\"Vul geslacht in, anders kan de BETEKENIS NIET worden weergegeven\",\"0\")","v":{"$error":"#N/A"}},{"$f":"_xlfn.IFS('Resultaten_meting 1'!$A$12=\"Jongen\",Berekeningen1!P30,'Resultaten_meting 1'!$A$12=\"Meisje\",Berekeningen1!P40,'Resultaten_meting 1'!$A$12=\"Vul geslacht in, anders kan de BETEKENIS NIET worden weergegeven\",\"0\")","v":{"$error":"#N/A"}},{"$f":"_xlfn.IFS('Resultaten_meting 1'!$A$12=\"Jongen\",Berekeningen1!Q30,'Resultaten_meting 1'!$A$12=\"Meisje\",Berekeningen1!Q40,'Resultaten_meting 1'!$A$12=\"Vul geslacht in, anders kan de BETEKENIS NIET worden weergegeven\",\"0\")","v":{"$error":"#N/A"}},{"$f":"_xlfn.IFS('Resultaten_meting 1'!$A$12=\"Jongen\",Berekeningen1!R30,'Resultaten_meting 1'!$A$12=\"Meisje\",Berekeningen1!R40,'Resultaten_meting 1'!$A$12=\"Vul geslacht in, anders kan de BETEKENIS NIET worden weergegeven\",\"0\")","v":{"$error":"#N/A"}},null,"Sterk verlaagd",{"$f":"_xlfn.IFS('Resultaten_meting 1'!$A$12=\"Jongen\",Berekeningen1!U30,'Resultaten_meting 1'!$A$12=\"Meisje\",Berekeningen1!U40,'Resultaten_meting 1'!$A$12=\"Vul geslacht in, anders kan de BETEKENIS NIET worden weergegeven\",\"0\")","v":{"$error":"#N/A"}},{"$f":"_xlfn.IFS('Resultaten_meting 1'!$A$12=\"Jongen\",Berekeningen1!V30,'Resultaten_meting 1'!$A$12=\"Meisje\",Berekeningen1!V40,'Resultaten_meting 1'!$A$12=\"Vul geslacht in, anders kan de BETEKENIS NIET worden weergegeven\",\"0\")","v":{"$error":"#N/A"}},{"$f":"_xlfn.IFS('Resultaten_meting 1'!$A$12=\"Jongen\",Berekeningen1!W30,'Resultaten_meting 1'!$A$12=\"Meisje\",Berekeningen1!W40,'Resultaten_meting 1'!$A$12=\"Vul geslacht in, anders kan de BETEKENIS NIET worden weergegeven\",\"0\")","v":{"$error":"#N/A"}},{"$f":"_xlfn.IFS('Resultaten_meting 1'!$A$12=\"Jongen\",Berekeningen1!X30,'Resultaten_meting 1'!$A$12=\"Meisje\",Berekeningen1!X40,'Resultaten_meting 1'!$A$12=\"Vul geslacht in, anders kan de BETEKENIS NIET worden weergegeven\",\"0\")","v":{"$error":"#N/A"}}]
[null,"Negatieve veranderingen cognities en stemming",0,0,"Normaal",{"$f":"IF(D51<0.333,0,\"\")","v":0},{"$f":"IF(AND(D51>0.332,D51<0.5),1,\"\")","v":""},{"$f":"IF(AND(D51>0.499,D51<0.833),2,\"\")","v":""},{"$f":"IF(D51>0.832,3,\"\")","v":""},0,null,"6 Items","Licht verhoogd",{"$f":"_xlfn.IFS('Resultaten_meting 1'!$A$12=\"Jongen\",Berekeningen1!N31,'Resultaten_meting 1'!$A$12=\"Meisje\",Berekeningen1!N41,'Resultaten_meting 1'!$A$12=\"Vul geslacht in, anders kan de BETEKENIS NIET worden weergegeven\",\"0\")","v":{"$error":"#N/A"}},{"$f":"_xlfn.IFS('Resultaten_meting 1'!$A$12=\"Jongen\",Berekeningen1!O31,'Resultaten_meting 1'!$A$12=\"Meisje\",Berekeningen1!O41,'Resultaten_meting 1'!$A$12=\"Vul geslacht in, anders kan de BETEKENIS NIET worden weergegeven\",\"0\")","v":{"$error":"#N/A"}},{"$f":"_xlfn.IFS('Resultaten_meting 1'!$A$12=\"Jongen\",Berekeningen1!P31,'Resultaten_meting 1'!$A$12=\"Meisje\",Berekeningen1!P41,'Resultaten_meting 1'!$A$12=\"Vul geslacht in, anders kan de BETEKENIS NIET worden weergegeven\",\"0\")","v":{"$error":"#N/A"}},{"$f":"_xlfn.IFS('Resultaten_meting 1'!$A$12=\"Jongen\",Berekeningen1!Q31,'Resultaten_meting 1'!$A$12=\"Meisje\",Berekeningen1!Q41,'Resultaten_meting 1'!$A$12=\"Vul geslacht in, anders kan de BETEKENIS NIET worden weergegeven\",\"0\")","v":{"$error":"#N/A"}},{"$f":"_xlfn.IFS('Resultaten_meting 1'!$A$12=\"Jongen\",Berekeningen1!R31,'Resultaten_meting 1'!$A$12=\"Meisje\",Berekeningen1!R41,'Resultaten_meting 1'!$A$12=\"Vul geslacht in, anders kan de BETEKENIS NIET worden weergegeven\",\"0\")","v":{"$error":"#N/A"}},null,"Verlaagd",{"$f":"_xlfn.IFS('Resultaten_meting 1'!$A$12=\"Jongen\",Berekeningen1!U31,'Resultaten_meting 1'!$A$12=\"Meisje\",Berekeningen1!U41,'Resultaten_meting 1'!$A$12=\"Vul geslacht in, anders kan de BETEKENIS NIET worden weergegeven\",\"0\")","v":{"$error":"#N/A"}},{"$f":"_xlfn.IFS('Resultaten_meting 1'!$A$12=\"Jongen\",Berekeningen1!V31,'Resultaten_meting 1'!$A$12=\"Meisje\",Berekeningen1!V41,'Resultaten_meting 1'!$A$12=\"Vul geslacht in, anders kan de BETEKENIS NIET worden weergegeven\",\"0\")","v":{"$error":"#N/A"}},{"$f":"_xlfn.IFS('Resultaten_meting 1'!$A$12=\"Jongen\",Berekeningen1!W31,'Resultaten_meting 1'!$A$12=\"Meisje\",Berekeningen1!W41,'Resultaten_meting 1'!$A$12=\"Vul geslacht in, anders kan de BETEKENIS NIET worden weergegeven\",\"0\")","v":{"$error":"#N/A"}},{"$f":"_xlfn.IFS('Resultaten_meting 1'!$A$12=\"Jongen\",Berekeningen1!X31,'Resultaten_meting 1'!$A$12=\"Meisje\",Berekeningen1!X41,'Resultaten_meting 1'!$A$12=\"Vul geslacht in, anders kan de BETEKENIS NIET worden weergegeven\",\"0\")","v":{"$error":"#N/A"}}]
[null,"Arousal",0,0,"Normaal",{"$f":"IF(D52<0.285,0,\"\")","v":0},{"$f":"IF(AND(D52>0.285,D52<0.428),1,\"\")","v":""},{"$f":"IF(AND(D52>0.428,D52<0.714),2,\"\")","v":""},{"$f":"IF(D52>0.713,3,\"\")","v":""},0,null,"7 Items","Verhoogd",{"$f":"_xlfn.IFS('Resultaten_meting 1'!$A$12=\"Jongen\",Berekeningen1!N32,'Resultaten_meting 1'!$A$12=\"Meisje\",Berekeningen1!N42,'Resultaten_meting 1'!$A$12=\"Vul geslacht in, anders kan de BETEKENIS NIET worden weergegeven\",\"0\")","v":{"$error":"#N/A"}},{"$f":"_xlfn.IFS('Resultaten_meting 1'!$A$12=\"Jongen\",Berekeningen1!O32,'Resultaten_meting 1'!$A$12=\"Meisje\",Berekeningen1!O42,'Resultaten_meting 1'!$A$12=\"Vul geslacht in, anders kan de BETEKENIS NIET worden weergegeven\",\"0\")","v":{"$error":"#N/A"}},{"$f":"_xlfn.IFS('Resultaten_meting 1'!$A$12=\"Jongen\",Berekeningen1!P32,'Resultaten_meting 1'!$A$12=\"Meisje\",Berekeningen1!P42,'Resultaten_meting 1'!$A$12=\"Vul geslacht in, anders kan de BETEKENIS NIET worden weergegeven\",\"0\")","v":{"$error":"#N/A"}},{"$f":"_xlfn.IFS('Resultaten_meting 1'!$A$12=\"Jongen\",Berekeningen1!Q32,'Resultaten_meting 1'!$A$12=\"Meisje\",Berekeningen1!Q42,'Resultaten_meting 1'!$A$12=\"Vul geslacht in, anders kan de BETEKENIS NIET worden weergegeven\",\"0\")","v":{"$error":"#N/A"}},{"$f":"_xlfn.IFS('Resultaten_meting 1'!$A$12=\"Jongen\",Berekeningen1!R32,'Resultaten_meting 1'!$A$12=\"Meisje\",Berekeningen1!R42,'Resultaten_meting 1'!$A$12=\"Vul geslacht in, anders kan de BETEKENIS NIET worden weergegeven\",\"0\")","v":{"$error":"#N/A"}},null,"Licht Verlaagd",{"$f":"_xlfn.IFS('Resultaten_meting 1'!$A$12=\"Jongen\",Berekeningen1!U32,'Resultaten_meting 1'!$A$12=\"Meisje\",Berekeningen1!U42,'Resultaten_meting 1'!$A$12=\"Vul geslacht in, anders kan de BETEKENIS NIET worden weergegeven\",\"0\")","v":{"$error":"#N/A"}},{"$f":"_xlfn.IFS('Resultaten_meting 1'!$A$12=\"Jongen\",Berekeningen1!V32,'Resultaten_meting 1'!$A$12=\"Meisje\",Berekeningen1!V42,'Resultaten_meting 1'!$A$12=\"Vul geslacht in, anders kan de BETEKENIS NIET worden weergegeven\",\"0\")","v":{"$error":"#N/A"}},{"$f":"_xlfn.IFS('Resultaten_meting 1'!$A$12=\"Jongen\",Berekeningen1!W32,'Resultaten_meting 1'!$A$12=\"Meisje\",Berekeningen1!W42,'Resultaten_meting 1'!$A$12=\"Vul geslacht in, anders kan de BETEKENIS NIET worden weergegeven\",\"0\")","v":{"$error":"#N/A"}},{"$f":"_xlfn.IFS('Resultaten_meting 1'!$A$12=\"Jongen\",Berekeningen1!X32,'Resultaten_meting 1'!$A$12=\"Meisje\",Berekeningen1!X42,'Resultaten_meting 1'!$A$12=\"Vul geslacht in, anders kan de BETEKENIS NIET worden weergegeven\",\"0\")","v":{"$error":"#N/A"}}]
[null,"Dissociatie",0,0,"Normaal",{"$f":"IF(D53<0.333,0,\"\")","v":0},{"$f":"IF(AND(D53>0.332,D53<0.5),1,\"\")","v":""},{"$f":"IF(AND(D53>0.499,D53<0.833),2,\"\")","v":""},{"$f":"IF(D53>0.832,3,\"\")","v":""},0,null,"6 Items","Sterk verhoogd",{"$f":"_xlfn.IFS('Resultaten_meting 1'!$A$12=\"Jongen\",Berekeningen1!N33,'Resultaten_meting 1'!$A$12=\"Meisje\",Berekeningen1!N43,'Resultaten_meting 1'!$A$12=\"Vul geslacht in, anders kan de BETEKENIS NIET worden weergegeven\",\"0\")","v":{"$error":"#N/A"}},{"$f":"_xlfn.IFS('Resultaten_meting 1'!$A$12=\"Jongen\",Berekeningen1!O33,'Resultaten_meting 1'!$A$12=\"Meisje\",Berekeningen1!O43,'Resultaten_meting 1'!$A$12=\"Vul geslacht in, anders kan de BETEKENIS NIET worden weergegeven\",\"0\")","v":{"$error":"#N/A"}},{"$f":"_xlfn.IFS('Resultaten_meting 1'!$A$12=\"Jongen\",Berekeningen1!P33,'Resultaten_meting 1'!$A$12=\"Meisje\",Berekeningen1!P43,'Resultaten_meting 1'!$A$12=\"Vul geslacht in, anders kan de BETEKENIS NIET worden weergegeven\",\"0\")","v":{"$error":"#N/A"}},{"$f":"_xlfn.IFS('Resultaten_meting 1'!$A$12=\"Jongen\",Berekeningen1!Q33,'Resultaten_meting 1'!$A$12=\"Meisje\",Berekeningen1!Q43,'Resultaten_meting 1'!$A$12=\"Vul geslacht in, anders kan de BETEKENIS NIET worden weergegeven\",\"0\")","v":{"$error":"#N/A"}},{"$f":"_xlfn.IFS('Resultaten_meting 1'!$A$12=\"Jongen\",Berekeningen1!R33,'Resultaten_meting 1'!$A$12=\"Meisje\",Berekeningen1!R43,'Resultaten_meting 1'!$A$12=\"Vul geslacht in, anders kan de BETEKENIS NIET worden weergegeven\",\"0\")","v":{"$error":"#N/A"}},null,"Normaal",{"$f":"_xlfn.IFS('Resultaten_meting 1'!$A$12=\"Jongen\",Berekeningen1!U33,'Resultaten_meting 1'!$A$12=\"Meisje\",Berekeningen1!U43,'Resultaten_meting 1'!$A$12=\"Vul geslacht in, anders kan de BETEKENIS NIET worden weergegeven\",\"0\")","v":{"$error":"#N/A"}},{"$f":"_xlfn.IFS('Resultaten_meting 1'!$A$12=\"Jongen\",Berekeningen1!V33,'Resultaten_meting 1'!$A$12=\"Meisje\",Berekeningen1!V43,'Resultaten_meting 1'!$A$12=\"Vul geslacht in, anders kan de BETEKENIS NIET worden weergegeven\",\"0\")","v":{"$error":"#N/A"}},{"$f":"_xlfn.IFS('Resultaten_meting 1'!$A$12=\"Jongen\",Berekeningen1!W33,'Resultaten_meting 1'!$A$12=\"Meisje\",Berekeningen1!W43,'Resultaten_meting 1'!$A$12=\"Vul geslacht in, anders kan de BETEKENIS NIET worden weergegeven\",\"0\")","v":{"$error":"#N/A"}},{"$f":"_xlfn.IFS('Resultaten_meting 1'!$A$12=\"Jongen\",Berekeningen1!X33,'Resultaten_meting 1'!$A$12=\"Meisje\",Berekeningen1!X43,'Resultaten_meting 1'!$A$12=\"Vul geslacht in, anders kan de BETEKENIS NIET worden weergegeven\",\"0\")","v":{"$error":"#N/A"}}]
[]
[null,"Beschermende factoren","Somscore","Gemiddelde score subschalen","Betekenis","Sterk verlaagd","Verlaagd","Licht verlaagd","Normaal","Betekenis",null,null,"Kleuren voor in grafiek",null,null,null,null,null,null,"Kleuren voor in grafiek"]
[null,"veiligheid en relaties",{"$f":"B15","v":0},{"$f":"C15","v":0},{"$f":"_xlfn.IFS(J56=3,\"Sterk verlaagd\",J56=2,\"Verlaagd\",J56=1,\"Licht verlaagd\",J56=0,\"Normaal\")","v":"Sterk verlaagd"},{"$f":"IF(D56<1.714,3,\"\")","v":3},{"$f":"IF(AND(D56>1.713,D56<1.857),2,\"\")","v":""},{"$f":"IF(AND(D56>1.856,D56<2),1,\"\")","v":""},{"$f":"IF(D56>1.999,0,\"\")","v":""},{"$f":"SUM(F56:I56)","v":3},null,"7 Items",null,"Herbeleving","Vermijding","Negatieve veranderingen cognities en stemming","Arousal","Dissociatie",null,null,"Veiligheid en relaties","Zelfregulatie","Zelfbeeld","Dagelijks leven"]
[null,"zelfregulatie",{"$f":"B16","v":0},0,{"$f":"_xlfn.IFS(J57=3,\"Sterk verlaagd\",J57=2,\"Verlaagd\",J57=1,\"Licht verlaagd\",J57=0,\"Normaal\")","v":"Sterk verlaagd"},{"$f":"IF(D57<0.833,3,\"\")","v":3},{"$f":"IF(AND(D57>0.832,D57<1.165),2,\"\")","v":""},{"$f":"IF(AND(D57>1.166,D57<1.5),1,\"\")","v":""},{"$f":"IF(D57>1.499,0,\"\")","v":""},3,null,"6 Items","Meting 2",{"$f":"N29","v":0},{"$f":"O29","v":0},0,0,0,null,"Meting 2",{"$f":"U29","v":0},{"$f":"V29","v":0},{"$f":"W29","v":0},{"$f":"X29","v":0}]
[null,"zelfbeeld",0,0,{"$f":"_xlfn.IFS(J58=3,\"Sterk verlaagd\",J58=2,\"Verlaagd\",J58=1,\"Licht verlaagd\",J58=0,\"Normaal\")","v":"Sterk verlaagd"},{"$f":"IF(D58<1,3,\"\")","v":3},{"$f":"IF(AND(D58>0.999,D58<1.333),2,\"\")","v":""},{"$f":"IF(AND(D58>1.332,D58<1.5),1,\"\")","v":""},{"$f":"IF(D58>1.499,0,\"\")","v":""},3,null,"6 Items","Normaal",{"$f":"N50","v":{"$error":"#N/A"}},{"$f":"O50","v":{"$error":"#N/A"}},{"$error":"#N/A"},{"$error":"#N/A"},{"$error":"#N/A"},null,"Sterk verlaagd",{"$f":"U50","v":{"$error":"#N/A"}},{"$f":"V50","v":{"$error":"#N/A"}},{"$f":"W50","v":{"$error":"#N/A"}},{"$f":"X50","v":{"$error":"#N/A"}}]
[null,"dagelijks leven",0,0,"Sterk verlaagd",{"$f":"IF(D59<1.833,3,\"\")","v":3},{"$f":"IF(AND(D59>1.832,D59<2),2,\"\")","v":""},{"$f":"IF(AND(D59>1.999,D59<2.333),1,\"\")","v":""},{"$f":"IF(D59>2.332,0,\"\")","v":""},3,null,"6 Items","Licht verhoogd",{"$f":"N51-N50","v":{"$error":"#N/A"}},{"$f":"O51-O50","v":{"$error":"#N/A"}},{"$error":"#N/A"},{"$error":"#N/A"},{"$error":"#N/A"},null,"Verlaagd",{"$f":"U51-U50","v":{"$error":"#N/A"}},{"$error":"#N/A"},{"$error":"#N/A"},{"$error":"#N/A"}]
[null,null,null,null,null,null,null,null,null,null,null,null,"Verhoogd",{"$f":"N52-N51","v":{"$error":"#N/A"}},{"$error":"#N/A"},{"$error":"#N/A"},{"$error":"#N/A"},{"$error":"#N/A"},null,"Licht Verlaagd",{"$error":"#N/A"},{"$error":"#N/A"},{"$error":"#N/A"},{"$error":"#N/A"}]
[null,null,null,null,null,null,null,null,null,null,null,null,"Sterk verhoogd",{"$f":"N53-N52","v":{"$error":"#N/A"}},{"$error":"#N/A"},{"$error":"#N/A"},{"$error":"#N/A"},{"$error":"#N/A"},null,"Normaal",{"$f":"U53-U52","v":{"$error":"#N/A"}},{"$error":"#N/A"},{"$error":"#N/A"},{"$error":"#N/A"}]
[null,null,null,null,null,null,null,null,null,null,null,null,"Meting 1",{"$f":"Berekeningen1!N29","v":0},{"$f":"Berekeningen1!O29","v":0},{"$f":"Berekeningen1!P29","v":0},{"$f":"Berekeningen1!Q29","v":0},{"$f":"Berekeningen1!R29","v":0},null,"Meting 1",{"$f":"Berekeningen1!U29","v":0},{"$f":"Berekeningen1!V29","v":0},{"$f":"Berekeningen1!W29","v":0},{"$f":"Berekeningen1!X29","v":0}]

{"sheet":"Resultaten_meting 2","index":7,"n_rows":28,"n_cols":12,"rows_kept":28,"cut":false,"hidden":false,"merged":[]}
[null,null,null,{"$f":"'Berekeningen 2'!A22","v":"Meting 2 is NIET goed ingevuld. De resultaten zijn ONBETROUWBAAR."}]
[]
["Leerling",null,null,"Leerkracht"]
["Naam leerling: ",{"$f":"ADS_gegevens!C3","v":"Vul naam leerling in"},null,"Naam leerkracht: ",{"$f":"ADS_gegevens!M8","v":"Vul naam leerkracht in"}]
["Geslacht:",{"$f":"ADS_gegevens!C4","v":"Juiste antwoord moet nog worden geselecteerd"},null,"Groep:",{"$f":"ADS_gegevens!M9","v":"Vul groep in"}]
["Geboortedatum:",{"$f":"ADS_gegevens!C5","v":"Vul de geboortedatum in"},null,"School:",{"$f":"ADS_gegevens!M10","v":"Vul school in"}]
["Leeftijd bij afname:",{"$f":"ADS_gegevens!C18","v":"Leeftijd onbekend"}]
[]
["Zorgen:",{"$f":"ADS_gegevens!C36","v":"Selecteer het juiste antwoord"}]
[]
[null,null,null,null,null,null,null,null,null,null,"Meting 1","Meting 2"]
[{"$f":"_xlfn.IFS(ADS_gegevens!H4=2,\"Jongen\",ADS_gegevens!H4=4,\"Meisje\",ADS_gegevens!H4=0,\"BETEKENIS wordt NIET WEERGEGEVEN: Vul geslacht in. Bij 'Anders/Onbekend' Kies 'Meisje'.\")","v":"BETEKENIS wordt NIET WEERGEGEVEN: Vul geslacht in. Bij 'Anders/Onbekend' Kies 'Meisje'."},null,null,null,null,null,null,"Samenvatting ",null,null,{"$f":"IF(ADS_gegevens!C7=\"\",ADS_gegevens!D7,ADS_gegevens!C7)","v":"Vul datum in"},{"$f":"IF(ADS_gegevens!C8=\"\",ADS_gegevens!D8,ADS_gegevens!C8)","v":"Vul datum in"}]
[null,null,"Totaal score","Interpretatie"]
[null,"Risicofactoren ",{"$f":"'Berekeningen 2'!B4","v":0},{"$f":"_xlfn.IFS(ADS_gegevens!H4=2,'Berekeningen 2'!D25,ADS_gegevens!H4=4,'Berekeningen 2'!D44,ADS_gegevens!H4=0,\"Vul eerst het geslacht in\")","v":"Vul eerst het geslacht in"},null,null,null,null,null,"Risicofactoren ",{"$f":"'Resultaten_meting 1'!D14","v":"Vul eerst het geslacht in"},{"$f":"D14","v":"Vul eerst het geslacht in"}]
[null,"Beschermende factoren ",{"$f":"'Berekeningen 2'!B5","v":0},{"$f":"_xlfn.IFS(ADS_gegevens!H4=2,'Berekeningen 2'!D27,ADS_gegevens!H4=4,'Berekeningen 2'!D46,ADS_gegevens!H4=0,\"Vul eerst het geslacht in\")","v":"Vul eerst het geslacht in"},null,null,null,null,null,"Beschermende factoren ",{"$f":"'Resultaten_meting 1'!D15","v":"Vul eerst het geslacht in"},{"$f":"D15","v":"Vul eerst het geslacht in"}]
[]
[null,"Risicofactoren","Somscore","Gemiddelde score subschalen","Interpretatie",null,null,null,null,"Risicofactoren"]
[null,"Herbeleving",{"$f":"'Berekeningen 2'!B8","v":0},{"$f":"'Berekeningen 2'!C8","v":0},{"$f":"_xlfn.IFS(ADS_gegevens!$H$4=2,'Berekeningen 2'!E30,ADS_gegevens!$H$4=4,'Berekeningen 2'!E49,ADS_gegevens!$H$4=0,\"Vul eerst het geslacht in\")","v":"Vul eerst het geslacht in"},null,null,null,null,"Herbeleving",{"$f":"'Resultaten_meting 1'!E18","v":"Vul eerst het geslacht in"},{"$f":"E18","v":"Vul eerst het geslacht in"}]
[null,"Vermijding",{"$f":"'Berekeningen 2'!B9","v":0},{"$f":"'Berekeningen 2'!C9","v":0},{"$f":"_xlfn.IFS(ADS_gegevens!$H$4=2,'Berekeningen 2'!E31,ADS_gegevens!$H$4=4,'Berekeningen 2'!E50,ADS_gegevens!$H$4=0,\"Vul eerst het geslacht in\")","v":"Vul eerst het geslacht in"},null,null,null,null,"Vermijding",{"$f":"'Resultaten_meting 1'!E19","v":"Vul eerst het geslacht in"},{"$f":"E19","v":"Vul eerst het geslacht in"}]
[null,"Negatieve veranderingen cognities en stemming",{"$f":"'Berekeningen 2'!B10","v":0},{"$f":"'Berekeningen 2'!C10","v":0},{"$f":"_xlfn.IFS(ADS_gegevens!$H$4=2,'Berekeningen 2'!E32,ADS_gegevens!$H$4=4,'Berekeningen 2'!E51,ADS_gegevens!$H$4=0,\"Vul eerst het geslacht in\")","v":"Vul eerst het geslacht in"},null,null,null,null,"Negatieve veranderingen cognities en stemming",{"$f":"'Resultaten_meting 1'!E20","v":"Vul eerst het geslacht in"},{"$f":"E20","v":"Vul eerst het geslacht in"}]
[null,"Arousal",{"$f":"'Berekeningen 2'!B11","v":0},{"$f":"'Berekeningen 2'!C11","v":0},{"$f":"_xlfn.IFS(ADS_gegevens!$H$4=2,'Berekeningen 2'!E33,ADS_gegevens!$H$4=4,'Berekeningen 2'!E52,ADS_gegevens!$H$4=0,\"Vul eerst het geslacht in\")","v":"Vul eerst het geslacht in"},null,null,null,null,"Arousal",{"$f":"'Resultaten_meting 1'!E21","v":"Vul eerst het geslacht in"},{"$f":"E21","v":"Vul eerst het geslacht in"}]
[null,"Dissociatie",{"$f":"'Berekeningen 2'!B12","v":0},{"$f":"'Berekeningen 2'!C12","v":0},{"$f":"_xlfn.IFS(ADS_gegevens!$H$4=2,'Berekeningen 2'!E34,ADS_gegevens!$H$4=4,'Berekeningen 2'!E53,ADS_gegevens!$H$4=0,\"Vul eerst het geslacht in\")","v":"Vul eerst het geslacht in"},null,null,null,null,"Dissociatie",{"$f":"'Resultaten_meting 1'!E22","v":"Vul eerst het geslacht in"},{"$f":"E22","v":"Vul eerst het geslacht in"}]
[]
[null,"Beschermende factoren","Somscore","Gemiddelde score subschalen","Interpretatie",null,null,null,null,"Beschermende factoren"]
[null,"Veiligheid en relaties",{"$f":"'Berekeningen 2'!B15","v":0},{"$f":"'Berekeningen 2'!C15","v":0},{"$f":"_xlfn.IFS(ADS_gegevens!$H$4=2,'Berekeningen 2'!E37,ADS_gegevens!$H$4=4,'Berekeningen 2'!E56,ADS_gegevens!$H$4=0,\"Vul eerst het geslacht in\")","v":"Vul eerst het geslacht in"},null,null,null,null,"Veiligheid en relaties",{"$f":"'Resultaten_meting 1'!E25","v":"Vul eerst het geslacht in"},{"$f":"E25","v":"Vul eerst het geslacht in"}]
[null,"Zelfregulatie",{"$f":"'Berekeningen 2'!B16","v":0},{"$f":"'Berekeningen 2'!C16","v":0},{"$f":"_xlfn.IFS(ADS_gegevens!$H$4=2,'Berekeningen 2'!E38,ADS_gegevens!$H$4=4,'Berekeningen 2'!E57,ADS_gegevens!$H$4=0,\"Vul eerst het geslacht in\")","v":"Vul eerst het geslacht in"},null,null,null,null,"Zelfregulatie",{"$f":"'Resultaten_meting 1'!E26","v":"Vul eerst het geslacht in"},{"$f":"E26","v":"Vul eerst het geslacht in"}]
[null,"Zelfbeeld",{"$f":"'Berekeningen 2'!B17","v":0},{"$f":"'Berekeningen 2'!C17","v":0},{"$f":"_xlfn.IFS(ADS_gegevens!$H$4=2,'Berekeningen 2'!E39,ADS_gegevens!$H$4=4,'Berekeningen 2'!E58,ADS_gegevens!$H$4=0,\"Vul eerst het geslacht in\")","v":"Vul eerst het geslacht in"},null,null,null,null,"Zelfbeeld",{"$f":"'Resultaten_meting 1'!E27","v":"Vul eerst het geslacht in"},{"$f":"E27","v":"Vul eerst het geslacht in"}]
[null,"Dagelijks leven",{"$f":"'Berekeningen 2'!B18","v":0},{"$f":"'Berekeningen 2'!C18","v":0},{"$f":"_xlfn.IFS(ADS_gegevens!$H$4=2,'Berekeningen 2'!E40,ADS_gegevens!$H$4=4,'Berekeningen 2'!E59,ADS_gegevens!$H$4=0,\"Vul eerst het geslacht in\")","v":"Vul eerst het geslacht in"},null,null,null,null,"Dagelijks leven",{"$f":"'Resultaten_meting 1'!E28","v":"Vul eerst het geslacht in"},{"$f":"E28","v":"Vul eerst het geslacht in"}]

{"sheet":"ReBTOSS_meting 3","index":8,"n_rows":65,"n_cols":20,"rows_kept":65,"cut":false,"hidden":false,"merged":[[0,4,0,5],[2,3,2,6],[3,1,3,2],[3,3,5,3],[3,4,5,6],[4,1,4,2],[5,1,5,2],[46,0,47,0],[52,0,53,0],[58,0,59,0],[8,0,10,0],[13,0,15,0],[18,0,20,0],[24,0,26,0],[31,0,32,0],[39,0,40,0]]}
[null,null,null,"Voortgang",{"$f":"IF(N65=54,\"KLAAR!\",\"…nog niet klaar\")","v":"…nog niet klaar"},null,null,null,null,null,null,null,null,null,null,null,null,"Totaalscore Risico",null,{"$f":"SUM(Q13+Q18+Q24+Q31+Q37)","v":0}]
[]
[null,null,null,"Ingevulde items:",null,null,null,null,null,null,null,null,null,null,null,null,null,"Totaal score Beschermende",null,{"$f":"SUM(Q46+Q52+Q58+Q64)","v":0}]
[null,null,null,{"$f":"(N65)&\" item(s)\"","v":"0 item(s)"}]
[]
[]
[]
["RISICOFACTOREN",null,"In de afgelopen twee weken…","NIET           van toepassing","BEETJE         van toepassing","VAAK            van toepassing","ZEER VAAK     van toepassing",null,null,null,null,null,null,"vraag ingevuld?",null,null,"Som Cluster","Aantal items per cluster",null,"Gemiddelde Clusterscore"]
["1. Herbeleving van de traumatische gebeurtenis(sen)","1.1","… betrok de leerling  thema's of aspecten van een nare gebeurtenis/ervaring in het spel.",null,null,null,null,{"$f":"IF(M9=3,\"Check\", IF(M9=4,\"Vul in\",IF(M9<3,\"U mag 1 antwoord aankruisen\")))","v":"Vul in"},{"$f":"IF(D9=\"\",\"\",0)","v":""},{"$f":"IF(E9=\"\",\"\",1)","v":""},{"$f":"IF(F9=\"\",\"\",2)","v":""},{"$f":"IF(G9=\"\",\"\",3)","v":""},{"$f":"COUNTBLANK(I9:L9)","v":4},{"$f":"IF(M9=3,1,\"\")","v":""},{"$f":"COUNTIF($I$9:$L$13,0)","v":0},0]
[null,"1.2","… maakte de leerling een vermoeide indruk.",null,null,null,null,{"$f":"IF(M10=3,\"Check\", IF(M10=4,\"Vul in\",IF(M10<3,\"U mag 1 antwoord aankruisen\")))","v":"Vul in"},"","","",{"$f":"IF(G10=\"\",\"\",3)","v":""},{"$f":"COUNTBLANK(I10:L10)","v":4},{"$f":"IF(M10=3,1,\"\")","v":""},{"$f":"COUNTIF($I$9:$K$13,1)","v":0},1]
[null,"1.3","… maakte de leerling  een angstige, bange indruk.",null,null,null,null,{"$f":"IF(M11=3,\"Check\", IF(M11=4,\"Vul in\",IF(M11<3,\"U mag 1 antwoord aankruisen\")))","v":"Vul in"},"","","","",4,"",{"$f":"COUNTIF($I$9:$K$13,2)","v":0},2]
[null,"1.4","… leek de leerling last te hebben van lichamelijke klachten (hierbij kunt u denken aan hoofdpijn of buikpijn).",null,null,null,null,"Vul in","","","","",4,"",{"$f":"COUNTIF($I$9:$L$13,3)","v":0},3]
[null,"1.5","… reageerde de leerling, in een neutrale situatie, op een niet neutrale manier.",null,null,null,null,"Vul in","","","","",4,"",null,null,{"$f":"SUM(I9:L13)","v":0},5,null,{"$f":"Q13/R13","v":0}]
["2. Vermijden van prikkels die worden geassocieerd met de traumatische gebeurtenis(sen) en afstomping van algemene reactiviteit.","2.1","… vermeed de leerling  om te praten over (trauma)gevoelige onderwerpen.",null,null,null,null,"Vul in","","","","",4,"",{"$f":"COUNTIF($I$14:$L$18,0)","v":0},0]
[null,"2.2","… vermeed de leerling bepaalde plaatsen of voorwerpen.",null,null,null,null,"Vul in","","","","",4,"",{"$f":"COUNTIF($I$14:$L$18,1)","v":0},1]
[null,"2.3","… vermeed de leerling bepaalde mensen, gesprekken of (sociale) situaties.",null,null,null,null,"Vul in","","","","",4,"",{"$f":"COUNTIF($I$14:$L$18,2)","v":0},2]
[null,"2.4","… vermeed de leerling bepaalde activiteiten.",null,null,null,null,"Vul in","","","","",4,"",{"$f":"COUNTIF($I$14:$L$18,3)","v":0},3]
[null,"2.5","… vertoonde de leerling beperkt affect.",null,null,null,null,"Vul in","","","","",4,"",null,null,{"$f":"SUM(I14:L18)","v":0},5,null,{"$f":"Q18/R18","v":0}]
["3. Negatieve veranderingen in cognities (overtuigingen of verwachtingen) en stemming (gemoedstoestand)","3.1","… leek de leerling zich schuldig te voelen over bepaalde zaken.",null,null,null,null,"Vul in","","","",{"$f":"IF(G19=\"\",\"\",3)","v":""},4,"",{"$f":"COUNTIF($I$19:$L$24,0)","v":0},0]
[null,"3.2","… deed de leerling negatieve uitspraken over zichzelf, anderen of de wereld.",null,null,null,null,"Vul in","","","",{"$f":"IF(G20=\"\",\"\",3)","v":""},4,"",{"$f":"COUNTIF($I$19:$L$24,1)","v":0},1]
[null,"3.3","… toonde de leerling beperkte interesse (in vergelijking met andere leerlingen) voor belangrijke activiteiten.",null,null,null,null,"Vul in","","","","",4,"",{"$f":"COUNTIF($I$19:$L$24,2)","v":0},2]
[null,"3.4","… maakte de leerling een verdrietige indruk.",null,null,null,null,"Vul in","","","","",4,"",{"$f":"COUNTIF($I$19:$L$24,3)","v":0},3]
[null,"3.5","… maakte de leerling een beschaamde indruk.",null,null,null,null,"Vul in","","","","",4,""]
[null,"3.6","… zocht de leerling geen contact met anderen, zonderde zich af.",null,null,null,null,"Vul in","","","","",4,"",null,null,{"$f":"SUM(I19:L24)","v":0},6,null,{"$f":"Q24/R24","v":0}]
["4. Verhoogde of verlaagde arousal (verhoogde prikkelbaarheid)","4.1","… maakte de leerling een boze indruk.",null,null,null,null,"Vul in","","","",{"$f":"IF(G25=\"\",\"\",3)","v":""},4,"",{"$f":"COUNTIF($I$25:$L$31,0)","v":0},0]
[null,"4.2","… was de leerling onvoorzichtig.",null,null,null,null,"Vul in","","","",{"$f":"IF(G26=\"\",\"\",3)","v":""},4,"",{"$f":"COUNTIF($I$25:$L$31,1)","v":0},1]
[null,"4.3","… was de leerling over-voorzichtig of op de hoede zonder duidelijke reden.",null,null,null,null,"Vul in","","","","",4,"",{"$f":"COUNTIF($I$25:$L$31,2)","v":0},2]
[null,"4.4","… vergat de leerling gewone dagelijkse dingen.",null,null,null,null,"Vul in","","","","",4,"",{"$f":"COUNTIF($I$25:$L$31,3)","v":0},3]
[null,"4.5","… vond de leerling het moeilijk om zijn/haar aandacht ergens bij te houden of om zich te concentreren.",null,null,null,null,"Vul in","","","","",4,""]
[null,"4.6","… schrok de leerling (overdreven) snel of was zenuwachtig.",null,null,null,null,"Vul in","","","","",4,""]
[null,"4.7","… pestte de leerling andere leerlingen.",null,null,null,null,"Vul in","","","","",4,"",null,null,{"$f":"SUM(I25:L31)","v":0},7,null,{"$f":"Q31/R31","v":0}]
["5. Dissociëren","5.1","… gedroeg de leerling zich jonger dan je a.d.h.v. zijn/haar leeftijd zou verwachten.",null,null,null,null,"Vul in","","","",{"$f":"IF(G32=\"\",\"\",3)","v":""},4,"",{"$f":"COUNTIF($I$32:$L$37,0)","v":0},0]
[null,"5.2","… wisselde de leerling plotseling van gedrag.",null,null,null,null,"Vul in","","","",{"$f":"IF(G33=\"\",\"\",3)","v":""},4,"",{"$f":"COUNTIF($I$32:$L$37,1)","v":0},1]
[null,"5.3","… wisselde de leerling snel van emotie.",null,null,null,null,"Vul in","","","","",4,"",{"$f":"COUNTIF($I$32:$L$37,2)","v":0},2]
[null,"5.4","… kon de leerling de ene dag iets wel en de andere dag absoluut niet.",null,null,null,null,"Vul in","","","","",4,"",{"$f":"COUNTIF($I$32:$L$37,3)","v":0},3]
[null,"5.5","… leek de leerling geen herinnering te hebben aan dingen die (net) waren gebeurd of gezegd.",null,null,null,null,"Vul in","","","","",4,""]
[null,"5.6","… gaf de leerling soms geen reactie.",null,null,null,null,"Vul in","","","","",4,"",null,null,{"$f":"SUM(I32:L37)","v":0},6,null,{"$f":"Q37/R37","v":0}]
[null,null,null,null,null,null,null,null,""," ",{"$f":"IF(G38=\"\",\"\",2)","v":""},null,null,{"$f":"IF(M38=3,1,\"\")","v":""}]
["BESCHERMENDE FACTOREN",null,"In de afgelopen twee weken…","NIET             van toepassing","BEETJE       van toepassing","VAAK           van toepassing","ZEER VAAK      van toepassing",null,null,null,null,null,null,""]
["6. Veiligheid en relaties","6.1","… kon de leerling goed overweg met de leerkracht(en): De leerling reageerde positief in contact naar de leerkracht(en).",null,null,null,null,{"$f":"IF(M40=3,\"Check\", IF(M40=4,\"Vul in\",IF(M40<3,\"U mag 1 antwoord aankruisen\")))","v":"Vul in"},{"$f":"IF(D40=\"\",\"\",0)","v":""},{"$f":"IF(E40=\"\",\"\",1)","v":""},{"$f":"IF(F40=\"\",\"\",2)","v":""},{"$f":"IF(G40=\"\",\"\",3)","v":""},4,"",{"$f":"COUNTIF($I$40:$L$46,0)","v":0},0]
[null,"6.2","… kon de leerling goed overweg met de leerkracht(en): De leerling nam initiatief in contact met leerkracht(en).",null,null,null,null,"Vul in","","","",{"$f":"IF(G41=\"\",\"\",3)","v":""},4,"",{"$f":"COUNTIF($I$40:$L$46,1)","v":0},1]
[null,"6.3","… maakte de leerling positief contact met andere leerlingen.",null,null,null,null,"Vul in","","","","",4,"",{"$f":"COUNTIF($I$40:$L$46,2)","v":0},2]
[null,"6.4","… zochten andere leerlingen positief contact met de leerling.",null,null,null,null,"Vul in","","","","",4,"",{"$f":"COUNTIF($I$40:$L$46,3)","v":0},3]
[null,"6.5","… had de leerling het naar zijn/haar zin op school.",null,null,null,null,"Vul in","","","","",4,""]
[null,"6.6","… maakte de leerling een blije indruk.",null,null,null,null,"Vul in","","","","",4,""]
[null,"6.7","… werd de leerling gewaardeerd in de groep (goede sociale status).",null,null,null,null,"Vul in","","","","",4,"",null,null,{"$f":"SUM(I40:L46)","v":0},7,null,{"$f":"Q46/R46","v":0}]
["7. Zelfregulatie","7.1","… maakte de leerling op een adequate manier zijn/haar gevoelens duidelijk.",null,null,null,null,"Vul in","","","","",4,"",{"$f":"COUNTIF($I$47:$L$52,0)","v":0},0]
[null,"7.2","… was de leerling in staat correct te reflecteren en te reageren op andermans gedrag en gevoelens.",null,null,null,null,"Vul in","","","","",4,"",{"$f":"COUNTIF($I$47:$L$52,1)","v":0},1]
[null,"7.3","… was de leerling in staat zichzelf (weer) rustig te krijgen wanneer hij/zij boos, verdrietig of angstig was.",null,null,null,null,"Vul in","","","","",4,"",{"$f":"COUNTIF($I$47:$L$52,2)","v":0},2]
[null,"7.4","… was de leerling, met behulp van een ander, in staat (weer) rustig te worden wanneer hij/zij boos verdrietig of angstig was.",null,null,null,null,"Vul in","","","","",4,"",{"$f":"COUNTIF($I$47:$L$52,3)","v":0},3]
[null,"7.5","… was de leerling flexibel in zijn/haar gedrag.",null,null,null,null,"Vul in","","","","",4,""]
[null,"7.6","… dacht de leerling na voor hijzij iets deed.",null,null,null,null,"Vul in","","","","",4,"",null,null,{"$f":"SUM(I47:L52)","v":0},6,null,{"$f":"Q52/R52","v":0}]
["8. Positief (neutraal) zelfbeeld","8.1","… maakte de leerling een trotse indruk.",null,null,null,null,"Vul in","","","","",4,"",{"$f":"COUNTIF($I$53:$L$58,0)","v":0},0]
[null,"8.2","… praatte de leerling op een positieve manier over zichzelf.",null,null,null,null,"Vul in","","","","",4,"",{"$f":"COUNTIF($I$53:$L$58,1)","v":0},1]
[null,"8.3","… kwam de leerling met (veel) nieuwe ideeën.",null,null,null,null,"Vul in","","","","",4,"",{"$f":"COUNTIF($I$53:$L$58,2)","v":0},2]
[null,"8.4","… kon de leerling goed omgaan met kritiek.",null,null,null,null,"Vul in","","","","",4,"",{"$f":"COUNTIF($I$53:$L$58,3)","v":0},3]
[null,"8.5","… had de leerling vertrouwen in zichzelf.",null,null,null,null,"Vul in","","","","",4,""]
[null,"8.6","… durfde de leerling nieuwe uitdagingen aan te gaan.",null,null,null,null,"Vul in","","","","",4,"",null,null,{"$f":"SUM(I53:L58)","v":0},6,null,{"$f":"Q58/R58","v":0}]
["9. Het dagelijks leven","9.1","… at de leerling goed.",null,null,null,null,"Vul in","","","","",4,"",{"$f":"COUNTIF($I$59:$L$64,0)","v":0},0]
[null,"9.2","… zag de leerling er verzorgd uit.",null,null,null,null,"Vul in","","","","",4,"",{"$f":"COUNTIF($I$59:$L$64,1)","v":0},1]
[null,"9.3","… was de leerling lichamelijk actief geweest.",null,null,null,null,"Vul in","","","","",4,"",{"$f":"COUNTIF($I$59:$L$64,2)","v":0},2]
[null,"9.4","… kwam de leerling op tijd op school.",null,null,null,null,"Vul in","","","","",4,"",{"$f":"COUNTIF($I$59:$L$64,3)","v":0},3]
[null,"9.5","… had de leerling weinig schoolverzuim.",null,null,null,null,"Vul in","","","","",4,""]
[null,"9.6","… waren de ouders van de leerling betrokken.",null,null,null,null,"Vul in","","","","",4,"",null,null,{"$f":"SUM(I59:L64)","v":0},6,null,{"$f":"Q64/R64","v":0}]
[null,null,null,null,null,null,null,null,null,null,null,null,{"$f":"(SUM(M9:M64))/2","v":108},{"$f":"SUM(N9:N64)","v":0}]

{"sheet":"Berekeningen 3","index":9,"n_rows":63,"n_cols":24,"rows_kept":63,"cut":false,"hidden":true,"merged":[[15,12,15,15],[15,18,15,21],[0,5,0,8],[0,12,0,15],[0,18,0,21],[2,5,2,8],[7,12,7,15],[7,18,7,21],[12,5,12,8]]}
[null,null,null,null,null,null,null,null,null,null,null,null,"totaal risicofactoren - somscore",null,null,null,null,null,"totaal beschermende factoren - somscore"]
[null,null,null,null,null,null,null,null,null,null,null,null,"normaal","licht verhoogd","verhoogd","sterk verhoogd",null,null,"sterk verlaagd","verlaagd","licht verlaagd","normaal"]
["Meting 1","Totaal score",null,null,null,null,null,null,null,null,null,"jongens (n = 198)","0 - 9","10 - 19","20 - 25","26 - 87",null,"jongens (n = 198)","0 - 33","34 - 39","40 - 45","46 - 75"]
["Risicofactoren ",{"$f":"'ReBTOSS_meting 3'!T1","v":0},null,null,null,null,null,null,null,null,null,"meisjes (n = 207)","0 - 5","6 - 13","14 - 22","23 - 87",null,"meisjes (n = 207)","0 - 37","38 - 43","44 - 49","50 - 75"]
["Beschermende factoren ",{"$f":"'ReBTOSS_meting 3'!T3","v":0}]
[]
["Risicofactoren","Somscore","Gemiddelde score subschalen"]
["Herbeleving",{"$f":"'ReBTOSS_meting 3'!Q13","v":0},{"$f":"'ReBTOSS_meting 3'!T13","v":0},null,null,null,null,null,null,null,null,null,"risicofactoren subschalen - gemiddelde score",null,null,null,null,null,"beschermende factoren subschalen - gemiddelde score"]
["Vermijding",{"$f":"'ReBTOSS_meting 3'!Q18","v":0},{"$f":"'ReBTOSS_meting 3'!T18","v":0},null,null,null,null,null,null,null,null,"jongens (n = 198)","normaal","licht verhoogd","verhoogd","sterk verhoogd",null,"jongens (n = 198)","sterk verlaagd","verlaagd","licht verlaagd","normaal"]
["Negatieve veranderingen cognities en stemming",{"$f":"'ReBTOSS_meting 3'!Q24","v":0},{"$f":"'ReBTOSS_meting 3'!T24","v":0},null,null,null,null,null,null,null,null,"herbeleving","0,000 - 0,399","0,400 - 0,599","0,600 - 0,999","1,000 - 3,000",5,"veiligheid en relaties","0,000 - 1,285","1,286 - 1,713","1,714 - 1,856","1,857 - 3,000"]
["Arousal",{"$f":"'ReBTOSS_meting 3'!Q31","v":0},{"$f":"'ReBTOSS_meting 3'!T31","v":0},null,null,null,null,null,null,null,null,"vermijding","0,000 - 0,199","0,200 - 0,799","0,800 - 0,999","1,000 - 3,000",5,"zelfregulatie","0,000 - 0,500","0,501 - 0,999","1,000 - 1,332","1,333 - 3,000"]
["Dissociatie",{"$f":"'ReBTOSS_meting 3'!Q37","v":0},{"$f":"'ReBTOSS_meting 3'!T37","v":0},null,null,null,null,null,null,null,null,"negatieve veranderingen cognities en stemming","0,000 - 0,332","0,333 - 0,499","0,500 - 0,832","0,833 - 3,000",6,"zelfbeeld","0,000 - 0,666","0,667 - 1,332","1,333 - 1,666","1,667 - 3,000"]
[null,null,null,null,null,"beschermende factoren subschalen - gemiddelde score",null,null,null,null,null,"arousal","0,000 - 0,285","0,286 - 0,428","0,429 - 0,713","0,714 - 3,000",7,"dagelijks leven","0,000 - 1,832","1,833 - 1,999","2,000 - 2,166","2,167 - 3,000"]
["Beschermende factoren","Somscore","Gemiddelde score subschalen",null,"jongens (n = 198)","sterk verlaagd","verlaagd","licht verlaagd","normaal",null,null,"dissociatie","0,000 - 0,332","0,333 - 0,499","0,500 - 0,832","0,833 - 3,000",6]
["veiligheid en relaties",{"$f":"'ReBTOSS_meting 3'!Q46","v":0},{"$f":"'ReBTOSS_meting 3'!T46","v":0},null,"veiligheid en relaties","0,000 - 1,285","1,286 - 1,713","1,714 - 1,856","1,857 - 3,000"]
["zelfregulatie",{"$f":"'ReBTOSS_meting 3'!Q52","v":0},{"$f":"'ReBTOSS_meting 3'!T52","v":0},null,"zelfregulatie","0,000 - 0,500","0,501 - 0,999","1,000 - 1,332","1,333 - 3,000",null,null,null,"risicofactoren subschalen - gemiddelde score",null,null,null,null,null,"beschermende factoren subschalen - gemiddelde score"]
["zelfbeeld",{"$f":"'ReBTOSS_meting 3'!Q58","v":0},{"$f":"'ReBTOSS_meting 3'!T58","v":0},null,"zelfbeeld","0,000 - 0,666","0,667 - 1,332","1,333 - 1,666","1,667 - 3,000",null,null,"meisjes (n = 207)","normaal","licht verhoogd","verhoogd","sterk verhoogd",null,"meisjes (n = 207)","sterk verlaagd","verlaagd","licht verlaagd","normaal"]
["dagelijks leven",{"$f":"'ReBTOSS_meting 3'!Q64","v":0},{"$f":"'ReBTOSS_meting 3'!T64","v":0},null,"dagelijks leven","0,000 - 1,832","1,833 - 1,999","2,000 - 2,166","2,167 - 3,000",null,null,"herbeleving","0,000 - 0,399","0,400 - 0,599","0,600 - 0,999","1,000 - 3,000",5,"veiligheid en relaties","0,000 - 1,713","1,714 - 1,856","1,857 - 1,999","2,000 - 3,000"]
[null,null,null,null,null,null,null,null,null,null,null,"vermijding","0,000 - 0,199","0,200 - 0,399","0,400 - 0,799","0,800 - 3,000",5,"zelfregulatie","0,000 - 0,832","0,833 - 1,166","1,167 - 1,499","1,500 - 3,000"]
[null,null,null,null,null,null,null,null,null,null,null,"negatieve veranderingen cognities en stemming","0,000 - 0,332","0,333 - 0,499","0,500 - 0,832","0,833 - 3,000",6,"zelfbeeld","0,000 - 0,999","1,000 - 1,332","1,333 - 1,499","1,500 - 3,000"]
[null,null,null,null,null,null,null,null,null,null,null,"arousal","0,000 - 0,285","0,286 - 0,428","0,429 - 0,713","0,714 - 3,000",7,"dagelijks leven","0,000 - 1,832","1,833 - 1,999","2,000 - 2,332","2,333 - 3,000"]
[{"$f":"IF('ReBTOSS_meting 3'!N65=54,\"Meting 3 is goed ingevuld\",\"Meting 3 is NIET goed ingevuld. De resultaten zijn ONBETROUWBAAR.\")","v":"Meting 3 is NIET goed ingevuld. De resultaten zijn ONBETROUWBAAR."},null,null,null,null,null,null,null,null,null,null,"dissociatie","0,000 - 0,332","0,333 - 0,499","0,500 - 0,832","0,833 - 3,000",6]
[]
[null,"Jongen","Totaal score","Betekenis",null,"Normaal","Licht verhoogd","Verhoogd","Sterk verhoogd","Betekenis"]
[null,"Risicofactoren ",{"$f":"B4","v":0},{"$f":"_xlfn.IFS(J25=0,\"Normaal\",J25=1,\"Licht verhoogd\",J25=2,\"Verhoogd\",J25=3,\"Sterk verhoogd\")","v":"Normaal"},null,{"$f":"IF(C25<10,0,\"\")","v":0},{"$f":"IF(AND(C25>9,C25<20),1,\"\")","v":""},{"$f":"IF(AND(C25>19,C25<26),2,\"\")","v":""},{"$f":"IF(C25>25,3,\"\")","v":""},{"$f":"SUM(F25:I25)","v":0}]
[null,null,"Totaal score","Betekenis",null,"Sterk verlaagd","Verlaagd","Licht verlaagd","Normaal",null,null,null,"De bovengrenzen: risico",null,null,null,null,null,null,"De bovengrenzen: beschermend"]
[null,"Beschermende factoren ",{"$f":"B5","v":0},{"$f":"_xlfn.IFS(J27=3,\"Sterk verlaagd\",J27=2,\"Verlaagd\",J27=1,\"Licht verlaagd\",J27=0,\"Normaal\")","v":"Sterk verlaagd"},null,{"$f":"IF(C27<34,3,\"\")","v":3},{"$f":"IF(AND(C27>33,C27<40),2,\"\")","v":""},{"$f":"IF(AND(C27>39,C27<46),1,\"\")","v":""},{"$f":"IF(C27>45,0,\"\")","v":""},{"$f":"SUM(F27:I27)","v":3},null,null,"Jongen",null,null,null,null,null,null,"Jongen"]
[null,null,null,null,null,null,null,null,null,null,null,null,null,"Herbeleving","Vermijding","Negatieve veranderingen cognities en stemming","Arousal","Dissociatie",null,null,"Veiligheid en relaties","Zelfregulatie","Zelfbeeld","Dagelijks leven"]
[null,"Risicofactoren","Somscore","Gemiddelde score subschalen","Betekenis","Normaal","Licht verhoogd","Verhoogd","Sterk verhoogd","Betekenis",null,null,"Meting 3",{"$f":"D30","v":0},{"$f":"D31","v":0},{"$f":"D32","v":0},{"$f":"D33","v":0},{"$f":"D34","v":0},null,"Meting 2",{"$f":"D37","v":0},{"$f":"D38","v":0},{"$f":"D39","v":0},{"$f":"D40","v":0}]
[null,"Herbeleving",{"$f":"B8","v":0},{"$f":"C8","v":0},{"$f":"_xlfn.IFS(J30=0,\"Normaal\",J30=1,\"Licht verhoogd\",J30=2,\"Verhoogd\",J30=3,\"Sterk verhoogd\")","v":"Normaal"},{"$f":"IF(D30<0.4,0,\"\")","v":0},{"$f":"IF(AND(D30>0.399,D30<0.6),1,\"\")","v":""},{"$f":"IF(AND(D30>0.599,D30<1),2,\"\")","v":""},{"$f":"IF(D30>0.999,3,\"\")","v":""},{"$f":"SUM(F30:I30)","v":0},null,"5 Items","Normaal",0.39950000000000002,0.19950000000000001,0.33250000000000002,0.28549999999999998,0.33250000000000002,null,"Sterk verlaagd",1.2855000000000001,0.50049999999999994,0.66649999999999998,1.8325]
[null,"Vermijding",{"$f":"B9","v":0},0,{"$f":"_xlfn.IFS(J31=0,\"Normaal\",J31=1,\"Licht verhoogd\",J31=2,\"Verhoogd\",J31=3,\"Sterk verhoogd\")","v":"Normaal"},{"$f":"IF(D31<0.2,0,\"\")","v":0},{"$f":"IF(AND(D31>0.199,D31<0.8),1,\"\")","v":""},{"$f":"IF(AND(D31>0.799,D31<1),2,\"\")","v":""},{"$f":"IF(D31>0.999,3,\"\")","v":""},{"$f":"SUM(F31:I31)","v":0},null,"5 Items","Licht verhoogd",0.59950000000000003,0.79949999999999999,0.4995,0.42849999999999999,0.4995,null,"Verlaagd",1.7135,0.99950000000000006,1.3325,1.9995000000000001]
[null,"Negatieve veranderingen cognities en stemming",0,0,"Normaal",{"$f":"IF(D32<0.333,0,\"\")","v":0},{"$f":"IF(AND(D32>0.332,D32<0.5),1,\"\")","v":""},{"$f":"IF(AND(D32>0.499,D32<0.833),2,\"\")","v":""},{"$f":"IF(D32>0.832,3,\"\")","v":""},0,null,"6 Items","Verhoogd",0.99950000000000006,0.99950000000000006,0.83250000000000002,0.71350000000000002,0.83250000000000002,null,"Licht verlaagd",1.8565,1.3325,1.6665000000000001,2.1665000000000001]
[null,"Arousal",0,0,"Normaal",{"$f":"IF(D33<0.285,0,\"\")","v":0},{"$f":"IF(AND(D33>0.285,D33<0.428),1,\"\")","v":""},{"$f":"IF(AND(D33>0.428,D33<0.714),2,\"\")","v":""},{"$f":"IF(D33>0.713,3,\"\")","v":""},0,null,"7 Items","Sterk verhoogd",3,3,3,3,3,null,"Normaal",3,3,3,3]
[null,"Dissociatie",0,0,"Normaal",{"$f":"IF(D34<0.333,0,\"\")","v":0},{"$f":"IF(AND(D34>0.332,D34<0.5),1,\"\")","v":""},{"$f":"IF(AND(D34>0.499,D34<0.833),2,\"\")","v":""},{"$f":"IF(D34>0.832,3,\"\")","v":""},0,null,"6 Items"]
[]
[null,"Beschermende factoren","Somscore","Gemiddelde score subschalen","Betekenis","Sterk verlaagd","Verlaagd","Licht verlaagd","Normaal","Betekenis"]
[null,"veiligheid en relaties",{"$f":"B15","v":0},{"$f":"C15","v":0},{"$f":"_xlfn.IFS(J37=3,\"Sterk verlaagd\",J37=2,\"Verlaagd\",J37=1,\"Licht verlaagd\",J37=0,\"Normaal\")","v":"Sterk verlaagd"},{"$f":"IF(D37<1.285,3,\"\")","v":3},{"$f":"IF(AND(D37>1.2855,D37<1.714),2,\"\")","v":""},{"$f":"IF(AND(D37>1.713,D37<1.857),1,\"\")","v":""},{"$f":"IF(D37>1.856,0,\"\")","v":""},{"$f":"SUM(F37:I37)","v":3},null,"7 Items","Meisje",null,null,null,null,null,null,"Meisje"]
[null,"zelfregulatie",{"$f":"B16","v":0},0,{"$f":"_xlfn.IFS(J38=3,\"Sterk verlaagd\",J38=2,\"Verlaagd\",J38=1,\"Licht verlaagd\",J38=0,\"Normaal\")","v":"Sterk verlaagd"},{"$f":"IF(D38<0.501,3,\"\")","v":3},{"$f":"IF(AND(D38>0.5,D38<1),2,\"\")","v":""},{"$f":"IF(AND(D38>0.999,D38<1.333),1,\"\")","v":""},{"$f":"IF(D38>1.332,0,\"\")","v":""},{"$f":"SUM(F38:I38)","v":3},null,"6 Items",null,"Herbeleving","Vermijding","Negatieve veranderingen cognities en stemming","Arousal","Dissociatie",null,null,"Veiligheid en relaties","Zelfregulatie","Zelfbeeld","Dagelijks leven"]
[null,"zelfbeeld",0,0,{"$f":"_xlfn.IFS(J39=3,\"Sterk verlaagd\",J39=2,\"Verlaagd\",J39=1,\"Licht verlaagd\",J39=0,\"Normaal\")","v":"Sterk verlaagd"},{"$f":"IF(D39<0.65,3,\"\")","v":3},{"$f":"IF(AND(D39>0.666,D39<1.333),2,\"\")","v":""},{"$f":"IF(AND(D39>1.332,D39<1.65),1,\"\")","v":""},{"$f":"IF(D39>1.666,0,\"\")","v":""},3,null,"6 Items","Meting 3",{"$f":"D49","v":0},{"$f":"D50","v":0},{"$f":"D51","v":0},{"$f":"D52","v":0},{"$f":"D53","v":0},null,"Meting 2",{"$f":"D56","v":0},{"$f":"D57","v":0},{"$f":"D58","v":0},{"$f":"D59","v":0}]
[null,"dagelijks leven",0,0,{"$f":"_xlfn.IFS(J40=3,\"Sterk verlaagd\",J40=2,\"Verlaagd\",J40=1,\"Licht verlaagd\",J40=0,\"Normaal\")","v":"Sterk verlaagd"},{"$f":"IF(D40<1.833,3,\"\")","v":3},{"$f":"IF(AND(D40>1.832,D40<2),2,\"\")","v":""},{"$f":"IF(AND(D40>1.999,D40<2.165),1,\"\")","v":""},{"$f":"IF(D40>2.166,0,\"\")","v":""},3,null,"6 Items","Normaal",0.39950000000000002,0.19950000000000001,0.33250000000000002,0.28549999999999998,0.33250000000000002,null,"Sterk verlaagd",1.7135,0.83250000000000002,0.99950000000000006,1.8325]
[null,null,null,null,null,null,null,null,null,null,null,null,"Licht verhoogd",0.59950000000000003,0.39950000000000002,0.4995,0.42849999999999999,0.4995,null,"Verlaagd",1.8565,1.1665000000000001,1.3325,1.9995000000000001]
[null,null,null,null,null,null,null,null,null,null,null,null,"Verhoogd",0.99950000000000006,0.79949999999999999,0.83250000000000002,0.71350000000000002,0.83250000000000002,null,"Licht verlaagd",1.9995000000000001,1.4995000000000001,1.4995000000000001,2.3325]
[null,"Meisje","Totaal score","Betekenis",null,"Normaal","Licht verhoogd","Verhoogd","Sterk Verhoogd","Betekenis",null,null,"Sterk verhoogd",3,3,3,3,3,null,"Normaal",3,3,3,3]
[null,"Risicofactoren ",{"$f":"B4","v":0},{"$f":"_xlfn.IFS(J44=0,\"Normaal\",J44=1,\"Licht verhoogd\",J44=2,\"Verhoogd\",J44=3,\"Sterk verhoogd\")","v":"Normaal"},null,{"$f":"IF(C44<6,0,\"\")","v":0},{"$f":"IF(AND(C44>5,C44<14),1,\"\")","v":""},{"$f":"IF(AND(C44>13,C44<23),2,\"\")","v":""},{"$f":"IF(C44>22,3,\"\")","v":""},{"$f":"SUM(F44:I44)","v":0}]
[null,null,null,null,null,"Sterk verlaagd","Verlaagd","licht verlaagd ","Normaal"]
[null,"Beschermende factoren ",{"$f":"B5","v":0},{"$f":"_xlfn.IFS(J46=3,\"Sterk verlaagd\",J46=2,\"Verlaagd\",J46=1,\"Licht verlaagd\",J46=0,\"Normaal\")","v":"Sterk verlaagd"},null,{"$f":"IF(C46<38,3,\"\")","v":3},{"$f":"IF(AND(C46>37,C46<44),2,\"\")","v":""},{"$f":"IF(AND(C46>43,C46<50),1,\"\")","v":""},{"$f":"IF(C46>49,0,\"\")","v":""},{"$f":"SUM(F46:I46)","v":3}]
[null,null,null,null,null,null,null,null,null,null,null,null,"TABEL  Berekenen RISICO GRENZEN Jongen versus Meisje",null,null,null,null,null,null,"TABEL  Berekenen BESCHERMEND GRENZEN Jongen versus Meisje"]
[null,"Risicofactoren","Somscore","Gemiddelde score subschalen","Betekenis","Normaal","Licht verhoogd","Verhoogd","Sterk verhoogd","Betekenis",null,null,null,"Herbeleving","Vermijding","Negatieve veranderingen cognities en stemming","Arousal","Dissociatie",null,null,"Veiligheid en relaties","Zelfregulatie","Zelfbeeld","Dagelijks leven"]
[null,"Herbeleving",{"$f":"B8","v":0},{"$f":"C8","v":0},{"$f":"_xlfn.IFS(J49=0,\"Normaal\",J49=1,\"Licht verhoogd\",J49=2,\"Verhoogd\",J49=3,\"Sterk verhoogd\")","v":"Normaal"},{"$f":"IF(D49<0.4,0,\"\")","v":0},{"$f":"IF(AND(D49>0.399,D49<0.6),1,\"\")","v":""},{"$f":"IF(AND(D49>0.599,D49<1),2,\"\")","v":""},{"$f":"IF(D49>0.999,3,\"\")","v":""},{"$f":"SUM(F49:I49)","v":0},null,"5 Items","Meting 3",{"$f":"N29","v":0},{"$f":"O29","v":0},{"$f":"P29","v":0},{"$f":"Q29","v":0},{"$f":"R29","v":0},null,"Meting 3",{"$f":"U29","v":0},{"$f":"V29","v":0},{"$f":"W29","v":0},{"$f":"X29","v":0}]
[null,"Vermijding",{"$f":"B9","v":0},0,{"$f":"_xlfn.IFS(J50=0,\"Normaal\",J50=1,\"Licht verhoogd\",J50=2,\"Verhoogd\",J50=3,\"Sterk verhoogd\")","v":"Normaal"},{"$f":"IF(D50<0.2,0,\"\")","v":0},{"$f":"IF(AND(D50>0.199,D50<0.4),1,\"\")","v":""},{"$f":"IF(AND(D50>0.399,D50<0.8),2,\"\")","v":""},{"$f":"IF(D50>0.799,3,\"\")","v":""},{"$f":"SUM(F50:I50)","v":0},null,"5 Items","Normaal",{"$f":"_xlfn.IFS('Resultaten_meting 1'!$A$12=\"Jongen\",Berekeningen1!N30,'Resultaten_meting 1'!$A$12=\"Meisje\",Berekeningen1!N40,'Resultaten_meting 1'!$A$12=\"Vul geslacht in, anders kan de BETEKENIS NIET worden weergegeven\",\"0\")","v":{"$error":"#N/A"}},{"$f":"_xlfn.IFS('Resultaten_meting 1'!$A$12=\"Jongen\",Berekeningen1!O30,'Resultaten_meting 1'!$A$12=\"Meisje\",Berekeningen1!O40,'Resultaten_meting 1'!$A$12=\"Vul geslacht in, anders kan de BETEKENIS NIET worden weergegeven\",\"0\")","v":{"$error":"#N/A"}},{"$f":"_xlfn.IFS('Resultaten_meting 1'!$A$12=\"Jongen\",Berekeningen1!P30,'Resultaten_meting 1'!$A$12=\"Meisje\",Berekeningen1!P40,'Resultaten_meting 1'!$A$12=\"Vul geslacht in, anders kan de BETEKENIS NIET worden weergegeven\",\"0\")","v":{"$error":"#N/A"}},{"$f":"_xlfn.IFS('Resultaten_meting 1'!$A$12=\"Jongen\",Berekeningen1!Q30,'Resultaten_meting 1'!$A$12=\"Meisje\",Berekeningen1!Q40,'Resultaten_meting 1'!$A$12=\"Vul geslacht in, anders kan de BETEKENIS NIET worden weergegeven\",\"0\")","v":{"$error":"#N/A"}},{"$f":"_xlfn.IFS('Resultaten_meting 1'!$A$12=\"Jongen\",Berekeningen1!R30,'Resultaten_meting 1'!$A$12=\"Meisje\",Berekeningen1!R40,'Resultaten_meting 1'!$A$12=\"Vul geslacht in, anders kan de BETEKENIS NIET worden weergegeven\",\"0\")","v":{"$error":"#N/A"}},null,"Sterk verlaagd",{"$f":"_xlfn.IFS('Resultaten_meting 1'!$A$12=\"Jongen\",Berekeningen1!U30,'Resultaten_meting 1'!$A$12=\"Meisje\",Berekeningen1!U40,'Resultaten_meting 1'!$A$12=\"Vul geslacht in, anders kan de BETEKENIS NIET worden weergegeven\",\"0\")","v":{"$error":"#N/A"}},{"$f":"_xlfn.IFS('Resultaten_meting 1'!$A$12=\"Jongen\",Berekeningen1!V30,'Resultaten_meting 1'!$A$12=\"Meisje\",Berekeningen1!V40,'Resultaten_meting 1'!$A$12=\"Vul geslacht in, anders kan de BETEKENIS NIET worden weergegeven\",\"0\")","v":{"$error":"#N/A"}},{"$f":"_xlfn.IFS('Resultaten_meting 1'!$A$12=\"Jongen\",Berekeningen1!W30,'Resultaten_meting 1'!$A$12=\"Meisje\",Berekeningen1!W40,'Resultaten_meting 1'!$A$12=\"Vul geslacht in, anders kan de BETEKENIS NIET worden weergegeven\",\"0\")","v":{"$error":"#N/A"}},{"$f":"_xlfn.IFS('Resultaten_meting 1'!$A$12=\"Jongen\",Berekeningen1!X30,'Resultaten_meting 1'!$A$12=\"Meisje\",Berekeningen1!X40,'Resultaten_meting 1'!$A$12=\"Vul geslacht in, anders kan de BETEKENIS NIET worden weergegeven\",\"0\")","v":{"$error":"#N/A"}}]
[null,"Negatieve veranderingen cognities en stemming",0,0,"Normaal",{"$f":"IF(D51<0.333,0,\"\")","v":0},{"$f":"IF(AND(D51>0.332,D51<0.5),1,\"\")","v":""},{"$f":"IF(AND(D51>0.499,D51<0.833),2,\"\")","v":""},{"$f":"IF(D51>0.832,3,\"\")","v":""},0,null,"6 Items","Licht verhoogd",{"$f":"_xlfn.IFS('Resultaten_meting 1'!$A$12=\"Jongen\",Berekeningen1!N31,'Resultaten_meting 1'!$A$12=\"Meisje\",Berekeningen1!N41,'Resultaten_meting 1'!$A$12=\"Vul geslacht in, anders kan de BETEKENIS NIET worden weergegeven\",\"0\")","v":{"$error":"#N/A"}},{"$f":"_xlfn.IFS('Resultaten_meting 1'!$A$12=\"Jongen\",Berekeningen1!O31,'Resultaten_meting 1'!$A$12=\"Meisje\",Berekeningen1!O41,'Resultaten_meting 1'!$A$12=\"Vul geslacht in, anders kan de BETEKENIS NIET worden weergegeven\",\"0\")","v":{"$error":"#N/A"}},{"$f":"_xlfn.IFS('Resultaten_meting 1'!$A$12=\"Jongen\",Berekeningen1!P31,'Resultaten_meting 1'!$A$12=\"Meisje\",Berekeningen1!P41,'Resultaten_meting 1'!$A$12=\"Vul geslacht in, anders kan de BETEKENIS NIET worden weergegeven\",\"0\")","v":{"$error":"#N/A"}},{"$f":"_xlfn.IFS('Resultaten_meting 1'!$A$12=\"Jongen\",Berekeningen1!Q31,'Resultaten_meting 1'!$A$12=\"Meisje\",Berekeningen1!Q41,'Resultaten_meting 1'!$A$12=\"Vul geslacht in, anders kan de BETEKENIS NIET worden weergegeven\",\"0\")","v":{"$error":"#N/A"}},{"$f":"_xlfn.IFS('Resultaten_meting 1'!$A$12=\"Jongen\",Berekeningen1!R31,'Resultaten_meting 1'!$A$12=\"Meisje\",Berekeningen1!R41,'Resultaten_meting 1'!$A$12=\"Vul geslacht in, anders kan de BETEKENIS NIET worden weergegeven\",\"0\")","v":{"$error":"#N/A"}},null,"Verlaagd",{"$f":"_xlfn.IFS('Resultaten_meting 1'!$A$12=\"Jongen\",Berekeningen1!U31,'Resultaten_meting 1'!$A$12=\"Meisje\",Berekeningen1!U41,'Resultaten_meting 1'!$A$12=\"Vul geslacht in, anders kan de BETEKENIS NIET worden weergegeven\",\"0\")","v":{"$error":"#N/A"}},{"$f":"_xlfn.IFS('Resultaten_meting 1'!$A$12=\"Jongen\",Berekeningen1!V31,'Resultaten_meting 1'!$A$12=\"Meisje\",Berekeningen1!V41,'Resultaten_meting 1'!$A$12=\"Vul geslacht in, anders kan de BETEKENIS NIET worden weergegeven\",\"0\")","v":{"$error":"#N/A"}},{"$f":"_xlfn.IFS('Resultaten_meting 1'!$A$12=\"Jongen\",Berekeningen1!W31,'Resultaten_meting 1'!$A$12=\"Meisje\",Berekeningen1!W41,'Resultaten_meting 1'!$A$12=\"Vul geslacht in, anders kan de BETEKENIS NIET worden weergegeven\",\"0\")","v":{"$error":"#N/A"}},{"$f":"_xlfn.IFS('Resultaten_meting 1'!$A$12=\"Jongen\",Berekeningen1!X31,'Resultaten_meting 1'!$A$12=\"Meisje\",Berekeningen1!X41,'Resultaten_meting 1'!$A$12=\"Vul geslacht in, anders kan de BETEKENIS NIET worden weergegeven\",\"0\")","v":{"$error":"#N/A"}}]
[null,"Arousal",0,0,"Normaal",{"$f":"IF(D52<0.285,0,\"\")","v":0},{"$f":"IF(AND(D52>0.285,D52<0.428),1,\"\")","v":""},{"$f":"IF(AND(D52>0.428,D52<0.714),2,\"\")","v":""},{"$f":"IF(D52>0.713,3,\"\")","v":""},0,null,"7 Items","Verhoogd",{"$f":"_xlfn.IFS('Resultaten_meting 1'!$A$12=\"Jongen\",Berekeningen1!N32,'Resultaten_meting 1'!$A$12=\"Meisje\",Berekeningen1!N42,'Resultaten_meting 1'!$A$12=\"Vul geslacht in, anders kan de BETEKENIS NIET worden weergegeven\",\"0\")","v":{"$error":"#N/A"}},{"$f":"_xlfn.IFS('Resultaten_meting 1'!$A$12=\"Jongen\",Berekeningen1!O32,'Resultaten_meting 1'!$A$12=\"Meisje\",Berekeningen1!O42,'Resultaten_meting 1'!$A$12=\"Vul geslacht in, anders kan de BETEKENIS NIET worden weergegeven\",\"0\")","v":{"$error":"#N/A"}},{"$f":"_xlfn.IFS('Resultaten_meting 1'!$A$12=\"Jongen\",Berekeningen1!P32,'Resultaten_meting 1'!$A$12=\"Meisje\",Berekeningen1!P42,'Resultaten_meting 1'!$A$12=\"Vul geslacht in, anders kan de BETEKENIS NIET worden weergegeven\",\"0\")","v":{"$error":"#N/A"}},{"$f":"_xlfn.IFS('Resultaten_meting 1'!$A$12=\"Jongen\",Berekeningen1!Q32,'Resultaten_meting 1'!$A$12=\"Meisje\",Berekeningen1!Q42,'Resultaten_meting 1'!$A$12=\"Vul geslacht in, anders kan de BETEKENIS NIET worden weergegeven\",\"0\")","v":{"$error":"#N/A"}},{"$f":"_xlfn.IFS('Resultaten_meting 1'!$A$12=\"Jongen\",Berekeningen1!R32,'Resultaten_meting 1'!$A$12=\"Meisje\",Berekeningen1!R42,'Resultaten_meting 1'!$A$12=\"Vul geslacht in, anders kan de BETEKENIS NIET worden weergegeven\",\"0\")","v":{"$error":"#N/A"}},null,"Licht Verlaagd",{"$f":"_xlfn.IFS('Resultaten_meting 1'!$A$12=\"Jongen\",Berekeningen1!U32,'Resultaten_meting 1'!$A$12=\"Meisje\",Berekeningen1!U42,'Resultaten_meting 1'!$A$12=\"Vul geslacht in, anders kan de BETEKENIS NIET worden weergegeven\",\"0\")","v":{"$error":"#N/A"}},{"$f":"_xlfn.IFS('Resultaten_meting 1'!$A$12=\"Jongen\",Berekeningen1!V32,'Resultaten_meting 1'!$A$12=\"Meisje\",Berekeningen1!V42,'Resultaten_meting 1'!$A$12=\"Vul geslacht in, anders kan de BETEKENIS NIET worden weergegeven\",\"0\")","v":{"$error":"#N/A"}},{"$f":"_xlfn.IFS('Resultaten_meting 1'!$A$12=\"Jongen\",Berekeningen1!W32,'Resultaten_meting 1'!$A$12=\"Meisje\",Berekeningen1!W42,'Resultaten_meting 1'!$A$12=\"Vul geslacht in, anders kan de BETEKENIS NIET worden weergegeven\",\"0\")","v":{"$error":"#N/A"}},{"$f":"_xlfn.IFS('Resultaten_meting 1'!$A$12=\"Jongen\",Berekeningen1!X32,'Resultaten_meting 1'!$A$12=\"Meisje\",Berekeningen1!X42,'Resultaten_meting 1'!$A$12=\"Vul geslacht in, anders kan de BETEKENIS NIET worden weergegeven\",\"0\")","v":{"$error":"#N/A"}}]
[null,"Dissociatie",0,0,"Normaal",{"$f":"IF(D53<0.333,0,\"\")","v":0},{"$f":"IF(AND(D53>0.332,D53<0.5),1,\"\")","v":""},{"$f":"IF(AND(D53>0.499,D53<0.833),2,\"\")","v":""},{"$f":"IF(D53>0.832,3,\"\")","v":""},0,null,"6 Items","Sterk verhoogd",{"$f":"_xlfn.IFS('Resultaten_meting 1'!$A$12=\"Jongen\",Berekeningen1!N33,'Resultaten_meting 1'!$A$12=\"Meisje\",Berekeningen1!N43,'Resultaten_meting 1'!$A$12=\"Vul geslacht in, anders kan de BETEKENIS NIET worden weergegeven\",\"0\")","v":{"$error":"#N/A"}},{"$f":"_xlfn.IFS('Resultaten_meting 1'!$A$12=\"Jongen\",Berekeningen1!O33,'Resultaten_meting 1'!$A$12=\"Meisje\",Berekeningen1!O43,'Resultaten_meting 1'!$A$12=\"Vul geslacht in, anders kan de BETEKENIS NIET worden weergegeven\",\"0\")","v":{"$error":"#N/A"}},{"$f":"_xlfn.IFS('Resultaten_meting 1'!$A$12=\"Jongen\",Berekeningen1!P33,'Resultaten_meting 1'!$A$12=\"Meisje\",Berekeningen1!P43,'Resultaten_meting 1'!$A$12=\"Vul geslacht in, anders kan de BETEKENIS NIET worden weergegeven\",\"0\")","v":{"$error":"#N/A"}},{"$f":"_xlfn.IFS('Resultaten_meting 1'!$A$12=\"Jongen\",Berekeningen1!Q33,'Resultaten_meting 1'!$A$12=\"Meisje\",Berekeningen1!Q43,'Resultaten_meting 1'!$A$12=\"Vul geslacht in, anders kan de BETEKENIS NIET worden weergegeven\",\"0\")","v":{"$error":"#N/A"}},{"$f":"_xlfn.IFS('Resultaten_meting 1'!$A$12=\"Jongen\",Berekeningen1!R33,'Resultaten_meting 1'!$A$12=\"Meisje\",Berekeningen1!R43,'Resultaten_meting 1'!$A$12=\"Vul geslacht in, anders kan de BETEKENIS NIET worden weergegeven\",\"0\")","v":{"$error":"#N/A"}},null,"Normaal",{"$f":"_xlfn.IFS('Resultaten_meting 1'!$A$12=\"Jongen\",Berekeningen1!U33,'Resultaten_meting 1'!$A$12=\"Meisje\",Berekeningen1!U43,'Resultaten_meting 1'!$A$12=\"Vul geslacht in, anders kan de BETEKENIS NIET worden weergegeven\",\"0\")","v":{"$error":"#N/A"}},{"$f":"_xlfn.IFS('Resultaten_meting 1'!$A$12=\"Jongen\",Berekeningen1!V33,'Resultaten_meting 1'!$A$12=\"Meisje\",Berekeningen1!V43,'Resultaten_meting 1'!$A$12=\"Vul geslacht in, anders kan de BETEKENIS NIET worden weergegeven\",\"0\")","v":{"$error":"#N/A"}},{"$f":"_xlfn.IFS('Resultaten_meting 1'!$A$12=\"Jongen\",Berekeningen1!W33,'Resultaten_meting 1'!$A$12=\"Meisje\",Berekeningen1!W43,'Resultaten_meting 1'!$A$12=\"Vul geslacht in, anders kan de BETEKENIS NIET worden weergegeven\",\"0\")","v":{"$error":"#N/A"}},{"$f":"_xlfn.IFS('Resultaten_meting 1'!$A$12=\"Jongen\",Berekeningen1!X33,'Resultaten_meting 1'!$A$12=\"Meisje\",Berekeningen1!X43,'Resultaten_meting 1'!$A$12=\"Vul geslacht in, anders kan de BETEKENIS NIET worden weergegeven\",\"0\")","v":{"$error":"#N/A"}}]
[]
[null,"Beschermende factoren","Somscore","Gemiddelde score subschalen","Betekenis","Sterk verlaagd","Verlaagd","Licht verlaagd","Normaal","Betekenis",null,null,"Kleuren voor in grafiek",null,null,null,null,null,null,"Kleuren voor in grafiek"]
[null,"veiligheid en relaties",{"$f":"B15","v":0},{"$f":"C15","v":0},{"$f":"_xlfn.IFS(J56=3,\"Sterk verlaagd\",J56=2,\"Verlaagd\",J56=1,\"Licht verlaagd\",J56=0,\"Normaal\")","v":"Sterk verlaagd"},{"$f":"IF(D56<1.714,3,\"\")","v":3},{"$f":"IF(AND(D56>1.713,D56<1.857),2,\"\")","v":""},{"$f":"IF(AND(D56>1.856,D56<2),1,\"\")","v":""},{"$f":"IF(D56>1.999,0,\"\")","v":""},{"$f":"SUM(F56:I56)","v":3},null,"7 Items",null,"Herbeleving","Vermijding","Negatieve veranderingen cognities en stemming","Arousal","Dissociatie",null,null,"Veiligheid en relaties","Zelfregulatie","Zelfbeeld","Dagelijks leven"]
[null,"zelfregulatie",{"$f":"B16","v":0},0,{"$f":"_xlfn.IFS(J57=3,\"Sterk verlaagd\",J57=2,\"Verlaagd\",J57=1,\"Licht verlaagd\",J57=0,\"Normaal\")","v":"Sterk verlaagd"},{"$f":"IF(D57<0.833,3,\"\")","v":3},{"$f":"IF(AND(D57>0.832,D57<1.165),2,\"\")","v":""},{"$f":"IF(AND(D57>1.166,D57<1.5),1,\"\")","v":""},{"$f":"IF(D57>1.499,0,\"\")","v":""},3,null,"6 Items","Meting 3",{"$f":"N29","v":0},{"$f":"O29","v":0},0,0,0,null,"Meting 3",{"$f":"U29","v":0},{"$f":"V29","v":0},{"$f":"W29","v":0},{"$f":"X29","v":0}]
[null,"zelfbeeld",0,0,{"$f":"_xlfn.IFS(J58=3,\"Sterk verlaagd\",J58=2,\"Verlaagd\",J58=1,\"Licht verlaagd\",J58=0,\"Normaal\")","v":"Sterk verlaagd"},{"$f":"IF(D58<1,3,\"\")","v":3},{"$f":"IF(AND(D58>0.999,D58<1.333),2,\"\")","v":""},{"$f":"IF(AND(D58>1.332,D58<1.5),1,\"\")","v":""},{"$f":"IF(D58>1.499,0,\"\")","v":""},3,null,"6 Items","Normaal",{"$f":"N50","v":{"$error":"#N/A"}},{"$f":"O50","v":{"$error":"#N/A"}},{"$error":"#N/A"},{"$error":"#N/A"},{"$error":"#N/A"},null,"Sterk verlaagd",{"$f":"U50","v":{"$error":"#N/A"}},{"$f":"V50","v":{"$error":"#N/A"}},{"$f":"W50","v":{"$error":"#N/A"}},{"$f":"X50","v":{"$error":"#N/A"}}]
[null,"dagelijks leven",0,0,"Sterk verlaagd",{"$f":"IF(D59<1.833,3,\"\")","v":3},{"$f":"IF(AND(D59>1.832,D59<2),2,\"\")","v":""},{"$f":"IF(AND(D59>1.999,D59<2.333),1,\"\")","v":""},{"$f":"IF(D59>2.332,0,\"\")","v":""},3,null,"6 Items","Licht verhoogd",{"$f":"N51-N50","v":{"$error":"#N/A"}},{"$f":"O51-O50","v":{"$error":"#N/A"}},{"$error":"#N/A"},{"$error":"#N/A"},{"$error":"#N/A"},null,"Verlaagd",{"$f":"U51-U50","v":{"$error":"#N/A"}},{"$error":"#N/A"},{"$error":"#N/A"},{"$error":"#N/A"}]
[null,null,null,null,null,null,null,null,null,null,null,null,"Verhoogd",{"$f":"N52-N51","v":{"$error":"#N/A"}},{"$error":"#N/A"},{"$error":"#N/A"},{"$error":"#N/A"},{"$error":"#N/A"},null,"Licht Verlaagd",{"$error":"#N/A"},{"$error":"#N/A"},{"$error":"#N/A"},{"$error":"#N/A"}]
[null,null,null,null,null,null,null,null,null,null,null,null,"Sterk verhoogd",{"$f":"N53-N52","v":{"$error":"#N/A"}},{"$error":"#N/A"},{"$error":"#N/A"},{"$error":"#N/A"},{"$error":"#N/A"},null,"Normaal",{"$f":"U53-U52","v":{"$error":"#N/A"}},{"$error":"#N/A"},{"$error":"#N/A"},{"$error":"#N/A"}]
[null,null,null,null,null,null,null,null,null,null,null,null,"Meting 2",{"$f":"'Berekeningen 2'!N29","v":0},{"$f":"'Berekeningen 2'!O29","v":0},{"$f":"'Berekeningen 2'!P29","v":0},{"$f":"'Berekeningen 2'!Q29","v":0},{"$f":"'Berekeningen 2'!R29","v":0},null,"Meting 2",{"$f":"'Berekeningen 2'!U29","v":0},{"$f":"'Berekeningen 2'!V29","v":0},{"$f":"'Berekeningen 2'!W29","v":0},{"$f":"'Berekeningen 2'!X29","v":0}]
[null,null,null,null,null,null,null,null,null,null,null,null,"Meting 1",{"$f":"Berekeningen1!N29","v":0},{"$f":"Berekeningen1!O29","v":0},{"$f":"Berekeningen1!P29","v":0},{"$f":"Berekeningen1!Q29","v":0},{"$f":"Berekeningen1!R29","v":0},null,"Meting 1",{"$f":"Berekeningen1!U29","v":0},{"$f":"Berekeningen1!V29","v":0},{"$f":"Berekeningen1!W29","v":0},{"$f":"Berekeningen1!X29","v":0}]

{"sheet":"Resultaten_meting 3","index":10,"n_rows":28,"n_cols":13,"rows_kept":28,"cut":false,"hidden":false,"merged":[]}
[null,null,null,{"$f":"'Berekeningen 3'!A22","v":"Meting 3 is NIET goed ingevuld. De resultaten zijn ONBETROUWBAAR."}]
[]
["Leerling",null,null,"Leerkracht"]
["Naam leerling: ",{"$f":"ADS_gegevens!C3","v":"Vul naam leerling in"},null,"Naam leerkracht: ",{"$f":"ADS_gegevens!M13","v":"Vul naam leerkracht in"}]
["Geslacht:",{"$f":"ADS_gegevens!C4","v":"Juiste antwoord moet nog worden geselecteerd"},null,"Groep:",{"$f":"ADS_gegevens!M14","v":"Vul groep in"}]
["Geboortedatum:",{"$f":"ADS_gegevens!C5","v":"Vul de geboortedatum in"},null,"School:",{"$f":"ADS_gegevens!M15","v":"Vul school in"}]
["Leeftijd bij afname:",{"$f":"ADS_gegevens!C23","v":"Leeftijd onbekend"}]
[]
["Zorgen:",{"$f":"ADS_gegevens!C37","v":"Selecteer het juiste antwoord"}]
[]
[null,null,null,null,null,null,null,null,null,null,"Meting 1","Meting 2","Meting 3"]
[{"$f":"_xlfn.IFS(ADS_gegevens!H4=2,\"Jongen\",ADS_gegevens!H4=4,\"Meisje\",ADS_gegevens!H4=0,\"BETEKENIS wordt NIET WEERGEGEVEN: Vul geslacht in. Bij 'Anders/Onbekend' Kies 'Meisje'.\")","v":"BETEKENIS wordt NIET WEERGEGEVEN: Vul geslacht in. Bij 'Anders/Onbekend' Kies 'Meisje'."},null,null,null,null,null,null,"Samenvatting ",null,null,{"$f":"IF(ADS_gegevens!C7=\"\",ADS_gegevens!D7,ADS_gegevens!C7)","v":"Vul datum in"},{"$f":"IF(ADS_gegevens!C8=\"\",ADS_gegevens!D8,ADS_gegevens!C8)","v":"Vul datum in"},{"$f":"IF(ADS_gegevens!C9=\"\",ADS_gegevens!D9,ADS_gegevens!C9)","v":"Vul datum in"}]
[null,null,"Totaal score","Interpretatie"]
[null,"Risicofactoren ",{"$f":"'Berekeningen 3'!B4","v":0},{"$f":"_xlfn.IFS(ADS_gegevens!H4=2,'Berekeningen 3'!D25,ADS_gegevens!H4=4,'Berekeningen 3'!D44,ADS_gegevens!H4=0,\"Vul eerst het geslacht in\")","v":"Vul eerst het geslacht in"},null,null,null,null,null,"Risicofactoren ",{"$f":"'Resultaten_meting 1'!D14","v":"Vul eerst het geslacht in"},{"$f":"'Resultaten_meting 2'!L14","v":"Vul eerst het geslacht in"},{"$f":"D14","v":"Vul eerst het geslacht in"}]
[null,"Beschermende factoren ",{"$f":"'Berekeningen 3'!B5","v":0},{"$f":"_xlfn.IFS(ADS_gegevens!H4=2,'Berekeningen 3'!D27,ADS_gegevens!H4=4,'Berekeningen 3'!D46,ADS_gegevens!H4=0,\"Vul eerst het geslacht in\")","v":"Vul eerst het geslacht in"},null,null,null,null,null,"Beschermende factoren ",{"$f":"'Resultaten_meting 1'!D15","v":"Vul eerst het geslacht in"},{"$f":"'Resultaten_meting 2'!L15","v":"Vul eerst het geslacht in"},{"$f":"D15","v":"Vul eerst het geslacht in"}]
[]
[null,"Risicofactoren","Somscore","Gemiddelde score subschalen","Interpretatie",null,null,null,null,"Risicofactoren"]
[null,"Herbeleving",{"$f":"'Berekeningen 3'!B8","v":0},{"$f":"'Berekeningen 3'!C8","v":0},{"$f":"_xlfn.IFS(ADS_gegevens!$H$4=2,'Berekeningen 3'!E30,ADS_gegevens!$H$4=4,'Berekeningen 3'!E49,ADS_gegevens!$H$4=0,\"Vul eerst het geslacht in\")","v":"Vul eerst het geslacht in"},null,null,null,null,"Herbeleving",{"$f":"'Resultaten_meting 1'!E18","v":"Vul eerst het geslacht in"},{"$f":"'Resultaten_meting 2'!L18","v":"Vul eerst het geslacht in"},{"$f":"E18","v":"Vul eerst het geslacht in"}]
[null,"Vermijding",{"$f":"'Berekeningen 3'!B9","v":0},{"$f":"'Berekeningen 3'!C9","v":0},{"$f":"_xlfn.IFS(ADS_gegevens!$H$4=2,'Berekeningen 3'!E31,ADS_gegevens!$H$4=4,'Berekeningen 3'!E50,ADS_gegevens!$H$4=0,\"Vul eerst het geslacht in\")","v":"Vul eerst het geslacht in"},null,null,null,null,"Vermijding",{"$f":"'Resultaten_meting 1'!E19","v":"Vul eerst het geslacht in"},{"$f":"'Resultaten_meting 2'!L19","v":"Vul eerst het geslacht in"},{"$f":"E19","v":"Vul eerst het geslacht in"}]
[null,"Negatieve veranderingen cognities en stemming",{"$f":"'Berekeningen 3'!B10","v":0},{"$f":"'Berekeningen 3'!C10","v":0},{"$f":"_xlfn.IFS(ADS_gegevens!$H$4=2,'Berekeningen 3'!E32,ADS_gegevens!$H$4=4,'Berekeningen 3'!E51,ADS_gegevens!$H$4=0,\"Vul eerst het geslacht in\")","v":"Vul eerst het geslacht in"},null,null,null,null,"Negatieve veranderingen cognities en stemming",{"$f":"'Resultaten_meting 1'!E20","v":"Vul eerst het geslacht in"},{"$f":"'Resultaten_meting 2'!L20","v":"Vul eerst het geslacht in"},{"$f":"E20","v":"Vul eerst het geslacht in"}]
[null,"Arousal",{"$f":"'Berekeningen 3'!B11","v":0},{"$f":"'Berekeningen 3'!C11","v":0},{"$f":"_xlfn.IFS(ADS_gegevens!$H$4=2,'Berekeningen 3'!E33,ADS_gegevens!$H$4=4,'Berekeningen 3'!E52,ADS_gegevens!$H$4=0,\"Vul eerst het geslacht in\")","v":"Vul eerst het geslacht in"},null,null,null,null,"Arousal",{"$f":"'Resultaten_meting 1'!E21","v":"Vul eerst het geslacht in"},{"$f":"'Resultaten_meting 2'!L21","v":"Vul eerst het geslacht in"},{"$f":"E21","v":"Vul eerst het geslacht in"}]
[null,"Dissociatie",{"$f":"'Berekeningen 3'!B12","v":0},{"$f":"'Berekeningen 3'!C12","v":0},{"$f":"_xlfn.IFS(ADS_gegevens!$H$4=2,'Berekeningen 3'!E34,ADS_gegevens!$H$4=4,'Berekeningen 3'!E53,ADS_gegevens!$H$4=0,\"Vul eerst het geslacht in\")","v":"Vul eerst het geslacht in"},null,null,null,null,"Dissociatie",{"$f":"'Resultaten_meting 1'!E22","v":"Vul eerst het geslacht in"},{"$f":"'Resultaten_meting 2'!L22","v":"Vul eerst het geslacht in"},{"$f":"E22","v":"Vul eerst het geslacht in"}]
[]
[null,"Beschermende factoren","Somscore","Gemiddelde score subschalen","Interpretatie",null,null,null,null,"Beschermende factoren"]
[null,"Veiligheid en relaties",{"$f":"'Berekeningen 3'!C37","v":0},{"$f":"'Berekeningen 3'!D37","v":0},{"$f":"_xlfn.IFS(ADS_gegevens!$H$4=2,'Berekeningen 3'!E37,ADS_gegevens!$H$4=4,'Berekeningen 3'!E56,ADS_gegevens!$H$4=0,\"Vul eerst het geslacht in\")","v":"Vul eerst het geslacht in"},null,null,null,null,"Veiligheid en relaties",{"$f":"'Resultaten_meting 1'!E25","v":"Vul eerst het geslacht in"},{"$f":"'Resultaten_meting 2'!L25","v":"Vul eerst het geslacht in"},{"$f":"E25","v":"Vul eerst het geslacht in"}]
[null,"Zelfregulatie",{"$f":"'Berekeningen 3'!C38","v":0},{"$f":"'Berekeningen 3'!D38","v":0},{"$f":"_xlfn.IFS(ADS_gegevens!$H$4=2,'Berekeningen 3'!E38,ADS_gegevens!$H$4=4,'Berekeningen 3'!E57,ADS_gegevens!$H$4=0,\"Vul eerst het geslacht in\")","v":"Vul eerst het geslacht in"},null,null,null,null,"Zelfregulatie",{"$f":"'Resultaten_meting 1'!E26","v":"Vul eerst het geslacht in"},{"$f":"'Resultaten_meting 2'!L26","v":"Vul eerst het geslacht in"},{"$f":"E26","v":"Vul eerst het geslacht in"}]
[null,"Zelfbeeld",{"$f":"'Berekeningen 3'!C39","v":0},{"$f":"'Berekeningen 3'!D39","v":0},{"$f":"_xlfn.IFS(ADS_gegevens!$H$4=2,'Berekeningen 3'!E39,ADS_gegevens!$H$4=4,'Berekeningen 3'!E58,ADS_gegevens!$H$4=0,\"Vul eerst het geslacht in\")","v":"Vul eerst het geslacht in"},null,null,null,null,"Zelfbeeld",{"$f":"'Resultaten_meting 1'!E27","v":"Vul eerst het geslacht in"},{"$f":"'Resultaten_meting 2'!L27","v":"Vul eerst het geslacht in"},{"$f":"E27","v":"Vul eerst het geslacht in"}]
[null,"Dagelijks leven",{"$f":"'Berekeningen 3'!C40","v":0},{"$f":"'Berekeningen 3'!D40","v":0},{"$f":"_xlfn.IFS(ADS_gegevens!$H$4=2,'Berekeningen 3'!E40,ADS_gegevens!$H$4=4,'Berekeningen 3'!E59,ADS_gegevens!$H$4=0,\"Vul eerst het geslacht in\")","v":"Vul eerst het geslacht in"},null,null,null,null,"Dagelijks leven",{"$f":"'Resultaten_meting 1'!E28","v":"Vul eerst het geslacht in"},{"$f":"'Resultaten_meting 2'!L28","v":"Vul eerst het geslacht in"},{"$f":"E28","v":"Vul eerst het geslacht in"}]

{"sheet":"ReBTOSS_meting 4","index":11,"n_rows":65,"n_cols":20,"rows_kept":65,"cut":false,"hidden":false,"merged":[[46,0,47,0],[52,0,53,0],[58,0,59,0],[8,0,10,0],[13,0,15,0],[18,0,20,0],[24,0,26,0],[31,0,32,0],[39,0,40,0],[0,4,0,5],[2,3,2,6],[3,1,3,2],[3,3,5,3],[3,4,5,6],[4,1,4,2],[5,1,5,2]]}
[null,null,null,"Voortgang",{"$f":"IF(N65=54,\"KLAAR!\",\"…nog niet klaar\")","v":"…nog niet klaar"},null,null,null,null,null,null,null,null,null,null,null,null,"Totaalscore Risico",null,{"$f":"SUM(Q13+Q18+Q24+Q31+Q37)","v":0}]
[]
[null,null,null,"Ingevulde items:",null,null,null,null,null,null,null,null,null,null,null,null,null,"Totaal score Beschermende",null,{"$f":"SUM(Q46+Q52+Q58+Q64)","v":0}]
[null,null,null,{"$f":"(N65)&\" item(s)\"","v":"0 item(s)"}]
[]
[]
[]
["RISICOFACTOREN",null,"In de afgelopen twee weken…","NIET           van toepassing","BEETJE         van toepassing","VAAK            van toepassing","ZEER VAAK     van toepassing",null,null,null,null,null,null,"vraag ingevuld?",null,null,"Som Cluster","Aantal items per cluster",null,"Gemiddelde Clusterscore"]
["1. Herbeleving van de traumatische gebeurtenis(sen)","1.1","… betrok de leerling  thema's of aspecten van een nare gebeurtenis/ervaring in het spel.",null,null,null,null,{"$f":"IF(M9=3,\"Check\", IF(M9=4,\"Vul in\",IF(M9<3,\"U mag 1 antwoord aankruisen\")))","v":"Vul in"},{"$f":"IF(D9=\"\",\"\",0)","v":""},{"$f":"IF(E9=\"\",\"\",1)","v":""},{"$f":"IF(F9=\"\",\"\",2)","v":""},{"$f":"IF(G9=\"\",\"\",3)","v":""},{"$f":"COUNTBLANK(I9:L9)","v":4},{"$f":"IF(M9=3,1,\"\")","v":""},{"$f":"COUNTIF($I$9:$L$13,0)","v":0},0]
[null,"1.2","… maakte de leerling een vermoeide indruk.",null,null,null,null,{"$f":"IF(M10=3,\"Check\", IF(M10=4,\"Vul in\",IF(M10<3,\"U mag 1 antwoord aankruisen\")))","v":"Vul in"},"","","",{"$f":"IF(G10=\"\",\"\",3)","v":""},{"$f":"COUNTBLANK(I10:L10)","v":4},{"$f":"IF(M10=3,1,\"\")","v":""},{"$f":"COUNTIF($I$9:$K$13,1)","v":0},1]
[null,"1.3","… maakte de leerling  een angstige, bange indruk.",null,null,null,null,{"$f":"IF(M11=3,\"Check\", IF(M11=4,\"Vul in\",IF(M11<3,\"U mag 1 antwoord aankruisen\")))","v":"Vul in"},"","","","",4,"",{"$f":"COUNTIF($I$9:$K$13,2)","v":0},2]
[null,"1.4","… leek de leerling last te hebben van lichamelijke klachten (hierbij kunt u denken aan hoofdpijn of buikpijn).",null,null,null,null,"Vul in","","","","",4,"",{"$f":"COUNTIF($I$9:$L$13,3)","v":0},3]
[null,"1.5","… reageerde de leerling, in een neutrale situatie, op een niet neutrale manier.",null,null,null,null,"Vul in","","","","",4,"",null,null,{"$f":"SUM(I9:L13)","v":0},5,null,{"$f":"Q13/R13","v":0}]
["2. Vermijden van prikkels die worden geassocieerd met de traumatische gebeurtenis(sen) en afstomping van algemene reactiviteit.","2.1","… vermeed de leerling  om te praten over (trauma)gevoelige onderwerpen.",null,null,null,null,"Vul in","","","","",4,"",{"$f":"COUNTIF($I$14:$L$18,0)","v":0},0]
[null,"2.2","… vermeed de leerling bepaalde plaatsen of voorwerpen.",null,null,null,null,"Vul in","","","","",4,"",{"$f":"COUNTIF($I$14:$L$18,1)","v":0},1]
[null,"2.3","… vermeed de leerling bepaalde mensen, gesprekken of (sociale) situaties.",null,null,null,null,"Vul in","","","","",4,"",{"$f":"COUNTIF($I$14:$L$18,2)","v":0},2]
[null,"2.4","… vermeed de leerling bepaalde activiteiten.",null,null,null,null,"Vul in","","","","",4,"",{"$f":"COUNTIF($I$14:$L$18,3)","v":0},3]
[null,"2.5","… vertoonde de leerling beperkt affect.",null,null,null,null,"Vul in","","","","",4,"",null,null,{"$f":"SUM(I14:L18)","v":0},5,null,{"$f":"Q18/R18","v":0}]
["3. Negatieve veranderingen in cognities (overtuigingen of verwachtingen) en stemming (gemoedstoestand)","3.1","… leek de leerling zich schuldig te voelen over bepaalde zaken.",null,null,null,null,"Vul in","","","",{"$f":"IF(G19=\"\",\"\",3)","v":""},4,"",{"$f":"COUNTIF($I$19:$L$24,0)","v":0},0]
[null,"3.2","… deed de leerling negatieve uitspraken over zichzelf, anderen of de wereld.",null,null,null,null,"Vul in","","","",{"$f":"IF(G20=\"\",\"\",3)","v":""},4,"",{"$f":"COUNTIF($I$19:$L$24,1)","v":0},1]
[null,"3.3","… toonde de leerling beperkte interesse (in vergelijking met andere leerlingen) voor belangrijke activiteiten.",null,null,null,null,"Vul in","","","","",4,"",{"$f":"COUNTIF($I$19:$L$24,2)","v":0},2]
[null,"3.4","… maakte de leerling een verdrietige indruk.",null,null,null,null,"Vul in","","","","",4,"",{"$f":"COUNTIF($I$19:$L$24,3)","v":0},3]
[null,"3.5","… maakte de leerling een beschaamde indruk.",null,null,null,null,"Vul in","","","","",4,""]
[null,"3.6","… zocht de leerling geen contact met anderen, zonderde zich af.",null,null,null,null,"Vul in","","","","",4,"",null,null,{"$f":"SUM(I19:L24)","v":0},6,null,{"$f":"Q24/R24","v":0}]
["4. Verhoogde of verlaagde arousal (verhoogde prikkelbaarheid)","4.1","… maakte de leerling een boze indruk.",null,null,null,null,"Vul in","","","",{"$f":"IF(G25=\"\",\"\",3)","v":""},4,"",{"$f":"COUNTIF($I$25:$L$31,0)","v":0},0]
[null,"4.2","… was de leerling onvoorzichtig.",null,null,null,null,"Vul in","","","",{"$f":"IF(G26=\"\",\"\",3)","v":""},4,"",{"$f":"COUNTIF($I$25:$L$31,1)","v":0},1]
[null,"4.3","… was de leerling over-voorzichtig of op de hoede zonder duidelijke reden.",null,null,null,null,"Vul in","","","","",4,"",{"$f":"COUNTIF($I$25:$L$31,2)","v":0},2]
[null,"4.4","… vergat de leerling gewone dagelijkse dingen.",null,null,null,null,"Vul in","","","","",4,"",{"$f":"COUNTIF($I$25:$L$31,3)","v":0},3]
[null,"4.5","… vond de leerling het moeilijk om zijn/haar aandacht ergens bij te houden of om zich te concentreren.",null,null,null,null,"Vul in","","","","",4,""]
[null,"4.6","… schrok de leerling (overdreven) snel of was zenuwachtig.",null,null,null,null,"Vul in","","","","",4,""]
[null,"4.7","… pestte de leerling andere leerlingen.",null,null,null,null,"Vul in","","","","",4,"",null,null,{"$f":"SUM(I25:L31)","v":0},7,null,{"$f":"Q31/R31","v":0}]
["5. Dissociëren","5.1","… gedroeg de leerling zich jonger dan je a.d.h.v. zijn/haar leeftijd zou verwachten.",null,null,null,null,"Vul in","","","",{"$f":"IF(G32=\"\",\"\",3)","v":""},4,"",{"$f":"COUNTIF($I$32:$L$37,0)","v":0},0]
[null,"5.2","… wisselde de leerling plotseling van gedrag.",null,null,null,null,"Vul in","","","",{"$f":"IF(G33=\"\",\"\",3)","v":""},4,"",{"$f":"COUNTIF($I$32:$L$37,1)","v":0},1]
[null,"5.3","… wisselde de leerling snel van emotie.",null,null,null,null,"Vul in","","","","",4,"",{"$f":"COUNTIF($I$32:$L$37,2)","v":0},2]
[null,"5.4","… kon de leerling de ene dag iets wel en de andere dag absoluut niet.",null,null,null,null,"Vul in","","","","",4,"",{"$f":"COUNTIF($I$32:$L$37,3)","v":0},3]
[null,"5.5","… leek de leerling geen herinnering te hebben aan dingen die (net) waren gebeurd of gezegd.",null,null,null,null,"Vul in","","","","",4,""]
[null,"5.6","… gaf de leerling soms geen reactie.",null,null,null,null,"Vul in","","","","",4,"",null,null,{"$f":"SUM(I32:L37)","v":0},6,null,{"$f":"Q37/R37","v":0}]
[null,null,null,null,null,null,null,null,""," ",{"$f":"IF(G38=\"\",\"\",2)","v":""},null,null,{"$f":"IF(M38=3,1,\"\")","v":""}]
["BESCHERMENDE FACTOREN",null,"In de afgelopen twee weken…","NIET             van toepassing","BEETJE       van toepassing","VAAK           van toepassing","ZEER VAAK      van toepassing",null,null,null,null,null,null,""]
["6. Veiligheid en relaties","6.1","… kon de leerling goed overweg met de leerkracht(en): De leerling reageerde positief in contact naar de leerkracht(en).",null,null,null,null,{"$f":"IF(M40=3,\"Check\", IF(M40=4,\"Vul in\",IF(M40<3,\"U mag 1 antwoord aankruisen\")))","v":"Vul in"},{"$f":"IF(D40=\"\",\"\",0)","v":""},{"$f":"IF(E40=\"\",\"\",1)","v":""},{"$f":"IF(F40=\"\",\"\",2)","v":""},{"$f":"IF(G40=\"\",\"\",3)","v":""},4,"",{"$f":"COUNTIF($I$40:$L$46,0)","v":0},0]
[null,"6.2","… kon de leerling goed overweg met de leerkracht(en): De leerling nam initiatief in contact met leerkracht(en).",null,null,null,null,"Vul in","","","",{"$f":"IF(G41=\"\",\"\",3)","v":""},4,"",{"$f":"COUNTIF($I$40:$L$46,1)","v":0},1]
[null,"6.3","… maakte de leerling positief contact met andere leerlingen.",null,null,null,null,"Vul in","","","","",4,"",{"$f":"COUNTIF($I$40:$L$46,2)","v":0},2]
[null,"6.4","… zochten andere leerlingen positief contact met de leerling.",null,null,null,null,"Vul in","","","","",4,"",{"$f":"COUNTIF($I$40:$L$46,3)","v":0},3]
[null,"6.5","… had de leerling het naar zijn/haar zin op school.",null,null,null,null,"Vul in","","","","",4,""]
[null,"6.6","… maakte de leerling een blije indruk.",null,null,null,null,"Vul in","","","","",4,""]
[null,"6.7","… werd de leerling gewaardeerd in de groep (goede sociale status).",null,null,null,null,"Vul in","","","","",4,"",null,null,{"$f":"SUM(I40:L46)","v":0},7,null,{"$f":"Q46/R46","v":0}]
["7. Zelfregulatie","7.1","… maakte de leerling op een adequate manier zijn/haar gevoelens duidelijk.",null,null,null,null,"Vul in","","","","",4,"",{"$f":"COUNTIF($I$47:$L$52,0)","v":0},0]
[null,"7.2","… was de leerling in staat correct te reflecteren en te reageren op andermans gedrag en gevoelens.",null,null,null,null,"Vul in","","","","",4,"",{"$f":"COUNTIF($I$47:$L$52,1)","v":0},1]
[null,"7.3","… was de leerling in staat zichzelf (weer) rustig te krijgen wanneer hij/zij boos, verdrietig of angstig was.",null,null,null,null,"Vul in","","","","",4,"",{"$f":"COUNTIF($I$47:$L$52,2)","v":0},2]
[null,"7.4","… was de leerling, met behulp van een ander, in staat (weer) rustig te worden wanneer hij/zij boos verdrietig of angstig was.",null,null,null,null,"Vul in","","","","",4,"",{"$f":"COUNTIF($I$47:$L$52,3)","v":0},3]
[null,"7.5","… was de leerling flexibel in zijn/haar gedrag.",null,null,null,null,"Vul in","","","","",4,""]
[null,"7.6","… dacht de leerling na voor hijzij iets deed.",null,null,null,null,"Vul in","","","","",4,"",null,null,{"$f":"SUM(I47:L52)","v":0},6,null,{"$f":"Q52/R52","v":0}]
["8. Positief (neutraal) zelfbeeld","8.1","… maakte de leerling een trotse indruk.",null,null,null,null,"Vul in","","","","",4,"",{"$f":"COUNTIF($I$53:$L$58,0)","v":0},0]
[null,"8.2","… praatte de leerling op een positieve manier over zichzelf.",null,null,null,null,"Vul in","","","","",4,"",{"$f":"COUNTIF($I$53:$L$58,1)","v":0},1]
[null,"8.3","… kwam de leerling met (veel) nieuwe ideeën.",null,null,null,null,"Vul in","","","","",4,"",{"$f":"COUNTIF($I$53:$L$58,2)","v":0},2]
[null,"8.4","… kon de leerling goed omgaan met kritiek.",null,null,null,null,"Vul in","","","","",4,"",{"$f":"COUNTIF($I$53:$L$58,3)","v":0},3]
[null,"8.5","… had de leerling vertrouwen in zichzelf.",null,null,null,null,"Vul in","","","","",4,""]
[null,"8.6","… durfde de leerling nieuwe uitdagingen aan te gaan.",null,null,null,null,"Vul in","","","","",4,"",null,null,{"$f":"SUM(I53:L58)","v":0},6,null,{"$f":"Q58/R58","v":0}]
["9. Het dagelijks leven","9.1","… at de leerling goed.",null,null,null,null,"Vul in","","","","",4,"",{"$f":"COUNTIF($I$59:$L$64,0)","v":0},0]
[null,"9.2","… zag de leerling er verzorgd uit.",null,null,null,null,"Vul in","","","","",4,"",{"$f":"COUNTIF($I$59:$L$64,1)","v":0},1]
[null,"9.3","… was de leerling lichamelijk actief geweest.",null,null,null,null,"Vul in","","","","",4,"",{"$f":"COUNTIF($I$59:$L$64,2)","v":0},2]
[null,"9.4","… kwam de leerling op tijd op school.",null,null,null,null,"Vul in","","","","",4,"",{"$f":"COUNTIF($I$59:$L$64,3)","v":0},3]
[null,"9.5","… had de leerling weinig schoolverzuim.",null,null,null,null,"Vul in","","","","",4,""]
[null,"9.6","… waren de ouders van de leerling betrokken.",null,null,null,null,"Vul in","","","","",4,"",null,null,{"$f":"SUM(I59:L64)","v":0},6,null,{"$f":"Q64/R64","v":0}]
[null,null,null,null,null,null,null,null,null,null,null,null,{"$f":"(SUM(M9:M64))/2","v":108},{"$f":"SUM(N9:N64)","v":0}]

{"sheet":"Berekeningen 4","index":12,"n_rows":64,"n_cols":24,"rows_kept":64,"cut":false,"hidden":true,"merged":[[12,5,12,8],[15,12,15,15],[15,18,15,21],[0,5,0,8],[0,12,0,15],[0,18,0,21],[2,5,2,8],[7,12,7,15],[7,18,7,21]]}
[null,null,null,null,null,null,null,null,null,null,null,null,"totaal risicofactoren - somscore",null,null,null,null,null,"totaal beschermende factoren - somscore"]
[null,null,null,null,null,null,null,null,null,null,null,null,"normaal","licht verhoogd","verhoogd","sterk verhoogd",null,null,"sterk verlaagd","verlaagd","licht verlaagd","normaal"]
["Meting 1","Totaal score",null,null,null,null,null,null,null,null,null,"jongens (n = 198)","0 - 9","10 - 19","20 - 25","26 - 87",null,"jongens (n = 198)","0 - 33","34 - 39","40 - 45","46 - 75"]
["Risicofactoren ",{"$f":"'ReBTOSS_meting 4'!T1","v":0},null,null,null,null,null,null,null,null,null,"meisjes (n = 207)","0 - 5","6 - 13","14 - 22","23 - 87",null,"meisjes (n = 207)","0 - 37","38 - 43","44 - 49","50 - 75"]
["Beschermende factoren ",{"$f":"'ReBTOSS_meting 4'!T3","v":0}]
[]
["Risicofactoren","Somscore","Gemiddelde score subschalen"]
["Herbeleving",{"$f":"'ReBTOSS_meting 4'!Q13","v":0},{"$f":"'ReBTOSS_meting 4'!T13","v":0},null,null,null,null,null,null,null,null,null,"risicofactoren subschalen - gemiddelde score",null,null,null,null,null,"beschermende factoren subschalen - gemiddelde score"]
["Vermijding",{"$f":"'ReBTOSS_meting 4'!Q18","v":0},{"$f":"'ReBTOSS_meting 4'!T18","v":0},null,null,null,null,null,null,null,null,"jongens (n = 198)","normaal","licht verhoogd","verhoogd","sterk verhoogd",null,"jongens (n = 198)","sterk verlaagd","verlaagd","licht verlaagd","normaal"]
["Negatieve veranderingen cognities en stemming",{"$f":"'ReBTOSS_meting 4'!Q24","v":0},{"$f":"'ReBTOSS_meting 4'!T24","v":0},null,null,null,null,null,null,null,null,"herbeleving","0,000 - 0,399","0,400 - 0,599","0,600 - 0,999","1,000 - 3,000",5,"veiligheid en relaties","0,000 - 1,285","1,286 - 1,713","1,714 - 1,856","1,857 - 3,000"]
["Arousal",{"$f":"'ReBTOSS_meting 4'!Q31","v":0},{"$f":"'ReBTOSS_meting 4'!T31","v":0},null,null,null,null,null,null,null,null,"vermijding","0,000 - 0,199","0,200 - 0,799","0,800 - 0,999","1,000 - 3,000",5,"zelfregulatie","0,000 - 0,500","0,501 - 0,999","1,000 - 1,332","1,333 - 3,000"]
["Dissociatie",{"$f":"'ReBTOSS_meting 4'!Q37","v":0},{"$f":"'ReBTOSS_meting 4'!T37","v":0},null,null,null,null,null,null,null,null,"negatieve veranderingen cognities en stemming","0,000 - 0,332","0,333 - 0,499","0,500 - 0,832","0,833 - 3,000",6,"zelfbeeld","0,000 - 0,666","0,667 - 1,332","1,333 - 1,666","1,667 - 3,000"]
[null,null,null,null,null,null,null,null,null,null,null,"arousal","0,000 - 0,285","0,286 - 0,428","0,429 - 0,713","0,714 - 3,000",7,"dagelijks leven","0,000 - 1,832","1,833 - 1,999","2,000 - 2,166","2,167 - 3,000"]
["Beschermende factoren","Somscore","Gemiddelde score subschalen",null,null,null,null,null,null,null,null,"dissociatie","0,000 - 0,332","0,333 - 0,499","0,500 - 0,832","0,833 - 3,000",6]
["veiligheid en relaties",{"$f":"'ReBTOSS_meting 4'!Q46","v":0},{"$f":"'ReBTOSS_meting 4'!T46","v":0}]
["zelfregulatie",{"$f":"'ReBTOSS_meting 4'!Q52","v":0},{"$f":"'ReBTOSS_meting 4'!T52","v":0},null,null,null,null,null,null,null,null,null,"risicofactoren subschalen - gemiddelde score",null,null,null,null,null,"beschermende factoren subschalen - gemiddelde score"]
["zelfbeeld",{"$f":"'ReBTOSS_meting 4'!Q58","v":0},{"$f":"'ReBTOSS_meting 4'!T58","v":0},null,null,null,null,null,null,null,null,"meisjes (n = 207)","normaal","licht verhoogd","verhoogd","sterk verhoogd",null,"meisjes (n = 207)","sterk verlaagd","verlaagd","licht verlaagd","normaal"]
["dagelijks leven",{"$f":"'ReBTOSS_meting 4'!Q64","v":0},{"$f":"'ReBTOSS_meting 4'!T64","v":0},null,null,null,null,null,null,null,null,"herbeleving","0,000 - 0,399","0,400 - 0,599","0,600 - 0,999","1,000 - 3,000",5,"veiligheid en relaties","0,000 - 1,713","1,714 - 1,856","1,857 - 1,999","2,000 - 3,000"]
[null,null,null,null,null,null,null,null,null,null,null,"vermijding","0,000 - 0,199","0,200 - 0,399","0,400 - 0,799","0,800 - 3,000",5,"zelfregulatie","0,000 - 0,832","0,833 - 1,166","1,167 - 1,499","1,500 - 3,000"]
[null,null,null,null,null,null,null,null,null,null,null,"negatieve veranderingen cognities en stemming","0,000 - 0,332","0,333 - 0,499","0,500 - 0,832","0,833 - 3,000",6,"zelfbeeld","0,000 - 0,999","1,000 - 1,332","1,333 - 1,499","1,500 - 3,000"]
[null,null,null,null,null,null,null,null,null,null,null,"arousal","0,000 - 0,285","0,286 - 0,428","0,429 - 0,713","0,714 - 3,000",7,"dagelijks leven","0,000 - 1,832","1,833 - 1,999","2,000 - 2,332","2,333 - 3,000"]
[{"$f":"IF('ReBTOSS_meting 4'!$N$65=54,\"Meting 4 is goed ingevuld\",\"Meting 4 is NIET goed ingevuld. De resultaten zijn ONBETROUWBAAR.\")","v":"Meting 4 is NIET goed ingevuld. De resultaten zijn ONBETROUWBAAR."},null,null,null,null,null,null,null,null,null,null,"dissociatie","0,000 - 0,332","0,333 - 0,499","0,500 - 0,832","0,833 - 3,000",6]
[]
[null,"Jongen","Totaal score","Betekenis",null,"Normaal","Licht verhoogd","Verhoogd","Sterk verhoogd","Betekenis"]
[null,"Risicofactoren ",{"$f":"B4","v":0},{"$f":"_xlfn.IFS(J25=0,\"Normaal\",J25=1,\"Licht verhoogd\",J25=2,\"Verhoogd\",J25=3,\"Sterk verhoogd\")","v":"Normaal"},null,{"$f":"IF(C25<10,0,\"\")","v":0},{"$f":"IF(AND(C25>9,C25<20),1,\"\")","v":""},{"$f":"IF(AND(C25>19,C25<26),2,\"\")","v":""},{"$f":"IF(C25>25,3,\"\")","v":""},{"$f":"SUM(F25:I25)","v":0}]
[null,null,"Totaal score","Betekenis",null,"Sterk verlaagd","Verlaagd","Licht verlaagd","Normaal",null,null,null,"De bovengrenzen: risico",null,null,null,null,null,null,"De bovengrenzen: beschermend"]
[null,"Beschermende factoren ",{"$f":"B5","v":0},{"$f":"_xlfn.IFS(J27=3,\"Sterk verlaagd\",J27=2,\"Verlaagd\",J27=1,\"Licht verlaagd\",J27=0,\"Normaal\")","v":"Sterk verlaagd"},null,{"$f":"IF(C27<34,3,\"\")","v":3},{"$f":"IF(AND(C27>33,C27<40),2,\"\")","v":""},{"$f":"IF(AND(C27>39,C27<46),1,\"\")","v":""},{"$f":"IF(C27>45,0,\"\")","v":""},{"$f":"SUM(F27:I27)","v":3},null,null,"Jongen",null,null,null,null,null,null,"Jongen"]
[null,null,null,null,null,null,null,null,null,null,null,null,null,"Herbeleving","Vermijding","Negatieve veranderingen cognities en stemming","Arousal","Dissociatie",null,null,"Veiligheid en relaties","Zelfregulatie","Zelfbeeld","Dagelijks leven"]
[null,"Risicofactoren","Somscore","Gemiddelde score subschalen","Betekenis","Normaal","Licht verhoogd","Verhoogd","Sterk verhoogd","Betekenis",null,null,"Meting 3",{"$f":"D30","v":0},{"$f":"D31","v":0},{"$f":"D32","v":0},{"$f":"D33","v":0},{"$f":"D34","v":0},null,"Meting 2",{"$f":"D37","v":0},{"$f":"D38","v":0},{"$f":"D39","v":0},{"$f":"D40","v":0}]
[null,"Herbeleving",{"$f":"B8","v":0},{"$f":"C8","v":0},{"$f":"_xlfn.IFS(J30=0,\"Normaal\",J30=1,\"Licht verhoogd\",J30=2,\"Verhoogd\",J30=3,\"Sterk verhoogd\")","v":"Normaal"},{"$f":"IF(D30<0.4,0,\"\")","v":0},{"$f":"IF(AND(D30>0.399,D30<0.6),1,\"\")","v":""},{"$f":"IF(AND(D30>0.599,D30<1),2,\"\")","v":""},{"$f":"IF(D30>0.999,3,\"\")","v":""},{"$f":"SUM(F30:I30)","v":0},null,"5 Items","Normaal",0.39950000000000002,0.19950000000000001,0.33250000000000002,0.28549999999999998,0.33250000000000002,null,"Sterk verlaagd",1.2855000000000001,0.50049999999999994,0.66649999999999998,1.8325]
[null,"Vermijding",{"$f":"B9","v":0},0,{"$f":"_xlfn.IFS(J31=0,\"Normaal\",J31=1,\"Licht verhoogd\",J31=2,\"Verhoogd\",J31=3,\"Sterk verhoogd\")","v":"Normaal"},{"$f":"IF(D31<0.2,0,\"\")","v":0},{"$f":"IF(AND(D31>0.199,D31<0.8),1,\"\")","v":""},{"$f":"IF(AND(D31>0.799,D31<1),2,\"\")","v":""},{"$f":"IF(D31>0.999,3,\"\")","v":""},{"$f":"SUM(F31:I31)","v":0},null,"5 Items","Licht verhoogd",0.59950000000000003,0.79949999999999999,0.4995,0.42849999999999999,0.4995,null,"Verlaagd",1.7135,0.99950000000000006,1.3325,1.9995000000000001]
[null,"Negatieve veranderingen cognities en stemming",0,0,"Normaal",{"$f":"IF(D32<0.333,0,\"\")","v":0},{"$f":"IF(AND(D32>0.332,D32<0.5),1,\"\")","v":""},{"$f":"IF(AND(D32>0.499,D32<0.833),2,\"\")","v":""},{"$f":"IF(D32>0.832,3,\"\")","v":""},0,null,"6 Items","Verhoogd",0.99950000000000006,0.99950000000000006,0.83250000000000002,0.71350000000000002,0.83250000000000002,null,"Licht verlaagd",1.8565,1.3325,1.6665000000000001,2.1665000000000001]
[null,"Arousal",0,0,"Normaal",{"$f":"IF(D33<0.285,0,\"\")","v":0},{"$f":"IF(AND(D33>0.285,D33<0.428),1,\"\")","v":""},{"$f":"IF(AND(D33>0.428,D33<0.714),2,\"\")","v":""},{"$f":"IF(D33>0.713,3,\"\")","v":""},0,null,"7 Items","Sterk verhoogd",3,3,3,3,3,null,"Normaal",3,3,3,3]
[null,"Dissociatie",0,0,"Normaal",{"$f":"IF(D34<0.333,0,\"\")","v":0},{"$f":"IF(AND(D34>0.332,D34<0.5),1,\"\")","v":""},{"$f":"IF(AND(D34>0.499,D34<0.833),2,\"\")","v":""},{"$f":"IF(D34>0.832,3,\"\")","v":""},0,null,"6 Items"]
[]
[null,"Beschermende factoren","Somscore","Gemiddelde score subschalen","Betekenis","Sterk verlaagd","Verlaagd","Licht verlaagd","Normaal","Betekenis"]
[null,"veiligheid en relaties",{"$f":"B15","v":0},{"$f":"C15","v":0},{"$f":"_xlfn.IFS(J37=3,\"Sterk verlaagd\",J37=2,\"Verlaagd\",J37=1,\"Licht verlaagd\",J37=0,\"Normaal\")","v":"Sterk verlaagd"},{"$f":"IF(D37<1.285,3,\"\")","v":3},{"$f":"IF(AND(D37>1.2855,D37<1.714),2,\"\")","v":""},{"$f":"IF(AND(D37>1.713,D37<1.857),1,\"\")","v":""},{"$f":"IF(D37>1.856,0,\"\")","v":""},{"$f":"SUM(F37:I37)","v":3},null,"7 Items","Meisje",null,null,null,null,null,null,"Meisje"]
[null,"zelfregulatie",{"$f":"B16","v":0},0,{"$f":"_xlfn.IFS(J38=3,\"Sterk verlaagd\",J38=2,\"Verlaagd\",J38=1,\"Licht verlaagd\",J38=0,\"Normaal\")","v":"Sterk verlaagd"},{"$f":"IF(D38<0.501,3,\"\")","v":3},{"$f":"IF(AND(D38>0.5,D38<1),2,\"\")","v":""},{"$f":"IF(AND(D38>0.999,D38<1.333),1,\"\")","v":""},{"$f":"IF(D38>1.332,0,\"\")","v":""},{"$f":"SUM(F38:I38)","v":3},null,"6 Items",null,"Herbeleving","Vermijding","Negatieve veranderingen cognities en stemming","Arousal","Dissociatie",null,null,"Veiligheid en relaties","Zelfregulatie","Zelfbeeld","Dagelijks leven"]
[null,"zelfbeeld",0,0,{"$f":"_xlfn.IFS(J39=3,\"Sterk verlaagd\",J39=2,\"Verlaagd\",J39=1,\"Licht verlaagd\",J39=0,\"Normaal\")","v":"Sterk verlaagd"},{"$f":"IF(D39<0.65,3,\"\")","v":3},{"$f":"IF(AND(D39>0.666,D39<1.333),2,\"\")","v":""},{"$f":"IF(AND(D39>1.332,D39<1.65),1,\"\")","v":""},{"$f":"IF(D39>1.666,0,\"\")","v":""},3,null,"6 Items","Meting 3",{"$f":"D49","v":0},{"$f":"D50","v":0},{"$f":"D51","v":0},{"$f":"D52","v":0},{"$f":"D53","v":0},null,"Meting 2",{"$f":"D56","v":0},{"$f":"D57","v":0},{"$f":"D58","v":0},{"$f":"D59","v":0}]
[null,"dagelijks leven",0,0,{"$f":"_xlfn.IFS(J40=3,\"Sterk verlaagd\",J40=2,\"Verlaagd\",J40=1,\"Licht verlaagd\",J40=0,\"Normaal\")","v":"Sterk verlaagd"},{"$f":"IF(D40<1.833,3,\"\")","v":3},{"$f":"IF(AND(D40>1.832,D40<2),2,\"\")","v":""},{"$f":"IF(AND(D40>1.999,D40<2.165),1,\"\")","v":""},{"$f":"IF(D40>2.166,0,\"\")","v":""},3,null,"6 Items","Normaal",0.39950000000000002,0.19950000000000001,0.33250000000000002,0.28549999999999998,0.33250000000000002,null,"Sterk verlaagd",1.7135,0.83250000000000002,0.99950000000000006,1.8325]
[null,null,null,null,null,null,null,null,null,null,null,null,"Licht verhoogd",0.59950000000000003,0.39950000000000002,0.4995,0.42849999999999999,0.4995,null,"Verlaagd",1.8565,1.1665000000000001,1.3325,1.9995000000000001]
[null,null,null,null,null,null,null,null,null,null,null,null,"Verhoogd",0.99950000000000006,0.79949999999999999,0.83250000000000002,0.71350000000000002,0.83250000000000002,null,"Licht verlaagd",1.9995000000000001,1.4995000000000001,1.4995000000000001,2.3325]
[null,"Meisje","Totaal score","Betekenis",null,"Normaal","Licht verhoogd","Verhoogd","Sterk Verhoogd","Betekenis",null,null,"Sterk verhoogd",3,3,3,3,3,null,"Normaal",3,3,3,3]
[null,"Risicofactoren ",{"$f":"B4","v":0},{"$f":"_xlfn.IFS(J44=0,\"Normaal\",J44=1,\"Licht verhoogd\",J44=2,\"Verhoogd\",J44=3,\"Sterk verhoogd\")","v":"Normaal"},null,{"$f":"IF(C44<6,0,\"\")","v":0},{"$f":"IF(AND(C44>5,C44<14),1,\"\")","v":""},{"$f":"IF(AND(C44>13,C44<23),2,\"\")","v":""},{"$f":"IF(C44>22,3,\"\")","v":""},{"$f":"SUM(F44:I44)","v":0}]
[null,null,null,null,null,"Sterk verlaagd","Verlaagd","licht verlaagd ","Normaal"]
[null,"Beschermende factoren ",{"$f":"B5","v":0},{"$f":"_xlfn.IFS(J46=3,\"Sterk verlaagd\",J46=2,\"Verlaagd\",J46=1,\"Licht verlaagd\",J46=0,\"Normaal\")","v":"Sterk verlaagd"},null,{"$f":"IF(C46<38,3,\"\")","v":3},{"$f":"IF(AND(C46>37,C46<44),2,\"\")","v":""},{"$f":"IF(AND(C46>43,C46<50),1,\"\")","v":""},{"$f":"IF(C46>49,0,\"\")","v":""},{"$f":"SUM(F46:I46)","v":3}]
[null,null,null,null,null,null,null,null,null,null,null,null,"TABEL  Berekenen RISICO GRENZEN Jongen versus Meisje",null,null,null,null,null,null,"TABEL  Berekenen BESCHERMEND GRENZEN Jongen versus Meisje"]
[null,"Risicofactoren","Somscore","Gemiddelde score subschalen","Betekenis","Normaal","Licht verhoogd","Verhoogd","Sterk verhoogd","Betekenis",null,null,null,"Herbeleving","Vermijding","Negatieve veranderingen cognities en stemming","Arousal","Dissociatie",null,null,"Veiligheid en relaties","Zelfregulatie","Zelfbeeld","Dagelijks leven"]
[null,"Herbeleving",{"$f":"B8","v":0},{"$f":"C8","v":0},{"$f":"_xlfn.IFS(J49=0,\"Normaal\",J49=1,\"Licht verhoogd\",J49=2,\"Verhoogd\",J49=3,\"Sterk verhoogd\")","v":"Normaal"},{"$f":"IF(D49<0.4,0,\"\")","v":0},{"$f":"IF(AND(D49>0.399,D49<0.6),1,\"\")","v":""},{"$f":"IF(AND(D49>0.599,D49<1),2,\"\")","v":""},{"$f":"IF(D49>0.999,3,\"\")","v":""},{"$f":"SUM(F49:I49)","v":0},null,"5 Items","Meting 4",{"$f":"N29","v":0},{"$f":"O29","v":0},{"$f":"P29","v":0},{"$f":"Q29","v":0},{"$f":"R29","v":0},null,"Meting 4",{"$f":"U29","v":0},{"$f":"V29","v":0},{"$f":"W29","v":0},{"$f":"X29","v":0}]
[null,"Vermijding",{"$f":"B9","v":0},0,{"$f":"_xlfn.IFS(J50=0,\"Normaal\",J50=1,\"Licht verhoogd\",J50=2,\"Verhoogd\",J50=3,\"Sterk verhoogd\")","v":"Normaal"},{"$f":"IF(D50<0.2,0,\"\")","v":0},{"$f":"IF(AND(D50>0.199,D50<0.4),1,\"\")","v":""},{"$f":"IF(AND(D50>0.399,D50<0.8),2,\"\")","v":""},{"$f":"IF(D50>0.799,3,\"\")","v":""},{"$f":"SUM(F50:I50)","v":0},null,"5 Items","Normaal",{"$f":"_xlfn.IFS('Resultaten_meting 1'!$A$12=\"Jongen\",Berekeningen1!N30,'Resultaten_meting 1'!$A$12=\"Meisje\",Berekeningen1!N40,'Resultaten_meting 1'!$A$12=\"Vul geslacht in, anders kan de BETEKENIS NIET worden weergegeven\",\"0\")","v":{"$error":"#N/A"}},{"$f":"_xlfn.IFS('Resultaten_meting 1'!$A$12=\"Jongen\",Berekeningen1!O30,'Resultaten_meting 1'!$A$12=\"Meisje\",Berekeningen1!O40,'Resultaten_meting 1'!$A$12=\"Vul geslacht in, anders kan de BETEKENIS NIET worden weergegeven\",\"0\")","v":{"$error":"#N/A"}},{"$f":"_xlfn.IFS('Resultaten_meting 1'!$A$12=\"Jongen\",Berekeningen1!P30,'Resultaten_meting 1'!$A$12=\"Meisje\",Berekeningen1!P40,'Resultaten_meting 1'!$A$12=\"Vul geslacht in, anders kan de BETEKENIS NIET worden weergegeven\",\"0\")","v":{"$error":"#N/A"}},{"$f":"_xlfn.IFS('Resultaten_meting 1'!$A$12=\"Jongen\",Berekeningen1!Q30,'Resultaten_meting 1'!$A$12=\"Meisje\",Berekeningen1!Q40,'Resultaten_meting 1'!$A$12=\"Vul geslacht in, anders kan de BETEKENIS NIET worden weergegeven\",\"0\")","v":{"$error":"#N/A"}},{"$f":"_xlfn.IFS('Resultaten_meting 1'!$A$12=\"Jongen\",Berekeningen1!R30,'Resultaten_meting 1'!$A$12=\"Meisje\",Berekeningen1!R40,'Resultaten_meting 1'!$A$12=\"Vul geslacht in, anders kan de BETEKENIS NIET worden weergegeven\",\"0\")","v":{"$error":"#N/A"}},null,"Sterk verlaagd",{"$f":"_xlfn.IFS('Resultaten_meting 1'!$A$12=\"Jongen\",Berekeningen1!U30,'Resultaten_meting 1'!$A$12=\"Meisje\",Berekeningen1!U40,'Resultaten_meting 1'!$A$12=\"Vul geslacht in, anders kan de BETEKENIS NIET worden weergegeven\",\"0\")","v":{"$error":"#N/A"}},{"$f":"_xlfn.IFS('Resultaten_meting 1'!$A$12=\"Jongen\",Berekeningen1!V30,'Resultaten_meting 1'!$A$12=\"Meisje\",Berekeningen1!V40,'Resultaten_meting 1'!$A$12=\"Vul geslacht in, anders kan de BETEKENIS NIET worden weergegeven\",\"0\")","v":{"$error":"#N/A"}},{"$f":"_xlfn.IFS('Resultaten_meting 1'!$A$12=\"Jongen\",Berekeningen1!W30,'Resultaten_meting 1'!$A$12=\"Meisje\",Berekeningen1!W40,'Resultaten_meting 1'!$A$12=\"Vul geslacht in, anders kan de BETEKENIS NIET worden weergegeven\",\"0\")","v":{"$error":"#N/A"}},{"$f":"_xlfn.IFS('Resultaten_meting 1'!$A$12=\"Jongen\",Berekeningen1!X30,'Resultaten_meting 1'!$A$12=\"Meisje\",Berekeningen1!X40,'Resultaten_meting 1'!$A$12=\"Vul geslacht in, anders kan de BETEKENIS NIET worden weergegeven\",\"0\")","v":{"$error":"#N/A"}}]
[null,"Negatieve veranderingen cognities en stemming",0,0,"Normaal",{"$f":"IF(D51<0.333,0,\"\")","v":0},{"$f":"IF(AND(D51>0.332,D51<0.5),1,\"\")","v":""},{"$f":"IF(AND(D51>0.499,D51<0.833),2,\"\")","v":""},{"$f":"IF(D51>0.832,3,\"\")","v":""},0,null,"6 Items","Licht verhoogd",{"$f":"_xlfn.IFS('Resultaten_meting 1'!$A$12=\"Jongen\",Berekeningen1!N31,'Resultaten_meting 1'!$A$12=\"Meisje\",Berekeningen1!N41,'Resultaten_meting 1'!$A$12=\"Vul geslacht in, anders kan de BETEKENIS NIET worden weergegeven\",\"0\")","v":{"$error":"#N/A"}},{"$f":"_xlfn.IFS('Resultaten_meting 1'!$A$12=\"Jongen\",Berekeningen1!O31,'Resultaten_meting 1'!$A$12=\"Meisje\",Berekeningen1!O41,'Resultaten_meting 1'!$A$12=\"Vul geslacht in, anders kan de BETEKENIS NIET worden weergegeven\",\"0\")","v":{"$error":"#N/A"}},{"$f":"_xlfn.IFS('Resultaten_meting 1'!$A$12=\"Jongen\",Berekeningen1!P31,'Resultaten_meting 1'!$A$12=\"Meisje\",Berekeningen1!P41,'Resultaten_meting 1'!$A$12=\"Vul geslacht in, anders kan de BETEKENIS NIET worden weergegeven\",\"0\")","v":{"$error":"#N/A"}},{"$f":"_xlfn.IFS('Resultaten_meting 1'!$A$12=\"Jongen\",Berekeningen1!Q31,'Resultaten_meting 1'!$A$12=\"Meisje\",Berekeningen1!Q41,'Resultaten_meting 1'!$A$12=\"Vul geslacht in, anders kan de BETEKENIS NIET worden weergegeven\",\"0\")","v":{"$error":"#N/A"}},{"$f":"_xlfn.IFS('Resultaten_meting 1'!$A$12=\"Jongen\",Berekeningen1!R31,'Resultaten_meting 1'!$A$12=\"Meisje\",Berekeningen1!R41,'Resultaten_meting 1'!$A$12=\"Vul geslacht in, anders kan de BETEKENIS NIET worden weergegeven\",\"0\")","v":{"$error":"#N/A"}},null,"Verlaagd",{"$f":"_xlfn.IFS('Resultaten_meting 1'!$A$12=\"Jongen\",Berekeningen1!U31,'Resultaten_meting 1'!$A$12=\"Meisje\",Berekeningen1!U41,'Resultaten_meting 1'!$A$12=\"Vul geslacht in, anders kan de BETEKENIS NIET worden weergegeven\",\"0\")","v":{"$error":"#N/A"}},{"$f":"_xlfn.IFS('Resultaten_meting 1'!$A$12=\"Jongen\",Berekeningen1!V31,'Resultaten_meting 1'!$A$12=\"Meisje\",Berekeningen1!V41,'Resultaten_meting 1'!$A$12=\"Vul geslacht in, anders kan de BETEKENIS NIET worden weergegeven\",\"0\")","v":{"$error":"#N/A"}},{"$f":"_xlfn.IFS('Resultaten_meting 1'!$A$12=\"Jongen\",Berekeningen1!W31,'Resultaten_meting 1'!$A$12=\"Meisje\",Berekeningen1!W41,'Resultaten_meting 1'!$A$12=\"Vul geslacht in, anders kan de BETEKENIS NIET worden weergegeven\",\"0\")","v":{"$error":"#N/A"}},{"$f":"_xlfn.IFS('Resultaten_meting 1'!$A$12=\"Jongen\",Berekeningen1!X31,'Resultaten_meting 1'!$A$12=\"Meisje\",Berekeningen1!X41,'Resultaten_meting 1'!$A$12=\"Vul geslacht in, anders kan de BETEKENIS NIET worden weergegeven\",\"0\")","v":{"$error":"#N/A"}}]
[null,"Arousal",0,0,"Normaal",{"$f":"IF(D52<0.285,0,\"\")","v":0},{"$f":"IF(AND(D52>0.285,D52<0.428),1,\"\")","v":""},{"$f":"IF(AND(D52>0.428,D52<0.714),2,\"\")","v":""},{"$f":"IF(D52>0.713,3,\"\")","v":""},0,null,"7 Items","Verhoogd",{"$f":"_xlfn.IFS('Resultaten_meting 1'!$A$12=\"Jongen\",Berekeningen1!N32,'Resultaten_meting 1'!$A$12=\"Meisje\",Berekeningen1!N42,'Resultaten_meting 1'!$A$12=\"Vul geslacht in, anders kan de BETEKENIS NIET worden weergegeven\",\"0\")","v":{"$error":"#N/A"}},{"$f":"_xlfn.IFS('Resultaten_meting 1'!$A$12=\"Jongen\",Berekeningen1!O32,'Resultaten_meting 1'!$A$12=\"Meisje\",Berekeningen1!O42,'Resultaten_meting 1'!$A$12=\"Vul geslacht in, anders kan de BETEKENIS NIET worden weergegeven\",\"0\")","v":{"$error":"#N/A"}},{"$f":"_xlfn.IFS('Resultaten_meting 1'!$A$12=\"Jongen\",Berekeningen1!P32,'Resultaten_meting 1'!$A$12=\"Meisje\",Berekeningen1!P42,'Resultaten_meting 1'!$A$12=\"Vul geslacht in, anders kan de BETEKENIS NIET worden weergegeven\",\"0\")","v":{"$error":"#N/A"}},{"$f":"_xlfn.IFS('Resultaten_meting 1'!$A$12=\"Jongen\",Berekeningen1!Q32,'Resultaten_meting 1'!$A$12=\"Meisje\",Berekeningen1!Q42,'Resultaten_meting 1'!$A$12=\"Vul geslacht in, anders kan de BETEKENIS NIET worden weergegeven\",\"0\")","v":{"$error":"#N/A"}},{"$f":"_xlfn.IFS('Resultaten_meting 1'!$A$12=\"Jongen\",Berekeningen1!R32,'Resultaten_meting 1'!$A$12=\"Meisje\",Berekeningen1!R42,'Resultaten_meting 1'!$A$12=\"Vul geslacht in, anders kan de BETEKENIS NIET worden weergegeven\",\"0\")","v":{"$error":"#N/A"}},null,"Licht Verlaagd",{"$f":"_xlfn.IFS('Resultaten_meting 1'!$A$12=\"Jongen\",Berekeningen1!U32,'Resultaten_meting 1'!$A$12=\"Meisje\",Berekeningen1!U42,'Resultaten_meting 1'!$A$12=\"Vul geslacht in, anders kan de BETEKENIS NIET worden weergegeven\",\"0\")","v":{"$error":"#N/A"}},{"$f":"_xlfn.IFS('Resultaten_meting 1'!$A$12=\"Jongen\",Berekeningen1!V32,'Resultaten_meting 1'!$A$12=\"Meisje\",Berekeningen1!V42,'Resultaten_meting 1'!$A$12=\"Vul geslacht in, anders kan de BETEKENIS NIET worden weergegeven\",\"0\")","v":{"$error":"#N/A"}},{"$f":"_xlfn.IFS('Resultaten_meting 1'!$A$12=\"Jongen\",Berekeningen1!W32,'Resultaten_meting 1'!$A$12=\"Meisje\",Berekeningen1!W42,'Resultaten_meting 1'!$A$12=\"Vul geslacht in, anders kan de BETEKENIS NIET worden weergegeven\",\"0\")","v":{"$error":"#N/A"}},{"$f":"_xlfn.IFS('Resultaten_meting 1'!$A$12=\"Jongen\",Berekeningen1!X32,'Resultaten_meting 1'!$A$12=\"Meisje\",Berekeningen1!X42,'Resultaten_meting 1'!$A$12=\"Vul geslacht in, anders kan de BETEKENIS NIET worden weergegeven\",\"0\")","v":{"$error":"#N/A"}}]
[null,"Dissociatie",0,0,"Normaal",{"$f":"IF(D53<0.333,0,\"\")","v":0},{"$f":"IF(AND(D53>0.332,D53<0.5),1,\"\")","v":""},{"$f":"IF(AND(D53>0.499,D53<0.833),2,\"\")","v":""},{"$f":"IF(D53>0.832,3,\"\")","v":""},0,null,"6 Items","Sterk verhoogd",{"$f":"_xlfn.IFS('Resultaten_meting 1'!$A$12=\"Jongen\",Berekeningen1!N33,'Resultaten_meting 1'!$A$12=\"Meisje\",Berekeningen1!N43,'Resultaten_meting 1'!$A$12=\"Vul geslacht in, anders kan de BETEKENIS NIET worden weergegeven\",\"0\")","v":{"$error":"#N/A"}},{"$f":"_xlfn.IFS('Resultaten_meting 1'!$A$12=\"Jongen\",Berekeningen1!O33,'Resultaten_meting 1'!$A$12=\"Meisje\",Berekeningen1!O43,'Resultaten_meting 1'!$A$12=\"Vul geslacht in, anders kan de BETEKENIS NIET worden weergegeven\",\"0\")","v":{"$error":"#N/A"}},{"$f":"_xlfn.IFS('Resultaten_meting 1'!$A$12=\"Jongen\",Berekeningen1!P33,'Resultaten_meting 1'!$A$12=\"Meisje\",Berekeningen1!P43,'Resultaten_meting 1'!$A$12=\"Vul geslacht in, anders kan de BETEKENIS NIET worden weergegeven\",\"0\")","v":{"$error":"#N/A"}},{"$f":"_xlfn.IFS('Resultaten_meting 1'!$A$12=\"Jongen\",Berekeningen1!Q33,'Resultaten_meting 1'!$A$12=\"Meisje\",Berekeningen1!Q43,'Resultaten_meting 1'!$A$12=\"Vul geslacht in, anders kan de BETEKENIS NIET worden weergegeven\",\"0\")","v":{"$error":"#N/A"}},{"$f":"_xlfn.IFS('Resultaten_meting 1'!$A$12=\"Jongen\",Berekeningen1!R33,'Resultaten_meting 1'!$A$12=\"Meisje\",Berekeningen1!R43,'Resultaten_meting 1'!$A$12=\"Vul geslacht in, anders kan de BETEKENIS NIET worden weergegeven\",\"0\")","v":{"$error":"#N/A"}},null,"Normaal",{"$f":"_xlfn.IFS('Resultaten_meting 1'!$A$12=\"Jongen\",Berekeningen1!U33,'Resultaten_meting 1'!$A$12=\"Meisje\",Berekeningen1!U43,'Resultaten_meting 1'!$A$12=\"Vul geslacht in, anders kan de BETEKENIS NIET worden weergegeven\",\"0\")","v":{"$error":"#N/A"}},{"$f":"_xlfn.IFS('Resultaten_meting 1'!$A$12=\"Jongen\",Berekeningen1!V33,'Resultaten_meting 1'!$A$12=\"Meisje\",Berekeningen1!V43,'Resultaten_meting 1'!$A$12=\"Vul geslacht in, anders kan de BETEKENIS NIET worden weergegeven\",\"0\")","v":{"$error":"#N/A"}},{"$f":"_xlfn.IFS('Resultaten_meting 1'!$A$12=\"Jongen\",Berekeningen1!W33,'Resultaten_meting 1'!$A$12=\"Meisje\",Berekeningen1!W43,'Resultaten_meting 1'!$A$12=\"Vul geslacht in, anders kan de BETEKENIS NIET worden weergegeven\",\"0\")","v":{"$error":"#N/A"}},{"$f":"_xlfn.IFS('Resultaten_meting 1'!$A$12=\"Jongen\",Berekeningen1!X33,'Resultaten_meting 1'!$A$12=\"Meisje\",Berekeningen1!X43,'Resultaten_meting 1'!$A$12=\"Vul geslacht in, anders kan de BETEKENIS NIET worden weergegeven\",\"0\")","v":{"$error":"#N/A"}}]
[]
[null,"Beschermende factoren","Somscore","Gemiddelde score subschalen","Betekenis","Sterk verlaagd","Verlaagd","Licht verlaagd","Normaal","Betekenis",null,null,"Kleuren voor in grafiek",null,null,null,null,null,null,"Kleuren voor in grafiek"]
[null,"veiligheid en relaties",{"$f":"B15","v":0},{"$f":"C15","v":0},{"$f":"_xlfn.IFS(J56=3,\"Sterk verlaagd\",J56=2,\"Verlaagd\",J56=1,\"Licht verlaagd\",J56=0,\"Normaal\")","v":"Sterk verlaagd"},{"$f":"IF(D56<1.714,3,\"\")","v":3},{"$f":"IF(AND(D56>1.713,D56<1.857),2,\"\")","v":""},{"$f":"IF(AND(D56>1.856,D56<2),1,\"\")","v":""},{"$f":"IF(D56>1.999,0,\"\")","v":""},{"$f":"SUM(F56:I56)","v":3},null,"7 Items",null,"Herbeleving","Vermijding","Negatieve veranderingen cognities en stemming","Arousal","Dissociatie",null,null,"Veiligheid en relaties","Zelfregulatie","Zelfbeeld","Dagelijks leven"]
[null,"zelfregulatie",{"$f":"B16","v":0},0,{"$f":"_xlfn.IFS(J57=3,\"Sterk verlaagd\",J57=2,\"Verlaagd\",J57=1,\"Licht verlaagd\",J57=0,\"Normaal\")","v":"Sterk verlaagd"},{"$f":"IF(D57<0.833,3,\"\")","v":3},{"$f":"IF(AND(D57>0.832,D57<1.165),2,\"\")","v":""},{"$f":"IF(AND(D57>1.166,D57<1.5),1,\"\")","v":""},{"$f":"IF(D57>1.499,0,\"\")","v":""},3,null,"6 Items","Meting 4",{"$f":"N29","v":0},{"$f":"O29","v":0},0,0,0,null,"Meting 4",{"$f":"U29","v":0},{"$f":"V29","v":0},{"$f":"W29","v":0},{"$f":"X29","v":0}]
[null,"zelfbeeld",0,0,{"$f":"_xlfn.IFS(J58=3,\"Sterk verlaagd\",J58=2,\"Verlaagd\",J58=1,\"Licht verlaagd\",J58=0,\"Normaal\")","v":"Sterk verlaagd"},{"$f":"IF(D58<1,3,\"\")","v":3},{"$f":"IF(AND(D58>0.999,D58<1.333),2,\"\")","v":""},{"$f":"IF(AND(D58>1.332,D58<1.5),1,\"\")","v":""},{"$f":"IF(D58>1.499,0,\"\")","v":""},3,null,"6 Items","Normaal",{"$f":"N50","v":{"$error":"#N/A"}},{"$f":"O50","v":{"$error":"#N/A"}},{"$error":"#N/A"},{"$error":"#N/A"},{"$error":"#N/A"},null,"Sterk verlaagd",{"$f":"U50","v":{"$error":"#N/A"}},{"$f":"V50","v":{"$error":"#N/A"}},{"$f":"W50","v":{"$error":"#N/A"}},{"$f":"X50","v":{"$error":"#N/A"}}]
[null,"dagelijks leven",0,0,"Sterk verlaagd",{"$f":"IF(D59<1.833,3,\"\")","v":3},{"$f":"IF(AND(D59>1.832,D59<2),2,\"\")","v":""},{"$f":"IF(AND(D59>1.999,D59<2.333),1,\"\")","v":""},{"$f":"IF(D59>2.332,0,\"\")","v":""},3,null,"6 Items","Licht verhoogd",{"$f":"N51-N50","v":{"$error":"#N/A"}},{"$f":"O51-O50","v":{"$error":"#N/A"}},{"$error":"#N/A"},{"$error":"#N/A"},{"$error":"#N/A"},null,"Verlaagd",{"$f":"U51-U50","v":{"$error":"#N/A"}},{"$error":"#N/A"},{"$error":"#N/A"},{"$error":"#N/A"}]
[null,null,null,null,null,null,null,null,null,null,null,null,"Verhoogd",{"$f":"N52-N51","v":{"$error":"#N/A"}},{"$error":"#N/A"},{"$error":"#N/A"},{"$error":"#N/A"},{"$error":"#N/A"},null,"Licht Verlaagd",{"$error":"#N/A"},{"$error":"#N/A"},{"$error":"#N/A"},{"$error":"#N/A"}]
[null,null,null,null,null,null,null,null,null,null,null,null,"Sterk verhoogd",{"$f":"N53-N52","v":{"$error":"#N/A"}},{"$f":"O53-O52","v":{"$error":"#N/A"}},{"$f":"P53-P52","v":{"$error":"#N/A"}},{"$f":"Q53-Q52","v":{"$error":"#N/A"}},{"$f":"R53-R52","v":{"$error":"#N/A"}},null,"Normaal",{"$f":"U53-U52","v":{"$error":"#N/A"}},{"$f":"V53-V52","v":{"$error":"#N/A"}},{"$f":"W53-W52","v":{"$error":"#N/A"}},{"$f":"X53-X52","v":{"$error":"#N/A"}}]
[null,null,null,null,null,null,null,null,null,null,null,null,"Meting 3",{"$f":"'Berekeningen 3'!N29","v":0},{"$f":"'Berekeningen 3'!O29","v":0},{"$f":"'Berekeningen 3'!P29","v":0},{"$f":"'Berekeningen 3'!Q29","v":0},{"$f":"'Berekeningen 3'!R29","v":0},null,"Meting 3",{"$f":"'Berekeningen 3'!U29","v":0},{"$f":"'Berekeningen 3'!V29","v":0},{"$f":"'Berekeningen 3'!W29","v":0},{"$f":"'Berekeningen 3'!X29","v":0}]
[null,null,null,null,null,null,null,null,null,null,null,null,"Meting 2",{"$f":"'Berekeningen 2'!N29","v":0},{"$f":"'Berekeningen 2'!O29","v":0},{"$f":"'Berekeningen 2'!P29","v":0},{"$f":"'Berekeningen 2'!Q29","v":0},{"$f":"'Berekeningen 2'!R29","v":0},null,"Meting 2",{"$f":"'Berekeningen 2'!U29","v":0},{"$f":"'Berekeningen 2'!V29","v":0},{"$f":"'Berekeningen 2'!W29","v":0},{"$f":"'Berekeningen 2'!X29","v":0}]
[null,null,null,null,null,null,null,null,null,null,null,null,"Meting 1",{"$f":"Berekeningen1!N29","v":0},{"$f":"Berekeningen1!O29","v":0},{"$f":"Berekeningen1!P29","v":0},{"$f":"Berekeningen1!Q29","v":0},{"$f":"Berekeningen1!R29","v":0},null,"Meting 1",{"$f":"Berekeningen1!U29","v":0},{"$f":"Berekeningen1!V29","v":0},{"$f":"Berekeningen1!W29","v":0},{"$f":"Berekeningen1!X29","v":0}]

{"sheet":"Resultaten_meting 4","index":13,"n_rows":28,"n_cols":13,"rows_kept":28,"cut":false,"hidden":false,"merged":[]}
[null,null,null,{"$f":"'Berekeningen 4'!A22","v":"Meting 4 is NIET goed ingevuld. De resultaten zijn ONBETROUWBAAR."}]
[]
["Leerling",null,null,"Leerkracht"]
["Naam leerling: ",{"$f":"ADS_gegevens!C3","v":"Vul naam leerling in"},null,"Naam leerkracht: ",{"$f":"ADS_gegevens!M13","v":"Vul naam leerkracht in"}]
["Geslacht:",{"$f":"ADS_gegevens!C4","v":"Juiste antwoord moet nog worden geselecteerd"},null,"Groep:",{"$f":"ADS_gegevens!M14","v":"Vul groep in"}]
["Geboortedatum:",{"$f":"ADS_gegevens!C5","v":"Vul de geboortedatum in"},null,"School:",{"$f":"ADS_gegevens!M15","v":"Vul school in"}]
["Leeftijd bij afname:",{"$f":"ADS_gegevens!C28","v":"Leeftijd onbekend"}]
[]
["Zorgen:",{"$f":"ADS_gegevens!C38","v":"Selecteer het juiste antwoord"}]
[]
[null,null,null,null,null,null,null,null,null,"Meting 1","Meting 2","Meting 3","Meting 4"]
[{"$f":"_xlfn.IFS(ADS_gegevens!H4=2,\"Jongen\",ADS_gegevens!H4=4,\"Meisje\",ADS_gegevens!H4=0,\"Vul geslacht in, anders kan de BETEKENIS NIET worden WEERGEGEVEN.\")","v":"Vul geslacht in, anders kan de BETEKENIS NIET worden WEERGEGEVEN."},null,null,null,null,null,"Samenvatting ",null,null,{"$f":"IF(ADS_gegevens!C7=\"\",ADS_gegevens!D7,ADS_gegevens!C7)","v":"Vul datum in"},{"$f":"IF(ADS_gegevens!C8=\"\",ADS_gegevens!D8,ADS_gegevens!C8)","v":"Vul datum in"},{"$f":"IF(ADS_gegevens!C9=\"\",ADS_gegevens!D9,ADS_gegevens!C9)","v":"Vul datum in"},{"$f":"IF(ADS_gegevens!C10=\"\",ADS_gegevens!D10,ADS_gegevens!C10)","v":"Vul datum in"}]
[null,null,"Totaal score","Interpretatie"]
[null,"Risicofactoren ",{"$f":"'Berekeningen 4'!B4","v":0},{"$f":"_xlfn.IFS(ADS_gegevens!H4=2,'Berekeningen 4'!D25,ADS_gegevens!H4=4,'Berekeningen 4'!D44,ADS_gegevens!H4=0,\"Vul eerst het geslacht in\")","v":"Vul eerst het geslacht in"},null,null,null,null,"Risicofactoren ",{"$f":"'Resultaten_meting 1'!D14","v":"Vul eerst het geslacht in"},{"$f":"'Resultaten_meting 2'!L14","v":"Vul eerst het geslacht in"},{"$f":"'Resultaten_meting 3'!M14","v":"Vul eerst het geslacht in"},{"$f":"D14","v":"Vul eerst het geslacht in"}]
[null,"Beschermende factoren ",{"$f":"'Berekeningen 4'!B5","v":0},{"$f":"_xlfn.IFS(ADS_gegevens!H4=2,'Berekeningen 4'!D27,ADS_gegevens!H4=4,'Berekeningen 4'!D46,ADS_gegevens!H4=0,\"Vul eerst het geslacht in\")","v":"Vul eerst het geslacht in"},null,null,null,null,"Beschermende factoren ",{"$f":"'Resultaten_meting 1'!D15","v":"Vul eerst het geslacht in"},{"$f":"'Resultaten_meting 2'!L15","v":"Vul eerst het geslacht in"},{"$f":"'Resultaten_meting 3'!M15","v":"Vul eerst het geslacht in"},{"$f":"D15","v":"Vul eerst het geslacht in"}]
[]
[null,"Risicofactoren","Somscore","Gemiddelde score subschalen","Interpretatie",null,null,null,"Risicofactoren"]
[null,"Herbeleving",{"$f":"'Berekeningen 4'!B8","v":0},{"$f":"'Berekeningen 4'!C8","v":0},{"$f":"_xlfn.IFS(ADS_gegevens!$H$4=2,'Berekeningen 4'!E30,ADS_gegevens!$H$4=4,'Berekeningen 4'!E49,ADS_gegevens!$H$4=0,\"Vul eerst het geslacht in\")","v":"Vul eerst het geslacht in"},null,null,null,"Herbeleving",{"$f":"'Resultaten_meting 1'!E18","v":"Vul eerst het geslacht in"},{"$f":"'Resultaten_meting 2'!L18","v":"Vul eerst het geslacht in"},{"$f":"'Resultaten_meting 3'!M18","v":"Vul eerst het geslacht in"},{"$f":"E18","v":"Vul eerst het geslacht in"}]
[null,"Vermijding",{"$f":"'Berekeningen 4'!B9","v":0},{"$f":"'Berekeningen 4'!C9","v":0},{"$f":"_xlfn.IFS(ADS_gegevens!$H$4=2,'Berekeningen 4'!E31,ADS_gegevens!$H$4=4,'Berekeningen 4'!E50,ADS_gegevens!$H$4=0,\"Vul eerst het geslacht in\")","v":"Vul eerst het geslacht in"},null,null,null,"Vermijding",{"$f":"'Resultaten_meting 1'!E19","v":"Vul eerst het geslacht in"},{"$f":"'Resultaten_meting 2'!L19","v":"Vul eerst het geslacht in"},{"$f":"'Resultaten_meting 3'!M19","v":"Vul eerst het geslacht in"},{"$f":"E19","v":"Vul eerst het geslacht in"}]
[null,"Negatieve veranderingen cognities en stemming",{"$f":"'Berekeningen 4'!B10","v":0},{"$f":"'Berekeningen 4'!C10","v":0},{"$f":"_xlfn.IFS(ADS_gegevens!$H$4=2,'Berekeningen 4'!E32,ADS_gegevens!$H$4=4,'Berekeningen 4'!E51,ADS_gegevens!$H$4=0,\"Vul eerst het geslacht in\")","v":"Vul eerst het geslacht in"},null,null,null,"Negatieve veranderingen cognities en stemming",{"$f":"'Resultaten_meting 1'!E20","v":"Vul eerst het geslacht in"},{"$f":"'Resultaten_meting 2'!L20","v":"Vul eerst het geslacht in"},{"$f":"'Resultaten_meting 3'!M20","v":"Vul eerst het geslacht in"},{"$f":"E20","v":"Vul eerst het geslacht in"}]
[null,"Arousal",{"$f":"'Berekeningen 4'!B11","v":0},{"$f":"'Berekeningen 4'!C11","v":0},{"$f":"_xlfn.IFS(ADS_gegevens!$H$4=2,'Berekeningen 4'!E33,ADS_gegevens!$H$4=4,'Berekeningen 4'!E52,ADS_gegevens!$H$4=0,\"Vul eerst het geslacht in\")","v":"Vul eerst het geslacht in"},null,null,null,"Arousal",{"$f":"'Resultaten_meting 1'!E21","v":"Vul eerst het geslacht in"},{"$f":"'Resultaten_meting 2'!L21","v":"Vul eerst het geslacht in"},{"$f":"'Resultaten_meting 3'!M21","v":"Vul eerst het geslacht in"},{"$f":"E21","v":"Vul eerst het geslacht in"}]
[null,"Dissociatie",{"$f":"'Berekeningen 4'!B12","v":0},{"$f":"'Berekeningen 4'!C12","v":0},{"$f":"_xlfn.IFS(ADS_gegevens!$H$4=2,'Berekeningen 4'!E34,ADS_gegevens!$H$4=4,'Berekeningen 4'!E53,ADS_gegevens!$H$4=0,\"Vul eerst het geslacht in\")","v":"Vul eerst het geslacht in"},null,null,null,"Dissociatie",{"$f":"'Resultaten_meting 1'!E22","v":"Vul eerst het geslacht in"},{"$f":"'Resultaten_meting 2'!L22","v":"Vul eerst het geslacht in"},{"$f":"'Resultaten_meting 3'!M22","v":"Vul eerst het geslacht in"},{"$f":"E22","v":"Vul eerst het geslacht in"}]
[]
[null,"Beschermende factoren","Somscore","Gemiddelde score subschalen","Interpretatie",null,null,null,"Beschermende factoren"]
[null,"Veiligheid en relaties",{"$f":"'Berekeningen 4'!B15","v":0},{"$f":"'Berekeningen 4'!C15","v":0},{"$f":"_xlfn.IFS(ADS_gegevens!$H$4=2,'Berekeningen 4'!E37,ADS_gegevens!$H$4=4,'Berekeningen 4'!E56,ADS_gegevens!$H$4=0,\"Vul eerst het geslacht in\")","v":"Vul eerst het geslacht in"},null,null,null,"Veiligheid en relaties",{"$f":"'Resultaten_meting 1'!E25","v":"Vul eerst het geslacht in"},{"$f":"'Resultaten_meting 2'!L25","v":"Vul eerst het geslacht in"},{"$f":"'Resultaten_meting 3'!M25","v":"Vul eerst het geslacht in"},{"$f":"E25","v":"Vul eerst het geslacht in"}]
[null,"Zelfregulatie",{"$f":"'Berekeningen 4'!B16","v":0},{"$f":"'Berekeningen 4'!C16","v":0},{"$f":"_xlfn.IFS(ADS_gegevens!$H$4=2,'Berekeningen 4'!E38,ADS_gegevens!$H$4=4,'Berekeningen 4'!E57,ADS_gegevens!$H$4=0,\"Vul eerst het geslacht in\")","v":"Vul eerst het geslacht in"},null,null,null,"Zelfregulatie",{"$f":"'Resultaten_meting 1'!E26","v":"Vul eerst het geslacht in"},{"$f":"'Resultaten_meting 2'!L26","v":"Vul eerst het geslacht in"},{"$f":"'Resultaten_meting 3'!M26","v":"Vul eerst het geslacht in"},{"$f":"E26","v":"Vul eerst het geslacht in"}]
[null,"Zelfbeeld",{"$f":"'Berekeningen 4'!B17","v":0},{"$f":"'Berekeningen 4'!C17","v":0},{"$f":"_xlfn.IFS(ADS_gegevens!$H$4=2,'Berekeningen 4'!E39,ADS_gegevens!$H$4=4,'Berekeningen 4'!E58,ADS_gegevens!$H$4=0,\"Vul eerst het geslacht in\")","v":"Vul eerst het geslacht in"},null,null,null,"Zelfbeeld",{"$f":"'Resultaten_meting 1'!E27","v":"Vul eerst het geslacht in"},{"$f":"'Resultaten_meting 2'!L27","v":"Vul eerst het geslacht in"},{"$f":"'Resultaten_meting 3'!M27","v":"Vul eerst het geslacht in"},{"$f":"E27","v":"Vul eerst het geslacht in"}]
[null,"Dagelijks leven",{"$f":"'Berekeningen 4'!B18","v":0},{"$f":"'Berekeningen 4'!C18","v":0},{"$f":"_xlfn.IFS(ADS_gegevens!$H$4=2,'Berekeningen 4'!E40,ADS_gegevens!$H$4=4,'Berekeningen 4'!E59,ADS_gegevens!$H$4=0,\"Vul eerst het geslacht in\")","v":"Vul eerst het geslacht in"},null,null,null,"Dagelijks leven",{"$f":"'Resultaten_meting 1'!E28","v":"Vul eerst het geslacht in"},{"$f":"'Resultaten_meting 2'!L28","v":"Vul eerst het geslacht in"},{"$f":"'Resultaten_meting 3'!M28","v":"Vul eerst het geslacht in"},{"$f":"E28","v":"Vul eerst het geslacht in"}]

{"sheet":"Keuzes","index":14,"n_rows":9,"n_cols":2,"rows_kept":9,"cut":false,"hidden":true,"merged":[]}
["Geslacht","Selecteer het juiste antwoord"]
[null,"Jongen"]
[null,"Meisje"]
[]
["Zorgen leerling","Selecteer het juiste antwoord"]
[null,"Ik maak mij geen zorgen over deze leerling."]
[null,"Ik maak mij een beetje zorgen over deze leerling."]
[null,"Ik maak mij erg zorgen over deze leerling."]
[null,"Ik maak mij heel erg zorgen over deze leerling."]